Workbook

Sheet MENU
L4: =+TABLAS!A97 -> 1-2-3-Total general--------
L5: =+TABLAS!A133 -> 1-2-3-Total general--------
L6: =+TABLAS!A168 -> 1-2-3-Total general--------
H27: CONTROL DE MESES
H29: =+TABLAS!A97 -> 1-2-3-Total general--------

Sheet TABLAS (hidden)
C8: Valores | I8: Tabla | J8: =IF(I9="(Todas)","CUSCO ","") -> 
C9: RED | D9: 03 - LA CONVENCION | I9: =IF(MID(D9,1,2)="99","(All)",MID(D9,1,2)) -> 03 | J9: =IF(I9="(All)"," ",I9) -> 03 | M9: =LEN(MID(D9,5,90)) -> 14 | O9: =IF(MID(D9,6,5)="(All)","",D9) -> 03 - LA CONVENCION
C10: Micro RED | D10: 0399 - (All) | I10: =IF(MID(D10,3,2)="99","(All)",MID(D10,1,4)) -> (All) | M10: =LEN(MID(D10,7,90)) -> 6 | O10: =IF(MID(D10,8,5)="(All)","",D10) -> 
C11: Establecimiento | D11: 999999999 - (All) | I11: =IF(OR(MID(D11,1,9)="999999999",MID(D11,1,9)="000000000"),"(All)",MID(D11,1,9)) -> (All) | M11: =LEN(MID(D11,12,90)) -> 6 | O11: =IF(MID(D11,13,5)="(All)","",D11) -> 
C12: Provincia | D12: 00 - (All) | I12: =IF(MID(D12,1,2)="00","(All)",MID(D12,1,2)) -> (All) | M12: =LEN(MID(D12,6,90)) -> 5 | O12: =IF(MID(D12,6,5)="(All)","",D12) -> 
C13: Distrito | D13: 0000 - (All) | I13: =IF(OR(MID(D13,1,4)="0000",MID(D13,3,2)="00"),"(All)",MID(D13,1,4)) -> (All) | M13: =LEN(MID(D13,8,90)) -> 5 | O13: =IF(MID(D13,8,5)="(All)","",D13) -> 
C14: Ejecutira | D14: 99 - (ALL) | I14: =IF(MID(D14,1,2)="99","(All)",MID(D14,1,2)) -> (All) | M14: =LEN(MID(D14,5,90)) -> 6 | O14: =IF(MID(D14,6,5)="(All)","",D14) -> 
C16: Año | D16: 2025 | I16: =+D16 -> 2025 | J16: =IF(I16="(Todas)"," ",I16) -> 2025
B20: 1 | C20: 1 | D20: 1 | E20: 0 | F20: 0 | G20: 0 | H20: 0 | I20: 0 | J20: 0 | K20: 0 | L20: 0 | M20: 0 | N20: =SUM(B20:M20) -> 3
B21: =IF(B20=1,"ENERO","") -> ENERO | C21: =IF(C20=1,"FEBRERO","") -> FEBRERO | D21: =IF(D20=1,"MARZO","") -> MARZO | E21: =IF(E20=1,"ABRIL","") ->  | F21: =IF(F20=1,"MAYO","") ->  | G21: =IF(G20=1,"JUNIO","") ->  | H21: =IF(H20=1,"JULIO","") ->  | I21: =IF(I20=1,"AGOSTO","") ->  | J21: =IF(J20=1,"SETIEMBRE","") ->  | K21: =IF(K20=1,"OCTUBRE","") ->  | L21: =IF(L20=1,"NOVIEMBRE","") ->  | M21: =IF(M20=1,"DICIEMBRE","") ->  | N21: =IF(B20=1,B21,IF(C20=1,C21,IF(D20=1,D21,IF(E20=1,E21,IF(F20=1,F21,IF(G20=1,G21,IF(H20=1,H21,IF(I20=1,I21,IF(J20=1,J21,IF(K20=1,K21,IF(L20=1,L21,IF(M20=1,M21,"")))))))))))) -> ENERO
N22: =IF(N20=1,N21,"") -> 
B23: 2 | C23: 4 | D23: 6 | N23: =MIN(B23:M23) -> 2 | O23: =MAX(B23:M23) -> 6 | P23: =MAX(C23:N23) -> 6
B24: =IF(B23=2,"ENE","") -> ENE | C24: =IF(C23=4,"FEB","") -> FEB | D24: =IF(D23=6,"MAR","") -> MAR | E24: =IF(E23=8,"ABR","") ->  | F24: =IF(F23=10,"MAY","") ->  | G24: =IF(G23=12,"JUN","") ->  | H24: =IF(H23=14,"JUL","") ->  | I24: =IF(I23=16,"AGO","") ->  | J24: =IF(J23=18,"SET","") ->  | K24: =IF(K23=20,"OCT","") ->  | L24: =IF(L23=22,"NOV","") ->  | M24: =IF(M23=24,"DIC","") ->  | N24: =IF(N23=B23,B24,IF(N23=C23,C24,IF(N23=D23,D24,IF(N23=E23,E24,IF(N23=F23,F24,IF(N23=G23,G24,IF(N23=H23,H58,IF(N23=I23,I24,IF(N23=J23,J24,IF(N23=K23,K24,IF(N23=L23,L24,IF(N23=M23,M24,"")))))))))))) -> ENE | O24: =IF(O23=C23,C24,IF(O23=D23,D24,IF(O23=E23,E24,IF(O23=F23,F24,IF(O23=G23,G24,IF(O23=H23,H24,IF(O23=I23,I24,IF(O23=J23,J24,IF(O23=K23,K24,IF(O23=L23,L24,IF(O23=M23,M24,""))))))))))) -> MAR | P24: =IF(P23=D23,D24,IF(P23=E23,E24,IF(P23=F23,F24,IF(P23=G23,G24,IF(P23=H23,H24,IF(P23=I23,I24,IF(P23=J23,J24,IF(P23=K23,K24,IF(P23=L23,L24,IF(P23=M23,M24,IF(P23=N23,N24,""))))))))))) -> MAR
N25: =CONCATENATE(N24," - ",O24) -> ENE - MAR
N26: =IF(N23=O23,N22,N25) -> ENE - MAR
A66: TUBERCU_01
A67: anno | B67: 2025
A68: cod_red | B68: 03
A69: codmic | B69: (Todas)
A70: cod_prov | B70: (Todas)
A71: coddist | B71: (Todas)
A72: cod_estab | B72: (Todas)
A73: cod_eje | B73: (Todas)
B75: Valores
A76: Etiquetas de fila | B76: BAS001 | C76: BAS002 | D76: BAS003 | E76: BAS004 | F76: BAS005 | G76: BAS006 | H76: BAS007 | I76: BAS008 | J76: BAS009 | K76: BAS010 | L76: BAS011 | M76: BAS012 | N76: BAS013 | O76: BAS014 | P76: BAS015 | Q76: BAS016 | R76: BAS017 | S76: BAS018 | T76: BAS019 | U76: BAS020 | V76: BAS021 | W76: BAS022 | X76: BAS023 | Y76: BAS024 | Z76: BAS025 | AA76: BAS026 | AB76: BAS027 | AC76: BAS028 | AD76: BAS029 | AE76: BAS030 | AF76: BAS031 | AG76: BAS032 | AH76: BAS033 | AI76: BAS034 | AJ76: BAS035 | AK76: BAS036 | AL76: BAS037 | AM76: BAS038 | AN76: BAS039 | AO76: BAS040 | AP76: BAS041 | AQ76: BAS042 | AR76: BAS043 | AS76: BAS044 | AT76: BAS045 | AU76: BAS046 | AV76: BAS047 | AW76: BAS048 | AX76: BAS049 | AY76: BAS050 | AZ76: BAS051 | BA76: BAS052 | BB76: BAS053 | BC76: BAS054 | BD76: BAS055 | BE76: BAS056 | BF76: BAS057 | BG76: BAS058 | BH76: BAS059 | BI76: BAS060 | BJ76: BAS061 | BK76: BAS062 | BL76: BAS063 | BM76: BAS064 | BN76: BAS065 | BO76: BAS066 | BP76: BAS067 | BQ76: BAS068 | BR76: BAS069 | BS76: BAS070 | BT76: BAS071 | BU76: BAS072 | BV76: BAS073 | BW76: BAS074 | BX76: BAS075 | BY76: BAS076 | BZ76: BAS077 | CA76: BAS078 | CB76: BAS079 | CC76: BAS080 | CD76: BAS081 | CE76: BAS082 | CF76: BAS083 | CG76: BAS084 | CH76: BAS085 | CI76: BAS086 | CJ76: BAS087 | CK76: BAS088 | CL76: BAS089 | CM76: BAS090 | CN76: BAS091 | CO76: BAS092 | CP76: BAS093 | CQ76: BAS094 | CR76: BAS095 | CS76: BAS096 | CT76: BAS097 | CU76: BAS098 | CV76: BAS099 | CW76: BAS100 | CX76: BAS101 | CY76: BAS102 | CZ76: BAS103 | DA76: BAS104 | DB76: BAS105 | DC76: BAS106 | DD76: BAS107 | DE76: BAS108 | DF76: BAS109 | DG76: BAS110 | DH76: BAS111 | DI76: BAS112 | DJ76: BAS113 | DK76: BAS114 | DL76: BAS115 | DM76: BAS116 | DN76: BAS117 | DO76: BAS118 | DP76: BAS119 | DQ76: BAS120 | DR76: BAS121 | DS76: BAS122 | DT76: BAS123 | DU76: BAS124 | DV76: BAS125 | DW76: BAS126 | DX76: BAS127 | DY76: BAS128 | DZ76: BAS129 | EA76: BAS130 | EB76: BAS131 | EC76: BAS132 | ED76: BAS133 | EE76: BAS134 | EF76: BAS135 | EG76: BAS136 | EH76: BAS137 | EI76: BAS138 | EJ76: BAS139 | EK76: BAS140 | EL76: BAS141 | EM76: BAS142 | EN76: BAS143 | EO76: BAS144 | EP76: BAS145 | EQ76: BAS146 | ER76: BAS147 | ES76: BAS148 | ET76: BAS149 | EU76: BAS150 | EV76: BAS151 | EW76: BAS152 | EX76: BAS153 | EY76: BAS154 | EZ76: BAS155 | FA76: BAS156 | FB76: BAS157 | FC76: BAS158 | FD76: BAS159 | FE76: BAS160 | FF76: BAS161 | FG76: BAS162 | FH76: BAS163 | FI76: BAS164 | FJ76: BAS165 | FK76: BAS166 | FL76: BAS167 | FM76: BAS168 | FN76: BAS169 | FO76: BAS170 | FP76: BAS171 | FQ76: BAS172 | FR76: BAS173 | FS76: BAS174 | FT76: BAS175 | FU76: BAS176 | FV76: BAS177 | FW76: BAS178 | FX76: BAS179 | FY76: BAS180 | FZ76: BAS181 | GA76: BAS182 | GB76: BAS183 | GC76: BAS184 | GD76: BAS185 | GE76: BAS186 | GF76: BAS187 | GG76: BAS188 | GH76: BAS189 | GI76: BAS190 | GJ76: BAS191 | GK76: BAS192 | GL76: BAS193 | GM76: BAS194 | GN76: BAS195 | GO76: BAS196 | GP76: BAS197 | GQ76: BAS198 | GR76: BAS199 | GS76: BAS200 | GT76: BAS201 | GU76: BAS202 | GV76: BAS203 | GW76: BAS204 | GX76: BAS205 | GY76: BAS206 | GZ76: BAS207 | HA76: BAS208 | HB76: BAS209 | HC76: BAS210 | HD76: BAS211 | HE76: BAS219 | HF76: BAS220 | HG76: BAS221 | HH76: BAS222 | HI76: BAS223 | HJ76: BAS224 | HK76: BAS225 | HL76: BAS226 | HM76: BAS227 | HN76: BAS228 | HO76: BAS229 | HP76: BAS230
A77: 1 | B77: 0 | C77: 0 | D77: 0 | E77: 0 | F77: 0 | G77: 0 | H77: 0 | I77: 0 | J77: 1 | K77: 0 | L77: 0 | M77: 0 | N77: 0 | O77: 0 | P77: 0 | Q77: 0 | R77: 0 | S77: 0 | T77: 8 | U77: 34 | V77: 2 | W77: 108 | X77: 3 | Y77: 1 | Z77: 1 | AA77: 21 | AB77: 0 | AC77: 0 | AD77: 0 | AE77: 0 | AF77: 0 | AG77: 0 | AH77: 0 | AI77: 0 | AJ77: 0 | AK77: 0 | AL77: 0 | AM77: 0 | AN77: 0 | AO77: 0 | AP77: 0 | AQ77: 0 | AR77: 0 | AS77: 0 | AT77: 0 | AU77: 0 | AV77: 0 | AW77: 0 | AX77: 0 | AY77: 0 | AZ77: 0 | BA77: 0 | BB77: 0 | BC77: 0 | BD77: 0 | BE77: 0 | BF77: 0 | BG77: 0 | BH77: 0 | BI77: 0 | BJ77: 0 | BK77: 0 | BL77: 0 | BM77: 0 | BN77: 0 | BO77: 0 | BP77: 7 | BQ77: 5 | BR77: 0 | BS77: 0 | BT77: 5 | BU77: 0 | BV77: 0 | BW77: 0 | BX77: 0 | BY77: 47 | BZ77: 34 | CA77: 0 | CB77: 0 | CC77: 41 | CD77: 41 | CE77: 0 | CF77: 0 | CG77: 0 | CH77: 0 | CI77: 0 | CJ77: 0 | CK77: 0 | CL77: 0 | CM77: 0 | CN77: 0 | CO77: 0 | CP77: 0 | CQ77: 0 | CR77: 0 | CS77: 0 | CT77: 0 | CU77: 0 | CV77: 0 | CW77: 115 | CX77: 114 | CY77: 47 | CZ77: 34 | DA77: 0 | DB77: 0 | DC77: 41 | DD77: 41 | DE77: 0 | DF77: 0 | DG77: 0 | DH77: 0 | DI77: 0 | DJ77: 0 | DK77: 1 | DL77: 3 | DM77: 2 | DN77: 0 | DO77: 0 | DP77: 0 | DQ77: 0 | DR77: 0 | DS77: 0 | DT77: 0 | DU77: 0 | DV77: 0 | DW77: 0 | DX77: 0 | DY77: 0 | DZ77: 0 | EA77: 0 | EB77: 0 | EC77: 0 | ED77: 0 | EE77: 0 | EF77: 0 | EG77: 22 | EH77: 41 | EI77: 5 | EJ77: 15 | EK77: 24 | EL77: 56 | EM77: 0 | EN77: 0 | EO77: 0 | EP77: 0 | EQ77: 0 | ER77: 0 | ES77: 11 | ET77: 18 | EU77: 33 | EV77: 30 | EW77: 57 | EX77: 38 | EY77: 3 | EZ77: 4 | FA77: 0 | FB77: 1 | FC77: 0 | FD77: 0 | FE77: 5 | FF77: 4 | FG77: 21 | FH77: 33 | FI77: 6 | FJ77: 0 | FK77: 0 | FL77: 0 | FM77: 0 | FN77: 0 | FO77: 4 | FP77: 7 | FQ77: 1 | FR77: 1 | FS77: 1 | FT77: 1 | FU77: 0 | FV77: 0 | FW77: 0 | FX77: 0 | FY77: 75 | FZ77: 116 | GA77: 60 | GB77: 99 | GC77: 1 | GD77: 0 | GE77: 0 | GF77: 0 | GG77: 74 | GH77: 59 | GI77: 56 | GJ77: 43 | GK77: 2 | GL77: 0 | GM77: 58 | GN77: 46 | GO77: 0 | GP77: 0 | GQ77: 49 | GR77: 37 | GS77: 0 | GT77: 0 | GU77: 99 | GV77: 146 | GW77: 98 | GX77: 146 | GY77: 0 | GZ77: 0 | HA77: 102 | HB77: 131 | HC77: 2 | HD77: 4 | HE77: 0 | HF77: 0 | HG77: 0 | HH77: 0 | HI77: 0 | HJ77: 0 | HK77: 0 | HL77: 0 | HM77: 0 | HN77: 0 | HO77: 0 | HP77: 0
A78: 2 | B78: 0 | C78: 0 | D78: 0 | E78: 0 | F78: 0 | G78: 0 | H78: 0 | I78: 0 | J78: 0 | K78: 0 | L78: 0 | M78: 0 | N78: 0 | O78: 1 | P78: 0 | Q78: 0 | R78: 0 | S78: 0 | T78: 2 | U78: 34 | V78: 0 | W78: 74 | X78: 0 | Y78: 0 | Z78: 1 | AA78: 9 | AB78: 0 | AC78: 0 | AD78: 0 | AE78: 0 | AF78: 0 | AG78: 0 | AH78: 0 | AI78: 0 | AJ78: 0 | AK78: 0 | AL78: 0 | AM78: 0 | AN78: 0 | AO78: 0 | AP78: 0 | AQ78: 0 | AR78: 0 | AS78: 0 | AT78: 0 | AU78: 0 | AV78: 0 | AW78: 0 | AX78: 0 | AY78: 0 | AZ78: 0 | BA78: 0 | BB78: 0 | BC78: 0 | BD78: 0 | BE78: 0 | BF78: 0 | BG78: 0 | BH78: 0 | BI78: 0 | BJ78: 0 | BK78: 0 | BL78: 0 | BM78: 0 | BN78: 0 | BO78: 0 | BP78: 3 | BQ78: 1 | BR78: 0 | BS78: 0 | BT78: 4 | BU78: 0 | BV78: 0 | BW78: 0 | BX78: 1 | BY78: 40 | BZ78: 26 | CA78: 0 | CB78: 0 | CC78: 49 | CD78: 42 | CE78: 3 | CF78: 0 | CG78: 0 | CH78: 0 | CI78: 0 | CJ78: 0 | CK78: 0 | CL78: 0 | CM78: 0 | CN78: 0 | CO78: 0 | CP78: 0 | CQ78: 0 | CR78: 0 | CS78: 0 | CT78: 0 | CU78: 0 | CV78: 0 | CW78: 150 | CX78: 124 | CY78: 40 | CZ78: 26 | DA78: 0 | DB78: 0 | DC78: 49 | DD78: 42 | DE78: 3 | DF78: 0 | DG78: 0 | DH78: 0 | DI78: 0 | DJ78: 0 | DK78: 21 | DL78: 16 | DM78: 0 | DN78: 1 | DO78: 0 | DP78: 0 | DQ78: 0 | DR78: 0 | DS78: 0 | DT78: 0 | DU78: 0 | DV78: 0 | DW78: 0 | DX78: 0 | DY78: 0 | DZ78: 0 | EA78: 0 | EB78: 0 | EC78: 0 | ED78: 0 | EE78: 0 | EF78: 0 | EG78: 18 | EH78: 41 | EI78: 4 | EJ78: 13 | EK78: 10 | EL78: 22 | EM78: 0 | EN78: 0 | EO78: 0 | EP78: 0 | EQ78: 0 | ER78: 0 | ES78: 7 | ET78: 12 | EU78: 38 | EV78: 46 | EW78: 48 | EX78: 46 | EY78: 6 | EZ78: 8 | FA78: 0 | FB78: 1 | FC78: 0 | FD78: 0 | FE78: 0 | FF78: 4 | FG78: 25 | FH78: 42 | FI78: 2 | FJ78: 1 | FK78: 0 | FL78: 0 | FM78: 0 | FN78: 0 | FO78: 11 | FP78: 11 | FQ78: 1 | FR78: 1 | FS78: 0 | FT78: 0 | FU78: 0 | FV78: 1 | FW78: 1 | FX78: 1 | FY78: 93 | FZ78: 99 | GA78: 78 | GB78: 85 | GC78: 0 | GD78: 1 | GE78: 0 | GF78: 0 | GG78: 76 | GH78: 69 | GI78: 57 | GJ78: 50 | GK78: 8 | GL78: 3 | GM78: 65 | GN78: 52 | GO78: 0 | GP78: 0 | GQ78: 56 | GR78: 48 | GS78: 0 | GT78: 0 | GU78: 98 | GV78: 113 | GW78: 98 | GX78: 115 | GY78: 4 | GZ78: 3 | HA78: 92 | HB78: 117 | HC78: 6 | HD78: 4 | HE78: 0 | HF78: 0 | HG78: 0 | HH78: 0 | HI78: 0 | HJ78: 0 | HK78: 0 | HL78: 0 | HM78: 0 | HN78: 0 | HO78: 0 | HP78: 0
A79: 3 | B79: 0 | C79: 0 | D79: 0 | E79: 0 | F79: 0 | G79: 0 | H79: 0 | I79: 0 | J79: 0 | K79: 0 | L79: 0 | M79: 0 | N79: 0 | O79: 0 | P79: 0 | Q79: 0 | R79: 0 | S79: 0 | T79: 0 | U79: 94 | V79: 2 | W79: 236 | X79: 0 | Y79: 1 | Z79: 4 | AA79: 21 | AB79: 0 | AC79: 0 | AD79: 0 | AE79: 0 | AF79: 0 | AG79: 0 | AH79: 0 | AI79: 0 | AJ79: 0 | AK79: 0 | AL79: 0 | AM79: 0 | AN79: 0 | AO79: 0 | AP79: 0 | AQ79: 0 | AR79: 0 | AS79: 0 | AT79: 0 | AU79: 0 | AV79: 0 | AW79: 0 | AX79: 0 | AY79: 0 | AZ79: 0 | BA79: 0 | BB79: 0 | BC79: 0 | BD79: 0 | BE79: 0 | BF79: 0 | BG79: 0 | BH79: 0 | BI79: 0 | BJ79: 0 | BK79: 0 | BL79: 0 | BM79: 0 | BN79: 0 | BO79: 0 | BP79: 12 | BQ79: 1 | BR79: 0 | BS79: 0 | BT79: 1 | BU79: 0 | BV79: 0 | BW79: 0 | BX79: 3 | BY79: 87 | BZ79: 84 | CA79: 2 | CB79: 0 | CC79: 78 | CD79: 73 | CE79: 6 | CF79: 3 | CG79: 0 | CH79: 0 | CI79: 0 | CJ79: 0 | CK79: 8 | CL79: 2 | CM79: 0 | CN79: 0 | CO79: 2 | CP79: 2 | CQ79: 0 | CR79: 0 | CS79: 0 | CT79: 0 | CU79: 0 | CV79: 0 | CW79: 258 | CX79: 228 | CY79: 87 | CZ79: 84 | DA79: 2 | DB79: 0 | DC79: 78 | DD79: 73 | DE79: 6 | DF79: 3 | DG79: 0 | DH79: 0 | DI79: 0 | DJ79: 0 | DK79: 35 | DL79: 27 | DM79: 8 | DN79: 4 | DO79: 1 | DP79: 0 | DQ79: 0 | DR79: 0 | DS79: 0 | DT79: 0 | DU79: 0 | DV79: 0 | DW79: 0 | DX79: 0 | DY79: 0 | DZ79: 0 | EA79: 0 | EB79: 0 | EC79: 0 | ED79: 0 | EE79: 0 | EF79: 0 | EG79: 10 | EH79: 38 | EI79: 4 | EJ79: 21 | EK79: 13 | EL79: 45 | EM79: 0 | EN79: 0 | EO79: 0 | EP79: 0 | EQ79: 0 | ER79: 0 | ES79: 12 | ET79: 12 | EU79: 95 | EV79: 75 | EW79: 117 | EX79: 100 | EY79: 11 | EZ79: 8 | FA79: 1 | FB79: 2 | FC79: 0 | FD79: 0 | FE79: 0 | FF79: 8 | FG79: 67 | FH79: 62 | FI79: 1 | FJ79: 0 | FK79: 0 | FL79: 0 | FM79: 0 | FN79: 0 | FO79: 11 | FP79: 8 | FQ79: 7 | FR79: 5 | FS79: 0 | FT79: 0 | FU79: 0 | FV79: 1 | FW79: 2 | FX79: 1 | FY79: 115 | FZ79: 95 | GA79: 60 | GB79: 57 | GC79: 1 | GD79: 0 | GE79: 0 | GF79: 0 | GG79: 142 | GH79: 107 | GI79: 110 | GJ79: 91 | GK79: 6 | GL79: 2 | GM79: 60 | GN79: 51 | GO79: 0 | GP79: 0 | GQ79: 105 | GR79: 87 | GS79: 0 | GT79: 0 | GU79: 120 | GV79: 108 | GW79: 120 | GX79: 108 | GY79: 6 | GZ79: 7 | HA79: 124 | HB79: 104 | HC79: 9 | HD79: 8 | HE79: 0 | HF79: 0 | HG79: 0 | HH79: 0 | HI79: 0 | HJ79: 0 | HK79: 0 | HL79: 0 | HM79: 0 | HN79: 0 | HO79: 0 | HP79: 0
A80: Total general | B80: 0 | C80: 0 | D80: 0 | E80: 0 | F80: 0 | G80: 0 | H80: 0 | I80: 0 | J80: 1 | K80: 0 | L80: 0 | M80: 0 | N80: 0 | O80: 1 | P80: 0 | Q80: 0 | R80: 0 | S80: 0 | T80: 10 | U80: 162 | V80: 4 | W80: 418 | X80: 3 | Y80: 2 | Z80: 6 | AA80: 51 | AB80: 0 | AC80: 0 | AD80: 0 | AE80: 0 | AF80: 0 | AG80: 0 | AH80: 0 | AI80: 0 | AJ80: 0 | AK80: 0 | AL80: 0 | AM80: 0 | AN80: 0 | AO80: 0 | AP80: 0 | AQ80: 0 | AR80: 0 | AS80: 0 | AT80: 0 | AU80: 0 | AV80: 0 | AW80: 0 | AX80: 0 | AY80: 0 | AZ80: 0 | BA80: 0 | BB80: 0 | BC80: 0 | BD80: 0 | BE80: 0 | BF80: 0 | BG80: 0 | BH80: 0 | BI80: 0 | BJ80: 0 | BK80: 0 | BL80: 0 | BM80: 0 | BN80: 0 | BO80: 0 | BP80: 22 | BQ80: 7 | BR80: 0 | BS80: 0 | BT80: 10 | BU80: 0 | BV80: 0 | BW80: 0 | BX80: 4 | BY80: 174 | BZ80: 144 | CA80: 2 | CB80: 0 | CC80: 168 | CD80: 156 | CE80: 9 | CF80: 3 | CG80: 0 | CH80: 0 | CI80: 0 | CJ80: 0 | CK80: 8 | CL80: 2 | CM80: 0 | CN80: 0 | CO80: 2 | CP80: 2 | CQ80: 0 | CR80: 0 | CS80: 0 | CT80: 0 | CU80: 0 | CV80: 0 | CW80: 523 | CX80: 466 | CY80: 174 | CZ80: 144 | DA80: 2 | DB80: 0 | DC80: 168 | DD80: 156 | DE80: 9 | DF80: 3 | DG80: 0 | DH80: 0 | DI80: 0 | DJ80: 0 | DK80: 57 | DL80: 46 | DM80: 10 | DN80: 5 | DO80: 1 | DP80: 0 | DQ80: 0 | DR80: 0 | DS80: 0 | DT80: 0 | DU80: 0 | DV80: 0 | DW80: 0 | DX80: 0 | DY80: 0 | DZ80: 0 | EA80: 0 | EB80: 0 | EC80: 0 | ED80: 0 | EE80: 0 | EF80: 0 | EG80: 50 | EH80: 120 | EI80: 13 | EJ80: 49 | EK80: 47 | EL80: 123 | EM80: 0 | EN80: 0 | EO80: 0 | EP80: 0 | EQ80: 0 | ER80: 0 | ES80: 30 | ET80: 42 | EU80: 166 | EV80: 151 | EW80: 222 | EX80: 184 | EY80: 20 | EZ80: 20 | FA80: 1 | FB80: 4 | FC80: 0 | FD80: 0 | FE80: 5 | FF80: 16 | FG80: 113 | FH80: 137 | FI80: 9 | FJ80: 1 | FK80: 0 | FL80: 0 | FM80: 0 | FN80: 0 | FO80: 26 | FP80: 26 | FQ80: 9 | FR80: 7 | FS80: 1 | FT80: 1 | FU80: 0 | FV80: 2 | FW80: 3 | FX80: 2 | FY80: 283 | FZ80: 310 | GA80: 198 | GB80: 241 | GC80: 2 | GD80: 1 | GE80: 0 | GF80: 0 | GG80: 292 | GH80: 235 | GI80: 223 | GJ80: 184 | GK80: 16 | GL80: 5 | GM80: 183 | GN80: 149 | GO80: 0 | GP80: 0 | GQ80: 210 | GR80: 172 | GS80: 0 | GT80: 0 | GU80: 317 | GV80: 367 | GW80: 316 | GX80: 369 | GY80: 10 | GZ80: 10 | HA80: 318 | HB80: 352 | HC80: 17 | HD80: 16 | HE80: 0 | HF80: 0 | HG80: 0 | HH80: 0 | HI80: 0 | HJ80: 0 | HK80: 0 | HL80: 0 | HM80: 0 | HN80: 0 | HO80: 0 | HP80: 0
A95: TOTAL
A96: =COUNT(A77:A93) -> 3 | B96: =SUM(B77:B93) -> 0 | C96: =SUM(C77:C93) -> 0 | D96: 0 | E96: 0 | F96: 0 | G96: 0 | H96: 0 | I96: 0 | J96: 2 | K96: 0 | L96: 0 | M96: 0 | N96: 0 | O96: 2 | P96: 0 | Q96: 0 | R96: 0 | S96: 0 | T96: 20 | U96: 324 | V96: 8 | W96: 836 | X96: 6 | Y96: 4 | Z96: 12 | AA96: 102 | AB96: 0 | AC96: 0 | AD96: 0 | AE96: 0 | AF96: 0 | AG96: 0 | AH96: 0 | AI96: 0 | AJ96: 0 | AK96: 0 | AL96: 0 | AM96: 0 | AN96: 0 | AO96: 0 | AP96: 0 | AQ96: 0 | AR96: 0 | AS96: 0 | AT96: 0 | AU96: 0 | AV96: 0 | AW96: 0 | AX96: 0 | AY96: 0 | AZ96: 0 | BA96: 0 | BB96: 0 | BC96: 0 | BD96: 0 | BE96: 0 | BF96: 0 | BG96: 0 | BH96: 0 | BI96: 0 | BJ96: 0 | BK96: 0 | BL96: 0 | BM96: 0 | BN96: 0 | BO96: =SUM(BO77:BO93) -> 0 | BP96: 44 | BQ96: 14 | BR96: 0 | BS96: 0 | BT96: 20 | BU96: 0 | BV96: 0 | BW96: 0 | BX96: 8 | BY96: 348 | BZ96: 288 | CA96: 4 | CB96: 0 | CC96: 336 | CD96: 312 | CE96: 18 | CF96: 6 | CG96: 0 | CH96: 0 | CI96: 0 | CJ96: 0 | CK96: 16 | CL96: 4 | CM96: 0 | CN96: 0 | CO96: 4 | CP96: 4 | CQ96: 0 | CR96: 0 | CS96: 0 | CT96: 0 | CU96: 0 | CV96: 0 | CW96: 1046 | CX96: 932 | CY96: 348 | CZ96: 288 | DA96: 4 | DB96: 0 | DC96: 336 | DD96: 312 | DE96: 18 | DF96: 6 | DG96: 0 | DH96: 0 | DI96: 0 | DJ96: 0 | DK96: 114 | DL96: 92 | DM96: 20 | DN96: 10 | DO96: 2 | DP96: 0 | DQ96: 0 | DR96: 0 | DS96: 0 | DT96: 0 | DU96: 0 | DV96: 0 | DW96: 0 | DX96: 0 | DY96: 0 | DZ96: 0 | EA96: =SUM(EA77:EA93) -> 0 | EB96: 0 | EC96: 0 | ED96: 0 | EE96: 0 | EF96: 0 | EG96: 100 | EH96: 240 | EI96: 26 | EJ96: 98 | EK96: 94 | EL96: 246 | EM96: 0 | EN96: 0 | EO96: 0 | EP96: 0 | EQ96: 0 | ER96: 0 | ES96: 60 | ET96: 84 | EU96: 332 | EV96: 302 | EW96: 444 | EX96: 368 | EY96: 40 | EZ96: 40 | FA96: 2 | FB96: 8 | FC96: 0 | FD96: 0 | FE96: 10 | FF96: 32 | FG96: 226 | FH96: 274 | FI96: 18 | FJ96: 2 | FK96: 0 | FL96: 0 | FM96: 0 | FN96: 0 | FO96: 52 | FP96: 52 | FQ96: 18 | FR96: 14 | FS96: 2 | FT96: 2 | FU96: 0 | FV96: 4 | FW96: 6 | FX96: 4 | FY96: 566 | FZ96: 620 | GA96: 396 | GB96: 482 | GC96: 4 | GD96: 2 | GE96: 0 | GF96: 0 | GG96: 584 | GH96: 470 | GI96: 446 | GJ96: 368 | GK96: 32 | GL96: 10 | GM96: =SUM(GM77:GM93) -> 366 | GN96: 298 | GO96: 0 | GP96: 0 | GQ96: 420 | GR96: 344 | GS96: 0 | GT96: 0 | GU96: 634 | GV96: 734 | GW96: 632 | GX96: 738 | GY96: 20 | GZ96: 20 | HA96: 636 | HB96: 704 | HC96: 34 | HD96: 32 | HE96: 0 | HF96: 0 | HG96: 0 | HH96: 0 | HI96: 0 | HJ96: 0 | HK96: 0 | HL96: 0 | HM96: 0 | HN96: 0 | HO96: 0 | HP96: 0 | HQ96: 0 | HR96: 0 | HS96: 0 | HT96: 0 | HU96: 0 | HV96: 0 | HW96: 0 | HX96: 0
A97: =CONCATENATE(A77,"-",A78,"-",A79,"-",A80,"-",A81,"-",A82,"-",A83,"-",A84,"-",A85,"-",A86,"-",A87,"-",A88) -> 1-2-3-Total general--------
B98: BAS001 | C98: BAS002 | D98: BAS003 | E98: BAS004 | F98: BAS005 | G98: BAS006 | H98: BAS007 | I98: BAS008 | J98: BAS009 | K98: BAS010 | L98: BAS011 | M98: BAS012 | N98: BAS013 | O98: BAS014 | P98: BAS015 | Q98: BAS016 | R98: BAS017 | S98: BAS018 | T98: BAS019 | U98: BAS020 | V98: BAS021 | W98: BAS022 | X98: BAS023 | Y98: BAS024 | Z98: BAS025 | AA98: BAS026 | AB98: BAS027 | AC98: BAS028 | AD98: BAS029 | AE98: BAS030 | AF98: BAS031 | AG98: BAS032 | AH98: BAS033 | AI98: BAS034 | AJ98: BAS035 | AK98: BAS036 | AL98: BAS037 | AM98: BAS038 | AN98: BAS039 | AO98: BAS040 | AP98: BAS041 | AQ98: BAS042 | AR98: BAS043 | AS98: BAS044 | AT98: BAS045 | AU98: BAS046 | AV98: BAS047 | AW98: BAS048 | AX98: BAS049 | AY98: BAS050 | AZ98: BAS051 | BA98: BAS052 | BB98: BAS053 | BC98: BAS054 | BD98: BAS055 | BE98: BAS056 | BF98: BAS057 | BG98: BAS058 | BH98: BAS059 | BI98: BAS060 | BJ98: BAS061 | BK98: BAS062 | BL98: BAS063 | BM98: BAS064 | BN98: BAS065 | BO98: BAS066 | BP98: BAS067 | BQ98: BAS068 | BR98: BAS069 | BS98: BAS070 | BT98: BAS071 | BU98: BAS072 | BV98: BAS073 | BW98: BAS074 | BX98: BAS075 | BY98: BAS076 | BZ98: BAS077 | CA98: BAS078 | CB98: BAS079 | CC98: BAS080 | CD98: BAS081 | CE98: BAS082 | CF98: BAS083 | CG98: BAS084 | CH98: BAS085 | CI98: BAS086 | CJ98: BAS087 | CK98: BAS088 | CL98: BAS089 | CM98: BAS090 | CN98: BAS091 | CO98: BAS092 | CP98: BAS093 | CQ98: BAS094 | CR98: BAS095 | CS98: BAS096 | CT98: BAS097 | CU98: BAS098 | CV98: BAS099 | CW98: BAS100 | CX98: BAS101 | CY98: BAS102 | CZ98: BAS103 | DA98: BAS104 | DB98: BAS105 | DC98: BAS106 | DD98: BAS107 | DE98: BAS108 | DF98: BAS109 | DG98: BAS110 | DH98: BAS111 | DI98: BAS112 | DJ98: BAS113 | DK98: BAS114 | DL98: BAS115 | DM98: BAS116 | DN98: BAS117 | DO98: BAS118 | DP98: BAS119 | DQ98: BAS120 | DR98: BAS121 | DS98: BAS122 | DT98: BAS123 | DU98: BAS124 | DV98: BAS125 | DW98: BAS126 | DX98: BAS127 | DY98: BAS128 | DZ98: BAS129 | EA98: BAS130 | EB98: BAS131 | EC98: BAS132 | ED98: BAS133 | EE98: BAS134 | EF98: BAS135 | EG98: BAS136 | EH98: BAS137 | EI98: BAS138 | EJ98: BAS139 | EK98: BAS140 | EL98: BAS141 | EM98: BAS142 | EN98: BAS143 | EO98: BAS144 | EP98: BAS145 | EQ98: BAS146 | ER98: BAS147 | ES98: BAS148 | ET98: BAS149 | EU98: BAS150 | EV98: BAS151 | EW98: BAS152 | EX98: BAS153 | EY98: BAS154 | EZ98: BAS155 | FA98: BAS156 | FB98: BAS157 | FC98: BAS158 | FD98: BAS159 | FE98: BAS160 | FF98: BAS161 | FG98: BAS162 | FH98: BAS163 | FI98: BAS164 | FJ98: BAS165 | FK98: BAS166 | FL98: BAS167 | FM98: BAS168 | FN98: BAS169 | FO98: BAS170 | FP98: BAS171 | FQ98: BAS172 | FR98: BAS173 | FS98: BAS174 | FT98: BAS175 | FU98: BAS176 | FV98: BAS177 | FW98: BAS178 | FX98: BAS179 | FY98: BAS180 | FZ98: BAS181 | GA98: BAS182 | GB98: BAS183 | GC98: BAS184 | GD98: BAS185 | GE98: BAS186 | GF98: BAS187 | GG98: BAS188 | GH98: BAS189 | GI98: BAS190 | GJ98: BAS191 | GK98: BAS192 | GL98: BAS193 | GM98: BAS194 | GN98: BAS195 | GO98: BAS196 | GP98: BAS197 | GQ98: BAS198 | GR98: BAS199 | GS98: BAS200 | GT98: BAS201 | GU98: BAS202 | GV98: BAS203 | GW98: BAS204 | GX98: BAS205 | GY98: BAS206 | GZ98: BAS207 | HA98: BAS208 | HB98: BAS209 | HC98: BAS210 | HD98: BAS211 | HE98: BAS212 | HF98: BAS213 | HG98: BAS214 | HH98: BAS215 | HI98: BAS216 | HJ98: BAS217 | HK98: BAS218 | HL98: BAS219 | HM98: BAS220 | HN98: BAS221 | HO98: BAS222 | HP98: BAS223 | HQ98: BAS224 | HR98: BAS225 | HS98: BAS226 | HT98: BAS227 | HU98: BAS228 | HV98: BAS229 | HW98: BAS230
B99: =IF(B98=B76,"SI","NO") -> SI | C99: =IF(C98=C76,"SI","NO") -> SI | D99: SI | E99: SI | F99: SI | G99: SI | H99: SI | I99: SI | J99: SI | K99: SI | L99: SI | M99: SI | N99: SI | O99: SI | P99: SI | Q99: SI | R99: SI | S99: SI | T99: SI | U99: SI | V99: SI | W99: SI | X99: SI | Y99: SI | Z99: SI | AA99: SI | AB99: SI | AC99: SI | AD99: SI | AE99: SI | AF99: SI | AG99: SI | AH99: SI | AI99: SI | AJ99: SI | AK99: SI | AL99: SI | AM99: SI | AN99: SI | AO99: SI | AP99: SI | AQ99: SI | AR99: SI | AS99: SI | AT99: SI | AU99: SI | AV99: SI | AW99: SI | AX99: SI | AY99: SI | AZ99: SI | BA99: SI | BB99: SI | BC99: SI | BD99: SI | BE99: SI | BF99: SI | BG99: SI | BH99: SI | BI99: SI | BJ99: SI | BK99: SI | BL99: SI | BM99: SI | BN99: SI | BO99: =IF(BO98=BO76,"SI","NO") -> SI | BP99: SI | BQ99: SI | BR99: SI | BS99: SI | BT99: SI | BU99: SI | BV99: SI | BW99: SI | BX99: SI | BY99: SI | BZ99: SI | CA99: SI | CB99: SI | CC99: SI | CD99: SI | CE99: SI | CF99: SI | CG99: SI | CH99: SI | CI99: SI | CJ99: SI | CK99: SI | CL99: SI | CM99: SI | CN99: SI | CO99: SI | CP99: SI | CQ99: SI | CR99: SI | CS99: SI | CT99: SI | CU99: SI | CV99: SI | CW99: SI | CX99: SI | CY99: SI | CZ99: SI | DA99: SI | DB99: SI | DC99: SI | DD99: SI | DE99: SI | DF99: SI | DG99: SI | DH99: SI | DI99: SI | DJ99: SI | DK99: SI | DL99: SI | DM99: SI | DN99: SI | DO99: SI | DP99: SI | DQ99: SI | DR99: SI | DS99: SI | DT99: SI | DU99: SI | DV99: SI | DW99: SI | DX99: SI | DY99: SI | DZ99: SI | EA99: =IF(EA98=EA76,"SI","NO") -> SI | EB99: SI | EC99: SI | ED99: SI | EE99: SI | EF99: SI | EG99: SI | EH99: SI | EI99: SI | EJ99: SI | EK99: SI | EL99: SI | EM99: SI | EN99: SI | EO99: SI | EP99: SI | EQ99: SI | ER99: SI | ES99: SI | ET99: SI | EU99: SI | EV99: SI | EW99: SI | EX99: SI | EY99: SI | EZ99: SI | FA99: SI | FB99: SI | FC99: SI | FD99: SI | FE99: SI | FF99: SI | FG99: SI | FH99: SI | FI99: SI | FJ99: SI | FK99: SI | FL99: SI | FM99: SI | FN99: SI | FO99: SI | FP99: SI | FQ99: SI | FR99: SI | FS99: SI | FT99: SI | FU99: SI | FV99: SI | FW99: SI | FX99: SI | FY99: SI | FZ99: SI | GA99: SI | GB99: SI | GC99: SI | GD99: SI | GE99: SI | GF99: SI | GG99: SI | GH99: SI | GI99: SI | GJ99: SI | GK99: SI | GL99: SI | GM99: =IF(GM98=GM76,"SI","NO") -> SI | GN99: SI | GO99: SI | GP99: SI | GQ99: SI | GR99: SI | GS99: SI | GT99: SI | GU99: SI | GV99: SI | GW99: SI | GX99: SI | GY99: SI | GZ99: SI | HA99: SI | HB99: SI | HC99: SI | HD99: SI | HE99: NO | HF99: NO | HG99: NO | HH99: NO | HI99: NO | HJ99: NO | HK99: NO | HL99: NO | HM99: NO | HN99: NO | HO99: NO | HP99: NO | HQ99: NO | HR99: NO | HS99: NO | HT99: NO | HU99: NO | HV99: NO | HW99: NO | HX99: =IF(HW98=HX76,"SI","NO") -> NO
A102: TUBERCU_02
A103: anno | B103: 2025
A104: cod_red | B104: 03
A105: codmic | B105: (Todas)
A106: cod_prov | B106: (Todas)
A107: coddist | B107: (Todas)
A108: cod_estab | B108: (Todas)
A109: cod_eje | B109: (Todas)
B111: Valores
A112: Etiquetas de fila | B112: BAS001 | C112: BAS002 | D112: BAS003 | E112: BAS004 | F112: BAS005 | G112: BAS006 | H112: BAS007 | I112: BAS008 | J112: BAS009 | K112: BAS010 | L112: BAS011 | M112: BAS012 | N112: BAS013 | O112: BAS014 | P112: BAS015 | Q112: BAS016 | R112: BAS017 | S112: BAS018 | T112: BAS019 | U112: BAS020 | V112: BAS021 | W112: BAS022 | X112: BAS023 | Y112: BAS024 | Z112: BAS025 | AA112: BAS026 | AB112: BAS027 | AC112: BAS028 | AD112: BAS029 | AE112: BAS030 | AF112: BAS031 | AG112: BAS032 | AH112: BAS033 | AI112: BAS034 | AJ112: BAS035 | AK112: BAS036 | AL112: BAS037 | AM112: BAS038 | AN112: BAS039 | AO112: BAS040 | AP112: BAS041 | AQ112: BAS042 | AR112: BAS043 | AS112: BAS044 | AT112: BAS045 | AU112: BAS046 | AV112: BAS047 | AW112: BAS048 | AX112: BAS049 | AY112: BAS050 | AZ112: BAS051 | BA112: BAS052 | BB112: BAS053 | BC112: BAS054 | BD112: BAS055 | BE112: BAS056 | BF112: BAS057 | BG112: BAS058 | BH112: BAS059 | BI112: BAS060 | BJ112: BAS061 | BK112: BAS062 | BL112: BAS063 | BM112: BAS064 | BN112: BAS065 | BO112: BAS066 | BP112: BAS067 | BQ112: BAS068 | BR112: BAS069 | BS112: BAS070 | BT112: BAS071 | BU112: BAS072 | BV112: BAS073 | BW112: BAS074 | BX112: BAS075 | BY112: BAS076 | BZ112: BAS077 | CA112: BAS078 | CB112: BAS079 | CC112: BAS080 | CD112: BAS081 | CE112: BAS082 | CF112: BAS083 | CG112: BAS084 | CH112: BAS085 | CI112: BAS086 | CJ112: BAS087 | CK112: BAS088 | CL112: BAS089 | CM112: BAS090 | CN112: BAS091 | CO112: BAS092 | CP112: BAS093 | CQ112: BAS094 | CR112: BAS095 | CS112: BAS096 | CT112: BAS097 | CU112: BAS098 | CV112: BAS099 | CW112: BAS100 | CX112: BAS101 | CY112: BAS102 | CZ112: BAS103 | DA112: BAS104 | DB112: BAS105 | DC112: BAS106 | DD112: BAS107 | DE112: BAS108 | DF112: BAS109 | DG112: BAS110 | DH112: BAS111 | DI112: BAS112 | DJ112: BAS113 | DK112: BAS114 | DL112: BAS115 | DM112: BAS116 | DN112: BAS117 | DO112: BAS118 | DP112: BAS119 | DQ112: BAS120 | DR112: BAS121 | DS112: BAS122 | DT112: BAS123 | DU112: BAS124 | DV112: BAS125 | DW112: BAS126 | DX112: BAS127 | DY112: BAS128 | DZ112: BAS129 | EA112: BAS130 | EB112: BAS131 | EC112: BAS132 | ED112: BAS133 | EE112: BAS134 | EF112: BAS135 | EG112: BAS136 | EH112: BAS137 | EI112: BAS138 | EJ112: BAS139 | EK112: BAS140 | EL112: BAS141 | EM112: BAS142 | EN112: BAS143 | EO112: BAS144 | EP112: BAS145 | EQ112: BAS146 | ER112: BAS147 | ES112: BAS148 | ET112: BAS149 | EU112: BAS150 | EV112: BAS151 | EW112: BAS152 | EX112: BAS153 | EY112: BAS154 | EZ112: BAS155 | FA112: BAS156 | FB112: BAS157 | FC112: BAS158 | FD112: BAS159 | FE112: BAS160 | FF112: BAS161 | FG112: BAS162 | FH112: BAS163 | FI112: BAS164 | FJ112: BAS165 | FK112: BAS166 | FL112: BAS167 | FM112: BAS168 | FN112: BAS169 | FO112: BAS170 | FP112: BAS171 | FQ112: BAS172 | FR112: BAS173 | FS112: BAS174 | FT112: BAS175 | FU112: BAS176 | FV112: BAS177 | FW112: BAS178 | FX112: BAS179 | FY112: BAS180 | FZ112: BAS181 | GA112: BAS182 | GB112: BAS183 | GC112: BAS184 | GD112: BAS185 | GE112: BAS186 | GF112: BAS187 | GG112: BAS188 | GH112: BAS189 | GI112: BAS190 | GJ112: BAS191 | GK112: BAS192 | GL112: BAS193 | GM112: BAS194 | GN112: BAS195 | GO112: BAS196 | GP112: BAS197 | GQ112: BAS198 | GR112: BAS199 | GS112: BAS200 | GT112: BAS201 | GU112: BAS202 | GV112: BAS203 | GW112: BAS204 | GX112: BAS205 | GY112: BAS206 | GZ112: BAS207 | HA112: BAS208 | HB112: BAS209 | HC112: BAS210 | HD112: BAS211 | HE112: BAS212 | HF112: BAS213 | HG112: BAS214 | HH112: BAS215 | HI112: BAS216 | HJ112: BAS217 | HK112: BAS218 | HL112: BAS219 | HM112: BAS220 | HN112: BAS221 | HO112: BAS222 | HP112: BAS223 | HQ112: BAS224 | HR112: BAS225 | HS112: BAS226 | HT112: BAS227 | HU112: BAS228 | HV112: BAS229 | HW112: BAS230
A113: 1 | B113: 5 | C113: 4 | D113: 0 | E113: 0 | F113: 0 | G113: 0 | H113: 0 | I113: 0 | J113: 0 | K113: 0 | L113: 1 | M113: 0 | N113: 0 | O113: 4 | P113: 0 | Q113: 0 | R113: 0 | S113: 0 | T113: 0 | U113: 0 | V113: 5 | W113: 11 | X113: 1 | Y113: 0 | Z113: 0 | AA113: 2 | AB113: 0 | AC113: 0 | AD113: 0 | AE113: 0 | AF113: 1 | AG113: 1 | AH113: 29 | AI113: 41 | AJ113: 25 | AK113: 109 | AL113: 0 | AM113: 0 | AN113: 0 | AO113: 5 | AP113: 3 | AQ113: 26 | AR113: 6 | AS113: 3 | AT113: 1 | AU113: 6 | AV113: 0 | AW113: 3 | AX113: 0 | AY113: 0 | AZ113: 0 | BA113: 0 | BB113: 0 | BC113: 1 | BD113: 0 | BE113: 0 | BF113: 0 | BG113: 0 | BH113: 0 | BI113: 0 | BJ113: 0 | BK113: 0 | BL113: 3 | BM113: 8 | BN113: 1 | BO113: 6 | BP113: 9 | BQ113: 4 | BR113: 0 | BS113: 0 | BT113: 0 | BU113: 0 | BV113: 5 | BW113: 9 | BX113: 17 | BY113: 7 | BZ113: 1 | CA113: 1 | CB113: 0 | CC113: 0 | CD113: 1 | CE113: 0 | CF113: 0 | CG113: 0 | CH113: 0 | CI113: 0 | CJ113: 1 | CK113: 1 | CL113: 1 | CM113: 1 | CN113: 0 | CO113: 0 | CP113: 2 | CQ113: 8 | CR113: 18 | CS113: 32 | CT113: 36 | CU113: 63 | CV113: 51 | CW113: 137 | CX113: 97 | CY113: 180 | CZ113: 0 | DA113: 1 | DB113: 0 | DC113: 5 | DD113: 118 | DE113: 181 | DF113: 37 | DG113: 284 | DH113: 40 | DI113: 285 | DJ113: 0 | DK113: 0 | DL113: 46 | DM113: 287 | DN113: 4 | DO113: 2 | DP113: 2 | DQ113: 2 | DR113: 0 | DS113: 1 | DT113: 0 | DU113: 0 | DV113: 0 | DW113: 0 | DX113: 40 | DY113: 274 | DZ113: 20 | EA113: 52 | EB113: 6 | EC113: 11 | ED113: 1 | EE113: 1 | EF113: 0 | EG113: 0 | EH113: 0 | EI113: 1 | EJ113: 0 | EK113: 0 | EL113: 49 | EM113: 121 | EN113: 2 | EO113: 14 | EP113: 9 | EQ113: 12 | ER113: 2 | ES113: 4 | ET113: 1 | EU113: 4 | EV113: 7 | EW113: 5 | EX113: 2 | EY113: 1 | EZ113: 0 | FA113: 0 | FB113: 0 | FC113: 0 | FD113: 0 | FE113: 0 | FF113: 0 | FG113: 0 | FH113: 0 | FI113: 0 | FJ113: 0 | FK113: 0 | FL113: 33 | FM113: 86 | FN113: 0 | FO113: 0 | FP113: 0 | FQ113: 0 | FR113: 0 | FS113: 210 | FT113: 39 | FU113: 575 | FV113: 3 | FW113: 0 | FX113: 0 | FY113: 206 | FZ113: 10 | GA113: 0 | GB113: 1 | GC113: 7359 | GD113: 1 | GE113: 1 | GF113: 0 | GG113: 0 | GH113: 0 | GI113: 8 | GJ113: 1 | GK113: 0 | GL113: 1 | GM113: 0 | GN113: 0 | GO113: 0 | GP113: 0 | GQ113: 0 | GR113: 0 | GS113: 0 | GT113: 0 | GU113: 0 | GV113: 0 | GW113: 0 | GX113: 0 | GY113: 0 | GZ113: 0 | HA113: 0 | HB113: 0 | HC113: 0 | HD113: 0 | HE113: 0 | HF113: 0 | HG113: 0 | HH113: 0 | HI113: 0 | HJ113: 0 | HK113: 0 | HL113: 0 | HM113: 0 | HN113: 0 | HO113: 0 | HP113: 0 | HQ113: 0 | HR113: 0 | HS113: 0 | HT113: 0 | HU113: 0 | HV113: 0 | HW113: 0
A114: 2 | B114: 2 | C114: 6 | D114: 0 | E114: 0 | F114: 0 | G114: 0 | H114: 0 | I114: 0 | J114: 0 | K114: 0 | L114: 0 | M114: 0 | N114: 0 | O114: 12 | P114: 0 | Q114: 4 | R114: 0 | S114: 3 | T114: 0 | U114: 0 | V114: 11 | W114: 18 | X114: 6 | Y114: 3 | Z114: 6 | AA114: 1 | AB114: 0 | AC114: 0 | AD114: 0 | AE114: 0 | AF114: 5 | AG114: 6 | AH114: 59 | AI114: 34 | AJ114: 35 | AK114: 104 | AL114: 0 | AM114: 0 | AN114: 2 | AO114: 4 | AP114: 3 | AQ114: 24 | AR114: 5 | AS114: 6 | AT114: 2 | AU114: 6 | AV114: 1 | AW114: 7 | AX114: 0 | AY114: 0 | AZ114: 0 | BA114: 0 | BB114: 0 | BC114: 0 | BD114: 0 | BE114: 0 | BF114: 0 | BG114: 0 | BH114: 0 | BI114: 0 | BJ114: 0 | BK114: 0 | BL114: 5 | BM114: 10 | BN114: 1 | BO114: 5 | BP114: 5 | BQ114: 3 | BR114: 0 | BS114: 0 | BT114: 0 | BU114: 0 | BV114: 5 | BW114: 5 | BX114: 10 | BY114: 13 | BZ114: 1 | CA114: 0 | CB114: 1 | CC114: 0 | CD114: 1 | CE114: 0 | CF114: 1 | CG114: 0 | CH114: 0 | CI114: 0 | CJ114: 2 | CK114: 2 | CL114: 0 | CM114: 0 | CN114: 0 | CO114: 0 | CP114: 5 | CQ114: 8 | CR114: 26 | CS114: 38 | CT114: 70 | CU114: 62 | CV114: 84 | CW114: 141 | CX114: 98 | CY114: 159 | CZ114: 0 | DA114: 0 | DB114: 0 | DC114: 3 | DD114: 150 | DE114: 195 | DF114: 65 | DG114: 114 | DH114: 69 | DI114: 119 | DJ114: 0 | DK114: 0 | DL114: 76 | DM114: 123 | DN114: 6 | DO114: 1 | DP114: 0 | DQ114: 3 | DR114: 0 | DS114: 0 | DT114: 0 | DU114: 0 | DV114: 0 | DW114: 0 | DX114: 61 | DY114: 105 | DZ114: 41 | EA114: 52 | EB114: 21 | EC114: 8 | ED114: 0 | EE114: 4 | EF114: 0 | EG114: 2 | EH114: 2 | EI114: 0 | EJ114: 0 | EK114: 0 | EL114: 53 | EM114: 95 | EN114: 12 | EO114: 14 | EP114: 11 | EQ114: 15 | ER114: 9 | ES114: 3 | ET114: 12 | EU114: 6 | EV114: 7 | EW114: 4 | EX114: 3 | EY114: 3 | EZ114: 0 | FA114: 1 | FB114: 0 | FC114: 0 | FD114: 0 | FE114: 1 | FF114: 0 | FG114: 0 | FH114: 0 | FI114: 0 | FJ114: 0 | FK114: 0 | FL114: 19 | FM114: 54 | FN114: 0 | FO114: 0 | FP114: 0 | FQ114: 0 | FR114: 31 | FS114: 168 | FT114: 38 | FU114: 783 | FV114: 0 | FW114: 1 | FX114: 0 | FY114: 288 | FZ114: 29 | GA114: 0 | GB114: 4 | GC114: 8337 | GD114: 10 | GE114: 0 | GF114: 0 | GG114: 0 | GH114: 0 | GI114: 3 | GJ114: 5 | GK114: 3 | GL114: 7 | GM114: 0 | GN114: 0 | GO114: 0 | GP114: 0 | GQ114: 0 | GR114: 0 | GS114: 0 | GT114: 0 | GU114: 0 | GV114: 0 | GW114: 0 | GX114: 0 | GY114: 0 | GZ114: 0 | HA114: 0 | HB114: 0 | HC114: 0 | HD114: 0 | HE114: 0 | HF114: 0 | HG114: 0 | HH114: 0 | HI114: 0 | HJ114: 0 | HK114: 0 | HL114: 0 | HM114: 0 | HN114: 0 | HO114: 0 | HP114: 0 | HQ114: 0 | HR114: 0 | HS114: 0 | HT114: 0 | HU114: 0 | HV114: 0 | HW114: 0
A115: 3 | B115: 14 | C115: 5 | D115: 0 | E115: 0 | F115: 0 | G115: 0 | H115: 0 | I115: 0 | J115: 0 | K115: 0 | L115: 2 | M115: 0 | N115: 0 | O115: 9 | P115: 0 | Q115: 1 | R115: 0 | S115: 0 | T115: 0 | U115: 0 | V115: 9 | W115: 11 | X115: 4 | Y115: 1 | Z115: 0 | AA115: 1 | AB115: 0 | AC115: 0 | AD115: 0 | AE115: 0 | AF115: 3 | AG115: 36 | AH115: 78 | AI115: 88 | AJ115: 48 | AK115: 128 | AL115: 0 | AM115: 0 | AN115: 0 | AO115: 7 | AP115: 3 | AQ115: 19 | AR115: 4 | AS115: 6 | AT115: 3 | AU115: 10 | AV115: 0 | AW115: 7 | AX115: 0 | AY115: 0 | AZ115: 0 | BA115: 0 | BB115: 1 | BC115: 0 | BD115: 3 | BE115: 2 | BF115: 0 | BG115: 0 | BH115: 0 | BI115: 0 | BJ115: 0 | BK115: 1 | BL115: 7 | BM115: 8 | BN115: 0 | BO115: 1 | BP115: 13 | BQ115: 6 | BR115: 0 | BS115: 0 | BT115: 0 | BU115: 0 | BV115: 5 | BW115: 8 | BX115: 20 | BY115: 7 | BZ115: 0 | CA115: 0 | CB115: 1 | CC115: 2 | CD115: 0 | CE115: 0 | CF115: 0 | CG115: 0 | CH115: 0 | CI115: 0 | CJ115: 1 | CK115: 3 | CL115: 0 | CM115: 0 | CN115: 0 | CO115: 1 | CP115: 1 | CQ115: 19 | CR115: 25 | CS115: 19 | CT115: 90 | CU115: 107 | CV115: 124 | CW115: 182 | CX115: 166 | CY115: 211 | CZ115: 0 | DA115: 0 | DB115: 0 | DC115: 4 | DD115: 254 | DE115: 292 | DF115: 79 | DG115: 219 | DH115: 82 | DI115: 227 | DJ115: 0 | DK115: 1 | DL115: 97 | DM115: 236 | DN115: 0 | DO115: 4 | DP115: 5 | DQ115: 6 | DR115: 0 | DS115: 0 | DT115: 0 | DU115: 0 | DV115: 0 | DW115: 1 | DX115: 58 | DY115: 200 | DZ115: 58 | EA115: 125 | EB115: 15 | EC115: 11 | ED115: 1 | EE115: 3 | EF115: 2 | EG115: 2 | EH115: 1 | EI115: 0 | EJ115: 0 | EK115: 0 | EL115: 118 | EM115: 141 | EN115: 36 | EO115: 18 | EP115: 46 | EQ115: 31 | ER115: 28 | ES115: 14 | ET115: 62 | EU115: 33 | EV115: 5 | EW115: 8 | EX115: 0 | EY115: 5 | EZ115: 0 | FA115: 0 | FB115: 0 | FC115: 0 | FD115: 0 | FE115: 0 | FF115: 0 | FG115: 0 | FH115: 0 | FI115: 0 | FJ115: 0 | FK115: 0 | FL115: 28 | FM115: 113 | FN115: 0 | FO115: 0 | FP115: 0 | FQ115: 0 | FR115: 221 | FS115: 242 | FT115: 69 | FU115: 667 | FV115: 3 | FW115: 149 | FX115: 0 | FY115: 247 | FZ115: 14 | GA115: 0 | GB115: 9 | GC115: 9619 | GD115: 9 | GE115: 0 | GF115: 0 | GG115: 0 | GH115: 0 | GI115: 10 | GJ115: 25 | GK115: 1 | GL115: 22 | GM115: 0 | GN115: 0 | GO115: 0 | GP115: 0 | GQ115: 0 | GR115: 0 | GS115: 0 | GT115: 0 | GU115: 0 | GV115: 0 | GW115: 0 | GX115: 0 | GY115: 0 | GZ115: 0 | HA115: 0 | HB115: 0 | HC115: 0 | HD115: 0 | HE115: 0 | HF115: 0 | HG115: 0 | HH115: 0 | HI115: 0 | HJ115: 0 | HK115: 0 | HL115: 0 | HM115: 0 | HN115: 0 | HO115: 0 | HP115: 0 | HQ115: 0 | HR115: 0 | HS115: 0 | HT115: 0 | HU115: 0 | HV115: 0 | HW115: 0
A116: Total general | B116: 21 | C116: 15 | D116: 0 | E116: 0 | F116: 0 | G116: 0 | H116: 0 | I116: 0 | J116: 0 | K116: 0 | L116: 3 | M116: 0 | N116: 0 | O116: 25 | P116: 0 | Q116: 5 | R116: 0 | S116: 3 | T116: 0 | U116: 0 | V116: 25 | W116: 40 | X116: 11 | Y116: 4 | Z116: 6 | AA116: 4 | AB116: 0 | AC116: 0 | AD116: 0 | AE116: 0 | AF116: 9 | AG116: 43 | AH116: 166 | AI116: 163 | AJ116: 108 | AK116: 341 | AL116: 0 | AM116: 0 | AN116: 2 | AO116: 16 | AP116: 9 | AQ116: 69 | AR116: 15 | AS116: 15 | AT116: 6 | AU116: 22 | AV116: 1 | AW116: 17 | AX116: 0 | AY116: 0 | AZ116: 0 | BA116: 0 | BB116: 1 | BC116: 1 | BD116: 3 | BE116: 2 | BF116: 0 | BG116: 0 | BH116: 0 | BI116: 0 | BJ116: 0 | BK116: 1 | BL116: 15 | BM116: 26 | BN116: 2 | BO116: 12 | BP116: 27 | BQ116: 13 | BR116: 0 | BS116: 0 | BT116: 0 | BU116: 0 | BV116: 15 | BW116: 22 | BX116: 47 | BY116: 27 | BZ116: 2 | CA116: 1 | CB116: 2 | CC116: 2 | CD116: 2 | CE116: 0 | CF116: 1 | CG116: 0 | CH116: 0 | CI116: 0 | CJ116: 4 | CK116: 6 | CL116: 1 | CM116: 1 | CN116: 0 | CO116: 1 | CP116: 8 | CQ116: 35 | CR116: 69 | CS116: 89 | CT116: 196 | CU116: 232 | CV116: 259 | CW116: 460 | CX116: 361 | CY116: 550 | CZ116: 0 | DA116: 1 | DB116: 0 | DC116: 12 | DD116: 522 | DE116: 668 | DF116: 181 | DG116: 617 | DH116: 191 | DI116: 631 | DJ116: 0 | DK116: 1 | DL116: 219 | DM116: 646 | DN116: 10 | DO116: 7 | DP116: 7 | DQ116: 11 | DR116: 0 | DS116: 1 | DT116: 0 | DU116: 0 | DV116: 0 | DW116: 1 | DX116: 159 | DY116: 579 | DZ116: 119 | EA116: 229 | EB116: 42 | EC116: 30 | ED116: 2 | EE116: 8 | EF116: 2 | EG116: 4 | EH116: 3 | EI116: 1 | EJ116: 0 | EK116: 0 | EL116: 220 | EM116: 357 | EN116: 50 | EO116: 46 | EP116: 66 | EQ116: 58 | ER116: 39 | ES116: 21 | ET116: 75 | EU116: 43 | EV116: 19 | EW116: 17 | EX116: 5 | EY116: 9 | EZ116: 0 | FA116: 1 | FB116: 0 | FC116: 0 | FD116: 0 | FE116: 1 | FF116: 0 | FG116: 0 | FH116: 0 | FI116: 0 | FJ116: 0 | FK116: 0 | FL116: 80 | FM116: 253 | FN116: 0 | FO116: 0 | FP116: 0 | FQ116: 0 | FR116: 252 | FS116: 620 | FT116: 146 | FU116: 2025 | FV116: 6 | FW116: 150 | FX116: 0 | FY116: 741 | FZ116: 53 | GA116: 0 | GB116: 14 | GC116: 25315 | GD116: 20 | GE116: 1 | GF116: 0 | GG116: 0 | GH116: 0 | GI116: 21 | GJ116: 31 | GK116: 4 | GL116: 30 | GM116: 0 | GN116: 0 | GO116: 0 | GP116: 0 | GQ116: 0 | GR116: 0 | GS116: 0 | GT116: 0 | GU116: 0 | GV116: 0 | GW116: 0 | GX116: 0 | GY116: 0 | GZ116: 0 | HA116: 0 | HB116: 0 | HC116: 0 | HD116: 0 | HE116: 0 | HF116: 0 | HG116: 0 | HH116: 0 | HI116: 0 | HJ116: 0 | HK116: 0 | HL116: 0 | HM116: 0 | HN116: 0 | HO116: 0 | HP116: 0 | HQ116: 0 | HR116: 0 | HS116: 0 | HT116: 0 | HU116: 0 | HV116: 0 | HW116: 0
A131: TOTAL
A132: =COUNT(A113:A129) -> 3 | B132: =SUM(B113:B129) -> 42 | C132: =SUM(C113:C129) -> 30 | D132: 0 | E132: 0 | F132: 0 | G132: 0 | H132: 0 | I132: 0 | J132: 0 | K132: 0 | L132: 6 | M132: 0 | N132: 0 | O132: 50 | P132: 0 | Q132: 10 | R132: 0 | S132: 6 | T132: 0 | U132: 0 | V132: 50 | W132: 80 | X132: 22 | Y132: 8 | Z132: 12 | AA132: 8 | AB132: 0 | AC132: 0 | AD132: 0 | AE132: 0 | AF132: 18 | AG132: 86 | AH132: 332 | AI132: 326 | AJ132: 216 | AK132: 682 | AL132: 0 | AM132: 0 | AN132: 4 | AO132: 32 | AP132: 18 | AQ132: 138 | AR132: 30 | AS132: 30 | AT132: 12 | AU132: 44 | AV132: 2 | AW132: 34 | AX132: 0 | AY132: 0 | AZ132: 0 | BA132: 0 | BB132: 2 | BC132: 2 | BD132: 6 | BE132: 4 | BF132: 0 | BG132: 0 | BH132: 0 | BI132: 0 | BJ132: 0 | BK132: 2 | BL132: 30 | BM132: 52 | BN132: 4 | BO132: =SUM(BO113:BO129) -> 24 | BP132: 54 | BQ132: 26 | BR132: 0 | BS132: 0 | BT132: 0 | BU132: 0 | BV132: 30 | BW132: 44 | BX132: 94 | BY132: 54 | BZ132: 4 | CA132: 2 | CB132: 4 | CC132: 4 | CD132: 4 | CE132: 0 | CF132: 2 | CG132: 0 | CH132: 0 | CI132: 0 | CJ132: 8 | CK132: 12 | CL132: 2 | CM132: 2 | CN132: 0 | CO132: 2 | CP132: 16 | CQ132: 70 | CR132: 138 | CS132: 178 | CT132: 392 | CU132: 464 | CV132: 518 | CW132: 920 | CX132: 722 | CY132: 1100 | CZ132: 0 | DA132: 2 | DB132: 0 | DC132: 24 | DD132: 1044 | DE132: 1336 | DF132: 362 | DG132: 1234 | DH132: 382 | DI132: 1262 | DJ132: 0 | DK132: 2 | DL132: 438 | DM132: 1292 | DN132: 20 | DO132: 14 | DP132: 14 | DQ132: 22 | DR132: 0 | DS132: 2 | DT132: 0 | DU132: 0 | DV132: 0 | DW132: 2 | DX132: 318 | DY132: 1158 | DZ132: 238 | EA132: =SUM(EA113:EA129) -> 458 | EB132: 84 | EC132: 60 | ED132: 4 | EE132: 16 | EF132: 4 | EG132: 8 | EH132: 6 | EI132: 2 | EJ132: 0 | EK132: 0 | EL132: 440 | EM132: 714 | EN132: 100 | EO132: 92 | EP132: 132 | EQ132: 116 | ER132: 78 | ES132: 42 | ET132: 150 | EU132: 86 | EV132: 38 | EW132: 34 | EX132: 10 | EY132: 18 | EZ132: 0 | FA132: 2 | FB132: 0 | FC132: 0 | FD132: 0 | FE132: 2 | FF132: 0 | FG132: 0 | FH132: 0 | FI132: 0 | FJ132: 0 | FK132: 0 | FL132: 160 | FM132: 506 | FN132: 0 | FO132: 0 | FP132: 0 | FQ132: 0 | FR132: 504 | FS132: 1240 | FT132: 292 | FU132: 4050 | FV132: 12 | FW132: 300 | FX132: 0 | FY132: 1482 | FZ132: 106 | GA132: 0 | GB132: 28 | GC132: 50630 | GD132: 40 | GE132: 2 | GF132: 0 | GG132: 0 | GH132: 0 | GI132: 42 | GJ132: 62 | GK132: 8 | GL132: 60 | GM132: =SUM(GM113:GM129) -> 0 | GN132: 0 | GO132: 0 | GP132: 0 | GQ132: 0 | GR132: 0 | GS132: 0 | GT132: 0 | GU132: 0 | GV132: 0 | GW132: 0 | GX132: 0 | GY132: 0 | GZ132: 0 | HA132: 0 | HB132: 0 | HC132: 0 | HD132: 0 | HE132: 0 | HF132: 0 | HG132: 0 | HH132: 0 | HI132: 0 | HJ132: 0 | HK132: 0 | HL132: 0 | HM132: 0 | HN132: 0 | HO132: 0 | HP132: 0 | HQ132: 0 | HR132: 0 | HS132: 0 | HT132: 0 | HU132: 0 | HV132: 0 | HW132: 0
A133: =CONCATENATE(A113,"-",A114,"-",A115,"-",A116,"-",A117,"-",A118,"-",A119,"-",A120,"-",A121,"-",A122,"-",A123,"-",A124) -> 1-2-3-Total general--------
B134: BAS001 | C134: BAS002 | D134: BAS003 | E134: BAS004 | F134: BAS005 | G134: BAS006 | H134: BAS007 | I134: BAS008 | J134: BAS009 | K134: BAS010 | L134: BAS011 | M134: BAS012 | N134: BAS013 | O134: BAS014 | P134: BAS015 | Q134: BAS016 | R134: BAS017 | S134: BAS018 | T134: BAS019 | U134: BAS020 | V134: BAS021 | W134: BAS022 | X134: BAS023 | Y134: BAS024 | Z134: BAS025 | AA134: BAS026 | AB134: BAS027 | AC134: BAS028 | AD134: BAS029 | AE134: BAS030 | AF134: BAS031 | AG134: BAS032 | AH134: BAS033 | AI134: BAS034 | AJ134: BAS035 | AK134: BAS036 | AL134: BAS037 | AM134: BAS038 | AN134: BAS039 | AO134: BAS040 | AP134: BAS041 | AQ134: BAS042 | AR134: BAS043 | AS134: BAS044 | AT134: BAS045 | AU134: BAS046 | AV134: BAS047 | AW134: BAS048 | AX134: BAS049 | AY134: BAS050 | AZ134: BAS051 | BA134: BAS052 | BB134: BAS053 | BC134: BAS054 | BD134: BAS055 | BE134: BAS056 | BF134: BAS057 | BG134: BAS058 | BH134: BAS059 | BI134: BAS060 | BJ134: BAS061 | BK134: BAS062 | BL134: BAS063 | BM134: BAS064 | BN134: BAS065 | BO134: BAS066 | BP134: BAS067 | BQ134: BAS068 | BR134: BAS069 | BS134: BAS070 | BT134: BAS071 | BU134: BAS072 | BV134: BAS073 | BW134: BAS074 | BX134: BAS075 | BY134: BAS076 | BZ134: BAS077 | CA134: BAS078 | CB134: BAS079 | CC134: BAS080 | CD134: BAS081 | CE134: BAS082 | CF134: BAS083 | CG134: BAS084 | CH134: BAS085 | CI134: BAS086 | CJ134: BAS087 | CK134: BAS088 | CL134: BAS089 | CM134: BAS090 | CN134: BAS091 | CO134: BAS092 | CP134: BAS093 | CQ134: BAS094 | CR134: BAS095 | CS134: BAS096 | CT134: BAS097 | CU134: BAS098 | CV134: BAS099 | CW134: BAS100 | CX134: BAS101 | CY134: BAS102 | CZ134: BAS103 | DA134: BAS104 | DB134: BAS105 | DC134: BAS106 | DD134: BAS107 | DE134: BAS108 | DF134: BAS109 | DG134: BAS110 | DH134: BAS111 | DI134: BAS112 | DJ134: BAS113 | DK134: BAS114 | DL134: BAS115 | DM134: BAS116 | DN134: BAS117 | DO134: BAS118 | DP134: BAS119 | DQ134: BAS120 | DR134: BAS121 | DS134: BAS122 | DT134: BAS123 | DU134: BAS124 | DV134: BAS125 | DW134: BAS126 | DX134: BAS127 | DY134: BAS128 | DZ134: BAS129 | EA134: BAS130 | EB134: BAS131 | EC134: BAS132 | ED134: BAS133 | EE134: BAS134 | EF134: BAS135 | EG134: BAS136 | EH134: BAS137 | EI134: BAS138 | EJ134: BAS139 | EK134: BAS140 | EL134: BAS141 | EM134: BAS142 | EN134: BAS143 | EO134: BAS144 | EP134: BAS145 | EQ134: BAS146 | ER134: BAS147 | ES134: BAS148 | ET134: BAS149 | EU134: BAS150 | EV134: BAS151 | EW134: BAS152 | EX134: BAS153 | EY134: BAS154 | EZ134: BAS155 | FA134: BAS156 | FB134: BAS157 | FC134: BAS158 | FD134: BAS159 | FE134: BAS160 | FF134: BAS161 | FG134: BAS162 | FH134: BAS163 | FI134: BAS164 | FJ134: BAS165 | FK134: BAS166 | FL134: BAS167 | FM134: BAS168 | FN134: BAS169 | FO134: BAS170 | FP134: BAS171 | FQ134: BAS172 | FR134: BAS173 | FS134: BAS174 | FT134: BAS175 | FU134: BAS176 | FV134: BAS177 | FW134: BAS178 | FX134: BAS179 | FY134: BAS180 | FZ134: BAS181 | GA134: BAS182 | GB134: BAS183 | GC134: BAS184 | GD134: BAS185 | GE134: BAS186 | GF134: BAS187 | GG134: BAS188 | GH134: BAS189 | GI134: BAS190 | GJ134: BAS191 | GK134: BAS192 | GL134: BAS193 | GM134: BAS194 | GN134: BAS195 | GO134: BAS196 | GP134: BAS197 | GQ134: BAS198 | GR134: BAS199 | GS134: BAS200 | GT134: BAS201 | GU134: BAS202 | GV134: BAS203 | GW134: BAS204 | GX134: BAS205 | GY134: BAS206 | GZ134: BAS207 | HA134: BAS208 | HB134: BAS209 | HC134: BAS210 | HD134: BAS211 | HE134: BAS212 | HF134: BAS213 | HG134: BAS214 | HH134: BAS215 | HI134: BAS216 | HJ134: BAS217 | HK134: BAS218 | HL134: BAS219 | HM134: BAS220 | HN134: BAS221 | HO134: BAS222 | HP134: BAS223 | HQ134: BAS224 | HR134: BAS225 | HS134: BAS226 | HT134: BAS227 | HU134: BAS228 | HV134: BAS229 | HW134: BAS230
B135: =IF(B134=B112,"SI","NO") -> SI | C135: =IF(C134=C112,"SI","NO") -> SI | D135: SI | E135: SI | F135: SI | G135: SI | H135: SI | I135: SI | J135: SI | K135: SI | L135: SI | M135: SI | N135: SI | O135: SI | P135: SI | Q135: SI | R135: SI | S135: SI | T135: SI | U135: SI | V135: SI | W135: SI | X135: SI | Y135: SI | Z135: SI | AA135: SI | AB135: SI | AC135: SI | AD135: SI | AE135: SI | AF135: SI | AG135: SI | AH135: SI | AI135: SI | AJ135: SI | AK135: SI | AL135: SI | AM135: SI | AN135: SI | AO135: SI | AP135: SI | AQ135: SI | AR135: SI | AS135: SI | AT135: SI | AU135: SI | AV135: SI | AW135: SI | AX135: SI | AY135: SI | AZ135: SI | BA135: SI | BB135: SI | BC135: SI | BD135: SI | BE135: SI | BF135: SI | BG135: SI | BH135: SI | BI135: SI | BJ135: SI | BK135: SI | BL135: SI | BM135: SI | BN135: SI | BO135: =IF(BO134=BO112,"SI","NO") -> SI | BP135: SI | BQ135: SI | BR135: SI | BS135: SI | BT135: SI | BU135: SI | BV135: SI | BW135: SI | BX135: SI | BY135: SI | BZ135: SI | CA135: SI | CB135: SI | CC135: SI | CD135: SI | CE135: SI | CF135: SI | CG135: SI | CH135: SI | CI135: SI | CJ135: SI | CK135: SI | CL135: SI | CM135: SI | CN135: SI | CO135: SI | CP135: SI | CQ135: SI | CR135: SI | CS135: SI | CT135: SI | CU135: SI | CV135: SI | CW135: SI | CX135: SI | CY135: SI | CZ135: SI | DA135: SI | DB135: SI | DC135: SI | DD135: SI | DE135: SI | DF135: SI | DG135: SI | DH135: SI | DI135: SI | DJ135: SI | DK135: SI | DL135: SI | DM135: SI | DN135: SI | DO135: SI | DP135: SI | DQ135: SI | DR135: SI | DS135: SI | DT135: SI | DU135: SI | DV135: SI | DW135: SI | DX135: SI | DY135: SI | DZ135: SI | EA135: =IF(EA134=EA112,"SI","NO") -> SI | EB135: SI | EC135: SI | ED135: SI | EE135: SI | EF135: SI | EG135: SI | EH135: SI | EI135: SI | EJ135: SI | EK135: SI | EL135: SI | EM135: SI | EN135: SI | EO135: SI | EP135: SI | EQ135: SI | ER135: SI | ES135: SI | ET135: SI | EU135: SI | EV135: SI | EW135: SI | EX135: SI | EY135: SI | EZ135: SI | FA135: SI | FB135: SI | FC135: SI | FD135: SI | FE135: SI | FF135: SI | FG135: SI | FH135: SI | FI135: SI | FJ135: SI | FK135: SI | FL135: SI | FM135: SI | FN135: SI | FO135: SI | FP135: SI | FQ135: SI | FR135: SI | FS135: SI | FT135: SI | FU135: SI | FV135: SI | FW135: SI | FX135: SI | FY135: SI | FZ135: SI | GA135: SI | GB135: SI | GC135: SI | GD135: SI | GE135: SI | GF135: SI | GG135: SI | GH135: SI | GI135: SI | GJ135: SI | GK135: SI | GL135: SI | GM135: =IF(GM134=GM112,"SI","NO") -> SI | GN135: SI | GO135: SI | GP135: SI | GQ135: SI | GR135: SI | GS135: SI | GT135: SI | GU135: SI | GV135: SI | GW135: SI | GX135: SI | GY135: SI | GZ135: SI | HA135: SI | HB135: SI | HC135: SI | HD135: SI | HE135: SI | HF135: SI | HG135: SI | HH135: SI | HI135: SI | HJ135: SI | HK135: SI | HL135: SI | HM135: SI | HN135: SI | HO135: SI | HP135: SI | HQ135: SI | HR135: SI | HS135: SI | HT135: SI | HU135: SI | HV135: SI | HW135: SI
A137: TUBERCU_03
A138: anno | B138: 2025
A139: cod_red | B139: 03
A140: codmic | B140: (Todas)
A141: cod_prov | B141: (Todas)
A142: coddist | B142: (Todas)
A143: cod_estab | B143: (Todas)
A144: cod_eje | B144: (Todas)
B146: Valores
A147: Etiquetas de fila | B147: BAS001 | C147: BAS002 | D147: BAS003 | E147: BAS004 | F147: BAS005 | G147: BAS006 | H147: BAS007 | I147: BAS008 | J147: BAS009 | K147: BAS010 | L147: BAS011 | M147: BAS012 | N147: BAS013 | O147: BAS014 | P147: BAS015 | Q147: BAS016 | R147: BAS017 | S147: BAS018 | T147: BAS019 | U147: BAS020 | V147: BAS021 | W147: BAS022 | X147: BAS023 | Y147: BAS024 | Z147: BAS025 | AA147: BAS026 | AB147: BAS027 | AC147: BAS028 | AD147: BAS029 | AE147: BAS030 | AF147: BAS031 | AG147: BAS032 | AH147: BAS033 | AI147: BAS034 | AJ147: BAS035 | AK147: BAS036 | AL147: BAS037 | AM147: BAS038 | AN147: BAS039 | AO147: BAS040 | AP147: BAS041 | AQ147: BAS042 | AR147: BAS043 | AS147: BAS044 | AT147: BAS045 | AU147: BAS046 | AV147: BAS047 | AW147: BAS048 | AX147: BAS049 | AY147: BAS050 | AZ147: BAS051 | BA147: BAS052 | BB147: BAS053 | BC147: BAS054 | BD147: BAS055 | BE147: BAS056 | BF147: BAS057 | BG147: BAS058 | BH147: BAS059 | BI147: BAS060 | BJ147: BAS061 | BK147: BAS062 | BL147: BAS063 | BM147: BAS064 | BN147: BAS065 | BO147: BAS066 | BP147: BAS067 | BQ147: BAS068 | BR147: BAS069 | BS147: BAS070 | BT147: BAS071 | BU147: BAS072 | BV147: BAS073 | BW147: BAS074 | BX147: BAS075 | BY147: BAS076 | BZ147: BAS077 | CA147: BAS078 | CB147: BAS079 | CC147: BAS080 | CD147: BAS081 | CE147: BAS082 | CF147: BAS083 | CG147: BAS084 | CH147: BAS085 | CI147: BAS086 | CJ147: BAS087 | CK147: BAS088 | CL147: BAS089 | CM147: BAS090 | CN147: BAS091 | CO147: BAS092 | CP147: BAS093 | CQ147: BAS094 | CR147: BAS095 | CS147: BAS096 | CT147: BAS097 | CU147: BAS098 | CV147: BAS099 | CW147: BAS100 | CX147: BAS101 | CY147: BAS102 | CZ147: BAS103 | DA147: BAS104 | DB147: BAS105 | DC147: BAS106 | DD147: BAS107 | DE147: BAS108 | DF147: BAS109 | DG147: BAS110 | DH147: BAS111 | DI147: BAS112 | DJ147: BAS113 | DK147: BAS114 | DL147: BAS115 | DM147: BAS116 | DN147: BAS117 | DO147: BAS118 | DP147: BAS119 | DQ147: BAS120 | DR147: BAS121 | DS147: BAS122 | DT147: BAS123 | DU147: BAS124 | DV147: BAS125 | DW147: BAS126 | DX147: BAS127 | DY147: BAS128 | DZ147: BAS129 | EA147: BAS130 | EB147: BAS131 | EC147: BAS132 | ED147: BAS133 | EE147: BAS134 | EF147: BAS135 | EG147: BAS136 | EH147: BAS137 | EI147: BAS138 | EJ147: BAS139 | EK147: BAS140 | EL147: BAS141 | EM147: BAS142 | EN147: BAS143 | EO147: BAS144 | EP147: BAS145 | EQ147: BAS146 | ER147: BAS147 | ES147: BAS148 | ET147: BAS149 | EU147: BAS150 | EV147: BAS151 | EW147: BAS152 | EX147: BAS153 | EY147: BAS154 | EZ147: BAS155 | FA147: BAS156 | FB147: BAS157 | FC147: BAS158 | FD147: BAS159 | FE147: BAS160 | FF147: BAS161 | FG147: BAS162 | FH147: BAS163 | FI147: BAS164 | FJ147: BAS165 | FK147: BAS166 | FL147: BAS167 | FM147: BAS168 | FN147: BAS169 | FO147: BAS170 | FP147: BAS171 | FQ147: BAS172 | FR147: BAS173 | FS147: BAS174 | FT147: BAS175 | FU147: BAS176 | FV147: BAS177 | FW147: BAS178 | FX147: BAS179 | FY147: BAS180 | FZ147: BAS181 | GA147: BAS182 | GB147: BAS183 | GC147: BAS184 | GD147: BAS185 | GE147: BAS186 | GF147: BAS187 | GG147: BAS188 | GH147: BAS189 | GI147: BAS190 | GJ147: BAS191 | GK147: BAS192 | GL147: BAS193 | GM147: BAS194 | GN147: BAS195 | GO147: BAS196 | GP147: BAS197 | GQ147: BAS198 | GR147: BAS199 | GS147: BAS200 | GT147: BAS201 | GU147: BAS202 | GV147: BAS203 | GW147: BAS204 | GX147: BAS205 | GY147: BAS206 | GZ147: BAS207 | HA147: BAS208 | HB147: BAS209 | HC147: BAS210 | HD147: BAS211 | HE147: BAS212 | HF147: BAS213 | HG147: BAS214 | HH147: BAS215 | HI147: BAS216 | HJ147: BAS217 | HK147: BAS218 | HL147: BAS219 | HM147: BAS220 | HN147: BAS221 | HO147: BAS222 | HP147: BAS223 | HQ147: BAS224 | HR147: BAS225 | HS147: BAS226 | HT147: BAS227 | HU147: BAS228 | HV147: BAS229 | HW147: BAS230
A148: 1 | B148: 0 | C148: 0 | D148: 0 | E148: 0 | F148: 0 | G148: 0 | H148: 0 | I148: 0 | J148: 0 | K148: 0 | L148: 0 | M148: 0 | N148: 0 | O148: 0 | P148: 0 | Q148: 0 | R148: 0 | S148: 0 | T148: 0 | U148: 0 | V148: 0 | W148: 0 | X148: 0 | Y148: 0 | Z148: 0 | AA148: 0 | AB148: 0 | AC148: 0 | AD148: 0 | AE148: 0 | AF148: 0 | AG148: 0 | AH148: 0 | AI148: 0 | AJ148: 0 | AK148: 0 | AL148: 0 | AM148: 0 | AN148: 0 | AO148: 0 | AP148: 0 | AQ148: 0 | AR148: 0 | AS148: 0 | AT148: 0 | AU148: 0 | AV148: 0 | AW148: 0 | AX148: 0 | AY148: 0 | AZ148: 0 | BA148: 0 | BB148: 0 | BC148: 0 | BD148: 0 | BE148: 0 | BF148: 0 | BG148: 0 | BH148: 0 | BI148: 0 | BJ148: 0 | BK148: 0 | BL148: 0 | BM148: 1 | BN148: 2 | BO148: 0 | BP148: 0 | BQ148: 1 | BR148: 0 | BS148: 0 | BT148: 0 | BU148: 0 | BV148: 0 | BW148: 0 | BX148: 0 | BY148: 9 | BZ148: 9 | CA148: 102 | CB148: 204 | CC148: 0 | CD148: 1 | CE148: 3 | CF148: 2 | CG148: 18 | CH148: 52 | CI148: 0 | CJ148: 0 | CK148: 4 | CL148: 5 | CM148: 0 | CN148: 0 | CO148: 0 | CP148: 0 | CQ148: 0 | CR148: 0 | CS148: 0 | CT148: 0 | CU148: 0 | CV148: 0 | CW148: 0 | CX148: 0 | CY148: 0 | CZ148: 0 | DA148: 0 | DB148: 0 | DC148: 0 | DD148: 0 | DE148: 0 | DF148: 0 | DG148: 0 | DH148: 0 | DI148: 0 | DJ148: 0 | DK148: 0 | DL148: 0 | DM148: 0 | DN148: 0 | DO148: 0 | DP148: 0 | DQ148: 0 | DR148: 0 | DS148: 0 | DT148: 0 | DU148: 0 | DV148: 0 | DW148: 0 | DX148: 0 | DY148: 0 | DZ148: 0 | EA148: 0 | EB148: 0 | EC148: 0 | ED148: 0 | EE148: 0 | EF148: 0 | EG148: 0 | EH148: 0 | EI148: 0 | EJ148: 0 | EK148: 0 | EL148: 0 | EM148: 0 | EN148: 0 | EO148: 0 | EP148: 0 | EQ148: 0 | ER148: 0 | ES148: 0 | ET148: 0 | EU148: 0 | EV148: 0 | EW148: 0 | EX148: 0 | EY148: 0 | EZ148: 0 | FA148: 0 | FB148: 0 | FC148: 0 | FD148: 0 | FE148: 0 | FF148: 0 | FG148: 0 | FH148: 0 | FI148: 0 | FJ148: 0 | FK148: 0 | FL148: 0 | FM148: 0 | FN148: 0 | FO148: 0 | FP148: 0 | FQ148: 0 | FR148: 0 | FS148: 0 | FT148: 0 | FU148: 0 | FV148: 0 | FW148: 0 | FX148: 0 | FY148: 0 | FZ148: 0 | GA148: 0 | GB148: 0 | GC148: 0 | GD148: 0 | GE148: 0 | GF148: 0 | GG148: 0 | GH148: 0 | GI148: 0 | GJ148: 0 | GK148: 0 | GL148: 0 | GM148: 0 | GN148: 0 | GO148: 0 | GP148: 0 | GQ148: 0 | GR148: 0 | GS148: 0 | GT148: 0 | GU148: 0 | GV148: 0 | GW148: 0 | GX148: 0 | GY148: 0 | GZ148: 0 | HA148: 0 | HB148: 0 | HC148: 0 | HD148: 0 | HE148: 0 | HF148: 0 | HG148: 0 | HH148: 0 | HI148: 0 | HJ148: 0 | HK148: 0 | HL148: 0 | HM148: 0 | HN148: 0 | HO148: 0 | HP148: 0 | HQ148: 0 | HR148: 0 | HS148: 0 | HT148: 0 | HU148: 0 | HV148: 0 | HW148: 0
A149: 2 | B149: 0 | C149: 0 | D149: 0 | E149: 0 | F149: 0 | G149: 0 | H149: 0 | I149: 0 | J149: 0 | K149: 0 | L149: 0 | M149: 0 | N149: 0 | O149: 0 | P149: 0 | Q149: 0 | R149: 0 | S149: 0 | T149: 0 | U149: 0 | V149: 0 | W149: 0 | X149: 0 | Y149: 0 | Z149: 0 | AA149: 0 | AB149: 0 | AC149: 0 | AD149: 0 | AE149: 0 | AF149: 0 | AG149: 0 | AH149: 0 | AI149: 0 | AJ149: 0 | AK149: 0 | AL149: 0 | AM149: 0 | AN149: 0 | AO149: 0 | AP149: 0 | AQ149: 0 | AR149: 0 | AS149: 0 | AT149: 0 | AU149: 0 | AV149: 0 | AW149: 0 | AX149: 0 | AY149: 0 | AZ149: 0 | BA149: 0 | BB149: 0 | BC149: 0 | BD149: 0 | BE149: 0 | BF149: 0 | BG149: 0 | BH149: 0 | BI149: 0 | BJ149: 0 | BK149: 0 | BL149: 0 | BM149: 2 | BN149: 2 | BO149: 0 | BP149: 0 | BQ149: 0 | BR149: 0 | BS149: 1 | BT149: 0 | BU149: 0 | BV149: 0 | BW149: 0 | BX149: 0 | BY149: 4 | BZ149: 21 | CA149: 60 | CB149: 146 | CC149: 0 | CD149: 0 | CE149: 2 | CF149: 0 | CG149: 10 | CH149: 37 | CI149: 1 | CJ149: 0 | CK149: 0 | CL149: 0 | CM149: 0 | CN149: 0 | CO149: 0 | CP149: 0 | CQ149: 0 | CR149: 0 | CS149: 0 | CT149: 0 | CU149: 0 | CV149: 0 | CW149: 0 | CX149: 0 | CY149: 0 | CZ149: 0 | DA149: 0 | DB149: 0 | DC149: 0 | DD149: 0 | DE149: 0 | DF149: 0 | DG149: 0 | DH149: 0 | DI149: 0 | DJ149: 0 | DK149: 0 | DL149: 0 | DM149: 0 | DN149: 0 | DO149: 0 | DP149: 0 | DQ149: 0 | DR149: 0 | DS149: 0 | DT149: 0 | DU149: 0 | DV149: 0 | DW149: 0 | DX149: 0 | DY149: 0 | DZ149: 0 | EA149: 0 | EB149: 0 | EC149: 0 | ED149: 0 | EE149: 0 | EF149: 0 | EG149: 0 | EH149: 0 | EI149: 0 | EJ149: 0 | EK149: 0 | EL149: 0 | EM149: 0 | EN149: 0 | EO149: 0 | EP149: 0 | EQ149: 0 | ER149: 0 | ES149: 0 | ET149: 0 | EU149: 0 | EV149: 0 | EW149: 0 | EX149: 0 | EY149: 0 | EZ149: 0 | FA149: 0 | FB149: 0 | FC149: 0 | FD149: 0 | FE149: 0 | FF149: 0 | FG149: 0 | FH149: 0 | FI149: 0 | FJ149: 0 | FK149: 0 | FL149: 0 | FM149: 0 | FN149: 0 | FO149: 0 | FP149: 0 | FQ149: 0 | FR149: 0 | FS149: 0 | FT149: 0 | FU149: 0 | FV149: 0 | FW149: 0 | FX149: 0 | FY149: 0 | FZ149: 0 | GA149: 0 | GB149: 0 | GC149: 0 | GD149: 0 | GE149: 0 | GF149: 0 | GG149: 0 | GH149: 0 | GI149: 0 | GJ149: 0 | GK149: 0 | GL149: 0 | GM149: 0 | GN149: 0 | GO149: 0 | GP149: 0 | GQ149: 0 | GR149: 0 | GS149: 0 | GT149: 0 | GU149: 0 | GV149: 0 | GW149: 0 | GX149: 0 | GY149: 0 | GZ149: 0 | HA149: 0 | HB149: 0 | HC149: 0 | HD149: 0 | HE149: 0 | HF149: 0 | HG149: 0 | HH149: 0 | HI149: 0 | HJ149: 0 | HK149: 0 | HL149: 0 | HM149: 0 | HN149: 0 | HO149: 0 | HP149: 0 | HQ149: 0 | HR149: 0 | HS149: 0 | HT149: 0 | HU149: 0 | HV149: 0 | HW149: 0
A150: 3 | B150: 0 | C150: 0 | D150: 0 | E150: 0 | F150: 0 | G150: 0 | H150: 0 | I150: 0 | J150: 0 | K150: 0 | L150: 0 | M150: 0 | N150: 0 | O150: 0 | P150: 0 | Q150: 0 | R150: 0 | S150: 0 | T150: 0 | U150: 0 | V150: 0 | W150: 0 | X150: 0 | Y150: 0 | Z150: 0 | AA150: 0 | AB150: 0 | AC150: 0 | AD150: 0 | AE150: 0 | AF150: 0 | AG150: 0 | AH150: 0 | AI150: 0 | AJ150: 0 | AK150: 0 | AL150: 0 | AM150: 0 | AN150: 0 | AO150: 0 | AP150: 0 | AQ150: 0 | AR150: 0 | AS150: 0 | AT150: 0 | AU150: 0 | AV150: 0 | AW150: 0 | AX150: 0 | AY150: 0 | AZ150: 0 | BA150: 0 | BB150: 0 | BC150: 0 | BD150: 0 | BE150: 0 | BF150: 0 | BG150: 0 | BH150: 0 | BI150: 0 | BJ150: 0 | BK150: 0 | BL150: 0 | BM150: 0 | BN150: 0 | BO150: 0 | BP150: 0 | BQ150: 1 | BR150: 0 | BS150: 3 | BT150: 2 | BU150: 0 | BV150: 0 | BW150: 0 | BX150: 0 | BY150: 6 | BZ150: 26 | CA150: 61 | CB150: 196 | CC150: 0 | CD150: 0 | CE150: 1 | CF150: 0 | CG150: 73 | CH150: 66 | CI150: 1 | CJ150: 0 | CK150: 0 | CL150: 0 | CM150: 0 | CN150: 0 | CO150: 0 | CP150: 0 | CQ150: 0 | CR150: 0 | CS150: 0 | CT150: 0 | CU150: 0 | CV150: 0 | CW150: 0 | CX150: 0 | CY150: 0 | CZ150: 0 | DA150: 0 | DB150: 0 | DC150: 0 | DD150: 0 | DE150: 0 | DF150: 0 | DG150: 0 | DH150: 0 | DI150: 0 | DJ150: 0 | DK150: 0 | DL150: 0 | DM150: 0 | DN150: 0 | DO150: 0 | DP150: 0 | DQ150: 0 | DR150: 0 | DS150: 0 | DT150: 0 | DU150: 0 | DV150: 0 | DW150: 0 | DX150: 0 | DY150: 0 | DZ150: 0 | EA150: 0 | EB150: 0 | EC150: 0 | ED150: 0 | EE150: 0 | EF150: 0 | EG150: 0 | EH150: 0 | EI150: 0 | EJ150: 0 | EK150: 0 | EL150: 0 | EM150: 0 | EN150: 0 | EO150: 0 | EP150: 0 | EQ150: 0 | ER150: 0 | ES150: 0 | ET150: 0 | EU150: 0 | EV150: 0 | EW150: 0 | EX150: 0 | EY150: 0 | EZ150: 0 | FA150: 0 | FB150: 0 | FC150: 0 | FD150: 0 | FE150: 0 | FF150: 0 | FG150: 0 | FH150: 0 | FI150: 0 | FJ150: 0 | FK150: 0 | FL150: 0 | FM150: 0 | FN150: 0 | FO150: 0 | FP150: 0 | FQ150: 0 | FR150: 0 | FS150: 0 | FT150: 0 | FU150: 0 | FV150: 0 | FW150: 0 | FX150: 0 | FY150: 0 | FZ150: 0 | GA150: 0 | GB150: 0 | GC150: 0 | GD150: 0 | GE150: 0 | GF150: 0 | GG150: 0 | GH150: 0 | GI150: 0 | GJ150: 0 | GK150: 0 | GL150: 0 | GM150: 0 | GN150: 0 | GO150: 0 | GP150: 0 | GQ150: 0 | GR150: 0 | GS150: 0 | GT150: 0 | GU150: 0 | GV150: 0 | GW150: 0 | GX150: 0 | GY150: 0 | GZ150: 0 | HA150: 0 | HB150: 0 | HC150: 0 | HD150: 0 | HE150: 0 | HF150: 0 | HG150: 0 | HH150: 0 | HI150: 0 | HJ150: 0 | HK150: 0 | HL150: 0 | HM150: 0 | HN150: 0 | HO150: 0 | HP150: 0 | HQ150: 0 | HR150: 0 | HS150: 0 | HT150: 0 | HU150: 0 | HV150: 0 | HW150: 0
A151: Total general | B151: 0 | C151: 0 | D151: 0 | E151: 0 | F151: 0 | G151: 0 | H151: 0 | I151: 0 | J151: 0 | K151: 0 | L151: 0 | M151: 0 | N151: 0 | O151: 0 | P151: 0 | Q151: 0 | R151: 0 | S151: 0 | T151: 0 | U151: 0 | V151: 0 | W151: 0 | X151: 0 | Y151: 0 | Z151: 0 | AA151: 0 | AB151: 0 | AC151: 0 | AD151: 0 | AE151: 0 | AF151: 0 | AG151: 0 | AH151: 0 | AI151: 0 | AJ151: 0 | AK151: 0 | AL151: 0 | AM151: 0 | AN151: 0 | AO151: 0 | AP151: 0 | AQ151: 0 | AR151: 0 | AS151: 0 | AT151: 0 | AU151: 0 | AV151: 0 | AW151: 0 | AX151: 0 | AY151: 0 | AZ151: 0 | BA151: 0 | BB151: 0 | BC151: 0 | BD151: 0 | BE151: 0 | BF151: 0 | BG151: 0 | BH151: 0 | BI151: 0 | BJ151: 0 | BK151: 0 | BL151: 0 | BM151: 3 | BN151: 4 | BO151: 0 | BP151: 0 | BQ151: 2 | BR151: 0 | BS151: 4 | BT151: 2 | BU151: 0 | BV151: 0 | BW151: 0 | BX151: 0 | BY151: 19 | BZ151: 56 | CA151: 223 | CB151: 546 | CC151: 0 | CD151: 1 | CE151: 6 | CF151: 2 | CG151: 101 | CH151: 155 | CI151: 2 | CJ151: 0 | CK151: 4 | CL151: 5 | CM151: 0 | CN151: 0 | CO151: 0 | CP151: 0 | CQ151: 0 | CR151: 0 | CS151: 0 | CT151: 0 | CU151: 0 | CV151: 0 | CW151: 0 | CX151: 0 | CY151: 0 | CZ151: 0 | DA151: 0 | DB151: 0 | DC151: 0 | DD151: 0 | DE151: 0 | DF151: 0 | DG151: 0 | DH151: 0 | DI151: 0 | DJ151: 0 | DK151: 0 | DL151: 0 | DM151: 0 | DN151: 0 | DO151: 0 | DP151: 0 | DQ151: 0 | DR151: 0 | DS151: 0 | DT151: 0 | DU151: 0 | DV151: 0 | DW151: 0 | DX151: 0 | DY151: 0 | DZ151: 0 | EA151: 0 | EB151: 0 | EC151: 0 | ED151: 0 | EE151: 0 | EF151: 0 | EG151: 0 | EH151: 0 | EI151: 0 | EJ151: 0 | EK151: 0 | EL151: 0 | EM151: 0 | EN151: 0 | EO151: 0 | EP151: 0 | EQ151: 0 | ER151: 0 | ES151: 0 | ET151: 0 | EU151: 0 | EV151: 0 | EW151: 0 | EX151: 0 | EY151: 0 | EZ151: 0 | FA151: 0 | FB151: 0 | FC151: 0 | FD151: 0 | FE151: 0 | FF151: 0 | FG151: 0 | FH151: 0 | FI151: 0 | FJ151: 0 | FK151: 0 | FL151: 0 | FM151: 0 | FN151: 0 | FO151: 0 | FP151: 0 | FQ151: 0 | FR151: 0 | FS151: 0 | FT151: 0 | FU151: 0 | FV151: 0 | FW151: 0 | FX151: 0 | FY151: 0 | FZ151: 0 | GA151: 0 | GB151: 0 | GC151: 0 | GD151: 0 | GE151: 0 | GF151: 0 | GG151: 0 | GH151: 0 | GI151: 0 | GJ151: 0 | GK151: 0 | GL151: 0 | GM151: 0 | GN151: 0 | GO151: 0 | GP151: 0 | GQ151: 0 | GR151: 0 | GS151: 0 | GT151: 0 | GU151: 0 | GV151: 0 | GW151: 0 | GX151: 0 | GY151: 0 | GZ151: 0 | HA151: 0 | HB151: 0 | HC151: 0 | HD151: 0 | HE151: 0 | HF151: 0 | HG151: 0 | HH151: 0 | HI151: 0 | HJ151: 0 | HK151: 0 | HL151: 0 | HM151: 0 | HN151: 0 | HO151: 0 | HP151: 0 | HQ151: 0 | HR151: 0 | HS151: 0 | HT151: 0 | HU151: 0 | HV151: 0 | HW151: 0
A166: TOTAL
A167: =COUNT(A148:A164) -> 3 | B167: =SUM(B148:B164) -> 0 | C167: =SUM(C148:C164) -> 0 | D167: 0 | E167: 0 | F167: 0 | G167: 0 | H167: 0 | I167: 0 | J167: 0 | K167: 0 | L167: 0 | M167: 0 | N167: 0 | O167: 0 | P167: 0 | Q167: 0 | R167: 0 | S167: 0 | T167: 0 | U167: 0 | V167: 0 | W167: 0 | X167: 0 | Y167: 0 | Z167: 0 | AA167: 0 | AB167: 0 | AC167: 0 | AD167: 0 | AE167: 0 | AF167: 0 | AG167: 0 | AH167: 0 | AI167: 0 | AJ167: 0 | AK167: 0 | AL167: 0 | AM167: 0 | AN167: 0 | AO167: 0 | AP167: 0 | AQ167: 0 | AR167: 0 | AS167: 0 | AT167: 0 | AU167: 0 | AV167: 0 | AW167: 0 | AX167: 0 | AY167: 0 | AZ167: 0 | BA167: 0 | BB167: 0 | BC167: 0 | BD167: 0 | BE167: 0 | BF167: 0 | BG167: 0 | BH167: 0 | BI167: 0 | BJ167: 0 | BK167: 0 | BL167: 0 | BM167: 6 | BN167: 8 | BO167: =SUM(BO148:BO164) -> 0 | BP167: 0 | BQ167: 4 | BR167: 0 | BS167: 8 | BT167: 4 | BU167: 0 | BV167: 0 | BW167: 0 | BX167: 0 | BY167: 38 | BZ167: 112 | CA167: 446 | CB167: 1092 | CC167: 0 | CD167: 2 | CE167: 12 | CF167: 4 | CG167: 202 | CH167: 310 | CI167: 4 | CJ167: 0 | CK167: 8 | CL167: 10 | CM167: 0 | CN167: 0 | CO167: 0 | CP167: 0 | CQ167: 0 | CR167: 0 | CS167: 0 | CT167: 0 | CU167: 0 | CV167: 0 | CW167: 0 | CX167: 0 | CY167: 0 | CZ167: 0 | DA167: 0 | DB167: 0 | DC167: 0 | DD167: 0 | DE167: 0 | DF167: 0 | DG167: 0 | DH167: 0 | DI167: 0 | DJ167: 0 | DK167: 0 | DL167: 0 | DM167: 0 | DN167: 0 | DO167: 0 | DP167: 0 | DQ167: 0 | DR167: 0 | DS167: 0 | DT167: 0 | DU167: 0 | DV167: 0 | DW167: 0 | DX167: 0 | DY167: 0 | DZ167: 0 | EA167: =SUM(EA148:EA164) -> 0 | EB167: 0 | EC167: 0 | ED167: 0 | EE167: 0 | EF167: 0 | EG167: 0 | EH167: 0 | EI167: 0 | EJ167: 0 | EK167: 0 | EL167: 0 | EM167: 0 | EN167: 0 | EO167: 0 | EP167: 0 | EQ167: 0 | ER167: 0 | ES167: 0 | ET167: 0 | EU167: 0 | EV167: 0 | EW167: 0 | EX167: 0 | EY167: 0 | EZ167: 0 | FA167: 0 | FB167: 0 | FC167: 0 | FD167: 0 | FE167: 0 | FF167: 0 | FG167: 0 | FH167: 0 | FI167: 0 | FJ167: 0 | FK167: 0 | FL167: 0 | FM167: 0 | FN167: 0 | FO167: 0 | FP167: 0 | FQ167: 0 | FR167: 0 | FS167: 0 | FT167: 0 | FU167: 0 | FV167: 0 | FW167: 0 | FX167: 0 | FY167: 0 | FZ167: 0 | GA167: 0 | GB167: 0 | GC167: 0 | GD167: 0 | GE167: 0 | GF167: 0 | GG167: 0 | GH167: 0 | GI167: 0 | GJ167: 0 | GK167: 0 | GL167: 0 | GM167: =SUM(GM148:GM164) -> 0 | GN167: 0 | GO167: 0 | GP167: 0 | GQ167: 0 | GR167: 0 | GS167: 0 | GT167: 0 | GU167: 0 | GV167: 0 | GW167: 0 | GX167: 0 | GY167: 0 | GZ167: 0 | HA167: 0 | HB167: 0 | HC167: 0 | HD167: 0 | HE167: 0 | HF167: 0 | HG167: 0 | HH167: 0 | HI167: 0 | HJ167: 0 | HK167: 0 | HL167: 0 | HM167: 0 | HN167: 0 | HO167: 0 | HP167: 0 | HQ167: 0 | HR167: 0 | HS167: 0 | HT167: 0 | HU167: 0 | HV167: 0 | HW167: 0
A168: =CONCATENATE(A148,"-",A149,"-",A150,"-",A151,"-",A152,"-",A153,"-",A154,"-",A155,"-",A156,"-",A157,"-",A158,"-",A159) -> 1-2-3-Total general--------
B169: BAS001 | C169: BAS002 | D169: BAS003 | E169: BAS004 | F169: BAS005 | G169: BAS006 | H169: BAS007 | I169: BAS008 | J169: BAS009 | K169: BAS010 | L169: BAS011 | M169: BAS012 | N169: BAS013 | O169: BAS014 | P169: BAS015 | Q169: BAS016 | R169: BAS017 | S169: BAS018 | T169: BAS019 | U169: BAS020 | V169: BAS021 | W169: BAS022 | X169: BAS023 | Y169: BAS024 | Z169: BAS025 | AA169: BAS026 | AB169: BAS027 | AC169: BAS028 | AD169: BAS029 | AE169: BAS030 | AF169: BAS031 | AG169: BAS032 | AH169: BAS033 | AI169: BAS034 | AJ169: BAS035 | AK169: BAS036 | AL169: BAS037 | AM169: BAS038 | AN169: BAS039 | AO169: BAS040 | AP169: BAS041 | AQ169: BAS042 | AR169: BAS043 | AS169: BAS044 | AT169: BAS045 | AU169: BAS046 | AV169: BAS047 | AW169: BAS048 | AX169: BAS049 | AY169: BAS050 | AZ169: BAS051 | BA169: BAS052 | BB169: BAS053 | BC169: BAS054 | BD169: BAS055 | BE169: BAS056 | BF169: BAS057 | BG169: BAS058 | BH169: BAS059 | BI169: BAS060 | BJ169: BAS061 | BK169: BAS062 | BL169: BAS063 | BM169: BAS064 | BN169: BAS065 | BO169: BAS066 | BP169: BAS067 | BQ169: BAS068 | BR169: BAS069 | BS169: BAS070 | BT169: BAS071 | BU169: BAS072 | BV169: BAS073 | BW169: BAS074 | BX169: BAS075 | BY169: BAS076 | BZ169: BAS077 | CA169: BAS078 | CB169: BAS079 | CC169: BAS080 | CD169: BAS081 | CE169: BAS082 | CF169: BAS083 | CG169: BAS084 | CH169: BAS085 | CI169: BAS086 | CJ169: BAS087 | CK169: BAS088 | CL169: BAS089 | CM169: BAS090 | CN169: BAS091 | CO169: BAS092 | CP169: BAS093 | CQ169: BAS094 | CR169: BAS095 | CS169: BAS096 | CT169: BAS097 | CU169: BAS098 | CV169: BAS099 | CW169: BAS100 | CX169: BAS101 | CY169: BAS102 | CZ169: BAS103 | DA169: BAS104 | DB169: BAS105 | DC169: BAS106 | DD169: BAS107 | DE169: BAS108 | DF169: BAS109 | DG169: BAS110 | DH169: BAS111 | DI169: BAS112 | DJ169: BAS113 | DK169: BAS114 | DL169: BAS115 | DM169: BAS116 | DN169: BAS117 | DO169: BAS118 | DP169: BAS119 | DQ169: BAS120 | DR169: BAS121 | DS169: BAS122 | DT169: BAS123 | DU169: BAS124 | DV169: BAS125 | DW169: BAS126 | DX169: BAS127 | DY169: BAS128 | DZ169: BAS129 | EA169: BAS130 | EB169: BAS131 | EC169: BAS132 | ED169: BAS133 | EE169: BAS134 | EF169: BAS135 | EG169: BAS136 | EH169: BAS137 | EI169: BAS138 | EJ169: BAS139 | EK169: BAS140 | EL169: BAS141 | EM169: BAS142 | EN169: BAS143 | EO169: BAS144 | EP169: BAS145 | EQ169: BAS146 | ER169: BAS147 | ES169: BAS148 | ET169: BAS149 | EU169: BAS150 | EV169: BAS151 | EW169: BAS152 | EX169: BAS153 | EY169: BAS154 | EZ169: BAS155 | FA169: BAS156 | FB169: BAS157 | FC169: BAS158 | FD169: BAS159 | FE169: BAS160 | FF169: BAS161 | FG169: BAS162 | FH169: BAS163 | FI169: BAS164 | FJ169: BAS165 | FK169: BAS166 | FL169: BAS167 | FM169: BAS168 | FN169: BAS169 | FO169: BAS170 | FP169: BAS171 | FQ169: BAS172 | FR169: BAS173 | FS169: BAS174 | FT169: BAS175 | FU169: BAS176 | FV169: BAS177 | FW169: BAS178 | FX169: BAS179 | FY169: BAS180 | FZ169: BAS181 | GA169: BAS182 | GB169: BAS183 | GC169: BAS184 | GD169: BAS185 | GE169: BAS186 | GF169: BAS187 | GG169: BAS188 | GH169: BAS189 | GI169: BAS190 | GJ169: BAS191 | GK169: BAS192 | GL169: BAS193 | GM169: BAS194 | GN169: BAS195 | GO169: BAS196 | GP169: BAS197 | GQ169: BAS198 | GR169: BAS199 | GS169: BAS200 | GT169: BAS201 | GU169: BAS202 | GV169: BAS203 | GW169: BAS204 | GX169: BAS205 | GY169: BAS206 | GZ169: BAS207 | HA169: BAS208 | HB169: BAS209 | HC169: BAS210 | HD169: BAS211 | HE169: BAS212 | HF169: BAS213 | HG169: BAS214 | HH169: BAS215 | HI169: BAS216 | HJ169: BAS217 | HK169: BAS218 | HL169: BAS219 | HM169: BAS220 | HN169: BAS221 | HO169: BAS222 | HP169: BAS223 | HQ169: BAS224 | HR169: BAS225 | HS169: BAS226 | HT169: BAS227 | HU169: BAS228 | HV169: BAS229 | HW169: BAS230
B170: =IF(B169=B147,"SI","NO") -> SI | C170: =IF(C169=C147,"SI","NO") -> SI | D170: SI | E170: SI | F170: SI | G170: SI | H170: SI | I170: SI | J170: SI | K170: SI | L170: SI | M170: SI | N170: SI | O170: SI | P170: SI | Q170: SI | R170: SI | S170: SI | T170: SI | U170: SI | V170: SI | W170: SI | X170: SI | Y170: SI | Z170: SI | AA170: SI | AB170: SI | AC170: SI | AD170: SI | AE170: SI | AF170: SI | AG170: SI | AH170: SI | AI170: SI | AJ170: SI | AK170: SI | AL170: SI | AM170: SI | AN170: SI | AO170: SI | AP170: SI | AQ170: SI | AR170: SI | AS170: SI | AT170: SI | AU170: SI | AV170: SI | AW170: SI | AX170: SI | AY170: SI | AZ170: SI | BA170: SI | BB170: SI | BC170: SI | BD170: SI | BE170: SI | BF170: SI | BG170: SI | BH170: SI | BI170: SI | BJ170: SI | BK170: SI | BL170: SI | BM170: SI | BN170: SI | BO170: =IF(BO169=BO147,"SI","NO") -> SI | BP170: SI | BQ170: SI | BR170: SI | BS170: SI | BT170: SI | BU170: SI | BV170: SI | BW170: SI | BX170: SI | BY170: SI | BZ170: SI | CA170: SI | CB170: SI | CC170: SI | CD170: SI | CE170: SI | CF170: SI | CG170: SI | CH170: SI | CI170: SI | CJ170: SI | CK170: SI | CL170: SI | CM170: SI | CN170: SI | CO170: SI | CP170: SI | CQ170: SI | CR170: SI | CS170: SI | CT170: SI | CU170: SI | CV170: SI | CW170: SI | CX170: SI | CY170: SI | CZ170: SI | DA170: SI | DB170: SI | DC170: SI | DD170: SI | DE170: SI | DF170: SI | DG170: SI | DH170: SI | DI170: SI | DJ170: SI | DK170: SI | DL170: SI | DM170: SI | DN170: SI | DO170: SI | DP170: SI | DQ170: SI | DR170: SI | DS170: SI | DT170: SI | DU170: SI | DV170: SI | DW170: SI | DX170: SI | DY170: SI | DZ170: SI | EA170: =IF(EA169=EA147,"SI","NO") -> SI | EB170: SI | EC170: SI | ED170: SI | EE170: SI | EF170: SI | EG170: SI | EH170: SI | EI170: SI | EJ170: SI | EK170: SI | EL170: SI | EM170: SI | EN170: SI | EO170: SI | EP170: SI | EQ170: SI | ER170: SI | ES170: SI | ET170: SI | EU170: SI | EV170: SI | EW170: SI | EX170: SI | EY170: SI | EZ170: SI | FA170: SI | FB170: SI | FC170: SI | FD170: SI | FE170: SI | FF170: SI | FG170: SI | FH170: SI | FI170: SI | FJ170: SI | FK170: SI | FL170: SI | FM170: SI | FN170: SI | FO170: SI | FP170: SI | FQ170: SI | FR170: SI | FS170: SI | FT170: SI | FU170: SI | FV170: SI | FW170: SI | FX170: SI | FY170: SI | FZ170: SI | GA170: SI | GB170: SI | GC170: SI | GD170: SI | GE170: SI | GF170: SI | GG170: SI | GH170: SI | GI170: SI | GJ170: SI | GK170: SI | GL170: SI | GM170: =IF(GM169=GM147,"SI","NO") -> SI | GN170: SI | GO170: SI | GP170: SI | GQ170: SI | GR170: SI | GS170: SI | GT170: SI | GU170: SI | GV170: SI | GW170: SI | GX170: SI | GY170: SI | GZ170: SI | HA170: SI | HB170: SI | HC170: SI | HD170: SI | HE170: SI | HF170: SI | HG170: SI | HH170: SI | HI170: SI | HJ170: SI | HK170: SI | HL170: SI | HM170: SI | HN170: SI | HO170: SI | HP170: SI | HQ170: SI | HR170: SI | HS170: SI | HT170: SI | HU170: SI | HV170: SI | HW170: SI

Sheet INFORME
B1: GERENCIA REGIONAL DE SALUD CUSCO
B2: DIRECCION DE ESTADISTICA, INFORMATICA Y TELECOMUNICACION
B4: REPORTE DE ACTIVIDADES MENSUALES DE LA ETAPA DE VIDA ADOLESCENTE
B6: DIRESA | D6: CUSCO | G6: PROVINCIA | I6: =+TABLAS!O12 ->  | N6: AÑO | O6: =+TABLAS!J16 -> 2025
B8: RED DE SALUD | D8: =+TABLAS!O9 -> 03 - LA CONVENCION | G8: DISTRITO | I8: =+TABLAS!O13 ->  | N8: MES | O8: =+TABLAS!N26 -> ENE - MAR
B10: MICRO RED | D10: =+TABLAS!O10 ->  | G10: EE.SS. | I10: =+TABLAS!O11 -> 
G12: EJECUTORA | I12: =+TABLAS!O14 -> 
B14: usp_TRAMA_BASE_ADOLESCENTE_2020_RPT_01_MORBILIDAD | AC14: usp_TRAMA_BASE_ADOLESCENTE_2020_RPT_01_MORBILIDAD
B15: MORBILIDAD DEL ADOLESCENTE | J15: MORBILIDAD DEL ADOLESCENTE
B16: CIE10 | C16: DIAGNÓSTICOS | H16: Nro | J16: CIE10 | K16: DIAGNÓSTICOS | P16: Nro | U16: ";TABLAS!$A$75)
B17: Infecciones Respiratorias Agudas Complicadas | J17: Infecciones Respiratorias Agudas No Complicadas | U17: =+IMPORTARDATOSDINAMICOS(" BAS | AC17: SINTAXIS
B18: A37 | H18: =+GETPIVOTDATA(" BAS001",TABLAS!$A$75) -> 0 | J18: H660+H669 | P18: =+GETPIVOTDATA(" BAS019",TABLAS!$A$75) -> 10 | T18: =CONCATENATE($U$17,V18,$U$16) -> =+IMPORTARDATOSDINAMICOS(" BAS001";TABLAS!$A$75) | U18: =CONCATENATE($U$17,W18,$U$16) -> =+IMPORTARDATOSDINAMICOS(" BAS019";TABLAS!$A$75) | V18: =IF(X18<10,CONCATENATE("00",X18),IF(AND(X18<100,X18>9),CONCATENATE("0",X18),X18)) -> 001 | W18: =IF(Y18<10,CONCATENATE("00",Y18),IF(AND(Y18<100,Y18>9),CONCATENATE("0",Y18),Y18)) -> 019 | X18: 1 | Y18: =+X35+1 -> 19 | AC18: A37 | AD18: H660+H669
B19: J050+J051 | H19: =+GETPIVOTDATA(" BAS002",TABLAS!$A$75) -> 0 | J19: J00 | P19: =+GETPIVOTDATA(" BAS020",TABLAS!$A$75) -> 162 | T19: =CONCATENATE($U$17,V19,$U$16) -> =+IMPORTARDATOSDINAMICOS(" BAS002";TABLAS!$A$75) | U19: =+IMPORTARDATOSDINAMICOS(" BAS020";TABLAS!$A$75) | V19: =IF(X19<10,CONCATENATE("00",X19),IF(AND(X19<100,X19>9),CONCATENATE("0",X19),X19)) -> 002 | W19: 020 | X19: =+X18+1 -> 2 | Y19: =+Y18+1 -> 20 | AC19: J050+J051 | AD19: J00
B20: J11 | H20: =+GETPIVOTDATA(" BAS003",TABLAS!$A$75) -> 0 | J20: J01 | P20: =+GETPIVOTDATA(" BAS021",TABLAS!$A$75) -> 4 | T20: =+IMPORTARDATOSDINAMICOS(" BAS003";TABLAS!$A$75) | U20: =+IMPORTARDATOSDINAMICOS(" BAS021";TABLAS!$A$75) | V20: 003 | W20: 021 | X20: =+X19+1 -> 3 | Y20: 21 | AC20: J11 | AD20: J01
B21: J13 | H21: =+GETPIVOTDATA(" BAS004",TABLAS!$A$75) -> 0 | J21: J020+J028+J029 | P21: =+GETPIVOTDATA(" BAS022",TABLAS!$A$75) -> 418 | T21: =+IMPORTARDATOSDINAMICOS(" BAS004";TABLAS!$A$75) | U21: =+IMPORTARDATOSDINAMICOS(" BAS022";TABLAS!$A$75) | V21: 004 | W21: 022 | X21: 4 | Y21: 22 | AC21: J13 | AD21: J020+J028+J029
B22: J16 | H22: =+GETPIVOTDATA(" BAS005",TABLAS!$A$75) -> 0 | J22: J0309 | P22: =+GETPIVOTDATA(" BAS023",TABLAS!$A$75) -> 3 | T22: =+IMPORTARDATOSDINAMICOS(" BAS005";TABLAS!$A$75) | U22: =+IMPORTARDATOSDINAMICOS(" BAS023";TABLAS!$A$75) | V22: 005 | W22: 023 | X22: 5 | Y22: 23 | AC22: J16 | AD22: J0309
B23: J180 | H23: =+GETPIVOTDATA(" BAS006",TABLAS!$A$75) -> 0 | J23: J040+J041+J042 | P23: =+GETPIVOTDATA(" BAS024",TABLAS!$A$75) -> 2 | T23: =+IMPORTARDATOSDINAMICOS(" BAS006";TABLAS!$A$75) | U23: =+IMPORTARDATOSDINAMICOS(" BAS024";TABLAS!$A$75) | V23: 006 | W23: 024 | X23: 6 | Y23: 24 | AC23: J180 | AD23: J040+J041+J042
B24: J181 | H24: =+GETPIVOTDATA(" BAS007",TABLAS!$A$75) -> 0 | J24: J069 | P24: =+GETPIVOTDATA(" BAS025",TABLAS!$A$75) -> 6 | T24: =+IMPORTARDATOSDINAMICOS(" BAS007";TABLAS!$A$75) | U24: =+IMPORTARDATOSDINAMICOS(" BAS025";TABLAS!$A$75) | V24: 007 | W24: 025 | X24: 7 | Y24: 25 | AC24: J181 | AD24: J069
B25: J188 | H25: =+GETPIVOTDATA(" BAS008",TABLAS!$A$75) -> 0 | J25: J209 | P25: =+GETPIVOTDATA(" BAS026",TABLAS!$A$75) -> 51 | T25: =+IMPORTARDATOSDINAMICOS(" BAS008";TABLAS!$A$75) | U25: =+IMPORTARDATOSDINAMICOS(" BAS026";TABLAS!$A$75) | V25: 008 | W25: 026 | X25: 8 | Y25: 26 | AC25: J188 | AD25: J209
B26: J189 | H26: =+GETPIVOTDATA(" BAS009",TABLAS!$A$75) -> 1 | T26: =+IMPORTARDATOSDINAMICOS(" BAS009";TABLAS!$A$75) | V26: 009 | W26: 00 | X26: 9 | AC26: J189
B27: J229 | H27: =+GETPIVOTDATA(" BAS010",TABLAS!$A$75) -> 0 | T27: =+IMPORTARDATOSDINAMICOS(" BAS010";TABLAS!$A$75) | V27: 010 | W27: 00 | X27: 10 | AC27: J229
B28: J29 | H28: =+GETPIVOTDATA(" BAS011",TABLAS!$A$75) -> 0 | T28: =+IMPORTARDATOSDINAMICOS(" BAS011";TABLAS!$A$75) | V28: 011 | W28: 00 | X28: 11 | AC28: J29
B29: J448+J449 | H29: =+GETPIVOTDATA(" BAS012",TABLAS!$A$75) -> 0 | T29: =+IMPORTARDATOSDINAMICOS(" BAS012";TABLAS!$A$75) | V29: 012 | W29: 00 | X29: 12 | AC29: J448+J449
B30: J450+J459 | H30: =+GETPIVOTDATA(" BAS013",TABLAS!$A$75) -> 0 | T30: =+IMPORTARDATOSDINAMICOS(" BAS013";TABLAS!$A$75) | V30: 013 | W30: 00 | X30: 13 | AC30: J450+J459
B31: J46 | H31: =+GETPIVOTDATA(" BAS014",TABLAS!$A$75) -> 1 | T31: =+IMPORTARDATOSDINAMICOS(" BAS014";TABLAS!$A$75) | V31: 014 | W31: 00 | X31: 14 | AC31: J46
B32: J851 | H32: =+GETPIVOTDATA(" BAS015",TABLAS!$A$75) -> 0 | T32: =+IMPORTARDATOSDINAMICOS(" BAS015";TABLAS!$A$75) | V32: 015 | W32: 00 | X32: 15 | AC32: J851
B33: J86 | H33: =+GETPIVOTDATA(" BAS016",TABLAS!$A$75) -> 0 | T33: =+IMPORTARDATOSDINAMICOS(" BAS016";TABLAS!$A$75) | V33: 016 | W33: 00 | X33: 16 | AC33: J86
B34: J90 | H34: =+GETPIVOTDATA(" BAS017",TABLAS!$A$75) -> 0 | T34: =+IMPORTARDATOSDINAMICOS(" BAS017";TABLAS!$A$75) | V34: 017 | W34: 00 | X34: 17 | AC34: J90
B35: J939 | H35: =+GETPIVOTDATA(" BAS018",TABLAS!$A$75) -> 0 | T35: =+IMPORTARDATOSDINAMICOS(" BAS018";TABLAS!$A$75) | V35: 018 | W35: 00 | X35: 18 | AC35: J939
B37: MORBILIDAD DEL ADOLESCENTE | J37: MORBILIDAD DEL ADOLESCENTE
B38: CIE10 | C38: DIAGNÓSTICOS | H38: Nro | J38: CIE10 | K38: DIAGNÓSTICOS | P38: Nro
B39: Enfermedades Diarreicas Agudas Complicadas | J39: Enfermedades Diarreicas Agudas No Complicadas | AC39: (A00+E86 /D) | AE39: A00
B40: (A00+E86 /D) | H40: =+GETPIVOTDATA(" BAS027",TABLAS!$A$75) -> 0 | J40: A00 | P40: =+GETPIVOTDATA(" BAS058",TABLAS!$A$75) -> 0 | T40: =CONCATENATE($U$17,V40,$U$16) -> =+IMPORTARDATOSDINAMICOS(" BAS027";TABLAS!$A$75) | U40: =CONCATENATE($U$17,W40,$U$16) -> =+IMPORTARDATOSDINAMICOS(" BAS058";TABLAS!$A$75) | V40: =IF(X40<10,CONCATENATE("00",X40),IF(AND(X40<100,X40>9),CONCATENATE("0",X40),X40)) -> 027 | W40: =IF(Y40<10,CONCATENATE("00",Y40),IF(AND(Y40<100,Y40>9),CONCATENATE("0",Y40),Y40)) -> 058 | X40: =+Y25+1 -> 27 | Y40: =+X70+1 -> 58 | AC40: (A00+R571 /D) | AE40: A011
B41: (A00+R571 /D) | H41: =+GETPIVOTDATA(" BAS028",TABLAS!$A$75) -> 0 | J41: A011 | P41: =+GETPIVOTDATA(" BAS059",TABLAS!$A$75) -> 0 | T41: =+IMPORTARDATOSDINAMICOS(" BAS028";TABLAS!$A$75) | U41: =+IMPORTARDATOSDINAMICOS(" BAS059";TABLAS!$A$75) | V41: 028 | W41: 059 | X41: =+X40+1 -> 28 | Y41: 59 | AC41: (A011+E86 /D) | AE41: A013
B42: (A011+E86 /D) | H42: =+GETPIVOTDATA(" BAS029",TABLAS!$A$75) -> 0 | J42: A013 | P42: =+GETPIVOTDATA(" BAS060",TABLAS!$A$75) -> 0 | T42: =+IMPORTARDATOSDINAMICOS(" BAS029";TABLAS!$A$75) | U42: =+IMPORTARDATOSDINAMICOS(" BAS060";TABLAS!$A$75) | V42: 029 | W42: 060 | X42: 29 | Y42: 60 | AC42: (A011+R571 /D) | AE42: A018
B43: (A011+R571 /D) | H43: =+GETPIVOTDATA(" BAS030",TABLAS!$A$75) -> 0 | J43: A018 | P43: =+GETPIVOTDATA(" BAS061",TABLAS!$A$75) -> 0 | T43: =+IMPORTARDATOSDINAMICOS(" BAS030";TABLAS!$A$75) | U43: =+IMPORTARDATOSDINAMICOS(" BAS061";TABLAS!$A$75) | V43: 030 | W43: 061 | X43: 30 | Y43: 61 | AC43: (A013+E86 / D) | AE43: A020
B44: (A013+E86 / D) | H44: =+GETPIVOTDATA(" BAS031",TABLAS!$A$75) -> 0 | J44: A020 | P44: =+GETPIVOTDATA(" BAS062",TABLAS!$A$75) -> 0 | T44: =+IMPORTARDATOSDINAMICOS(" BAS031";TABLAS!$A$75) | U44: =+IMPORTARDATOSDINAMICOS(" BAS062";TABLAS!$A$75) | V44: 031 | W44: 062 | X44: 31 | Y44: 62 | AC44: (A013+R571 /D) | AE44: A029
B45: (A013+R571 /D) | H45: =+GETPIVOTDATA(" BAS032",TABLAS!$A$75) -> 0 | J45: A029 | P45: =+GETPIVOTDATA(" BAS063",TABLAS!$A$75) -> 0 | T45: =+IMPORTARDATOSDINAMICOS(" BAS032";TABLAS!$A$75) | U45: =+IMPORTARDATOSDINAMICOS(" BAS063";TABLAS!$A$75) | V45: 032 | W45: 063 | X45: 32 | Y45: 63 | AC45: (A018+E86 /D) | AE45: A030
B46: (A018+E86 /D) | H46: =+GETPIVOTDATA(" BAS033",TABLAS!$A$75) -> 0 | J46: A030 | P46: =+GETPIVOTDATA(" BAS064",TABLAS!$A$75) -> 0 | T46: =+IMPORTARDATOSDINAMICOS(" BAS033";TABLAS!$A$75) | U46: =+IMPORTARDATOSDINAMICOS(" BAS064";TABLAS!$A$75) | V46: 033 | W46: 064 | X46: 33 | Y46: 64 | AC46: (A018+R571 /D) | AE46: A039
B47: (A018+R571 /D) | H47: =+GETPIVOTDATA(" BAS034",TABLAS!$A$75) -> 0 | J47: A039 | P47: =+GETPIVOTDATA(" BAS065",TABLAS!$A$75) -> 0 | T47: =+IMPORTARDATOSDINAMICOS(" BAS034";TABLAS!$A$75) | U47: =+IMPORTARDATOSDINAMICOS(" BAS065";TABLAS!$A$75) | V47: 034 | W47: 065 | X47: 34 | Y47: 65 | AC47: (A020 + E86 / D) | AE47: A045
B48: (A020 + E86 / D) | H48: =+GETPIVOTDATA(" BAS035",TABLAS!$A$75) -> 0 | J48: A045 | P48: =+GETPIVOTDATA(" BAS066",TABLAS!$A$75) -> 0 | T48: =+IMPORTARDATOSDINAMICOS(" BAS035";TABLAS!$A$75) | U48: =+IMPORTARDATOSDINAMICOS(" BAS066";TABLAS!$A$75) | V48: 035 | W48: 066 | X48: 35 | Y48: 66 | AC48: (A020+R571 /D) | AE48: A049
B49: (A020+R571 /D) | H49: =+GETPIVOTDATA(" BAS036",TABLAS!$A$75) -> 0 | J49: A049 | P49: =+GETPIVOTDATA(" BAS067",TABLAS!$A$75) -> 22 | T49: =+IMPORTARDATOSDINAMICOS(" BAS036";TABLAS!$A$75) | U49: =+IMPORTARDATOSDINAMICOS(" BAS067";TABLAS!$A$75) | V49: 036 | W49: 067 | X49: 36 | Y49: 67 | AC49: (A029+E86 / D) | AE49: A05
B50: (A029+E86 / D) | H50: =+GETPIVOTDATA(" BAS037",TABLAS!$A$75) -> 0 | J50: A05 | P50: =+GETPIVOTDATA(" BAS068",TABLAS!$A$75) -> 7 | T50: =+IMPORTARDATOSDINAMICOS(" BAS037";TABLAS!$A$75) | U50: =+IMPORTARDATOSDINAMICOS(" BAS068";TABLAS!$A$75) | V50: 037 | W50: 068 | X50: 37 | Y50: 68 | AC50: (A029+R571 /D) | AE50: A060
B51: (A029+R571 /D) | H51: =+GETPIVOTDATA(" BAS038",TABLAS!$A$75) -> 0 | J51: A060 | P51: =+GETPIVOTDATA(" BAS069",TABLAS!$A$75) -> 0 | T51: =+IMPORTARDATOSDINAMICOS(" BAS038";TABLAS!$A$75) | U51: =+IMPORTARDATOSDINAMICOS(" BAS069";TABLAS!$A$75) | V51: 038 | W51: 069 | X51: 38 | Y51: 69 | AC51: (A030+E86 /D) | AE51: A062
B52: (A030+E86 /D) | H52: =+GETPIVOTDATA(" BAS039",TABLAS!$A$75) -> 0 | J52: A062 | P52: =+GETPIVOTDATA(" BAS070",TABLAS!$A$75) -> 0 | T52: =+IMPORTARDATOSDINAMICOS(" BAS039";TABLAS!$A$75) | U52: =+IMPORTARDATOSDINAMICOS(" BAS070";TABLAS!$A$75) | V52: 039 | W52: 070 | X52: 39 | Y52: 70 | AC52: (A039+E86 /D) | AE52: A07
B53: (A039+E86 /D) | H53: =+GETPIVOTDATA(" BAS040",TABLAS!$A$75) -> 0 | J53: A07 | P53: =+GETPIVOTDATA(" BAS071",TABLAS!$A$75) -> 10 | T53: =+IMPORTARDATOSDINAMICOS(" BAS040";TABLAS!$A$75) | U53: =+IMPORTARDATOSDINAMICOS(" BAS071";TABLAS!$A$75) | V53: 040 | W53: 071 | X53: 40 | Y53: 71 | AC53: (A045+E86 /D) | AE53: A080
B54: (A045+E86 /D) | H54: =+GETPIVOTDATA(" BAS041",TABLAS!$A$75) -> 0 | J54: A080 | P54: =+GETPIVOTDATA(" BAS072",TABLAS!$A$75) -> 0 | T54: =+IMPORTARDATOSDINAMICOS(" BAS041";TABLAS!$A$75) | U54: =+IMPORTARDATOSDINAMICOS(" BAS072";TABLAS!$A$75) | V54: 041 | W54: 072 | X54: 41 | Y54: 72 | AC54: (A049+E86 /D) | AE54: A082
B55: (A049+E86 /D) | H55: =+GETPIVOTDATA(" BAS042",TABLAS!$A$75) -> 0 | J55: A082 | P55: =+GETPIVOTDATA(" BAS073",TABLAS!$A$75) -> 0 | T55: =+IMPORTARDATOSDINAMICOS(" BAS042";TABLAS!$A$75) | U55: =+IMPORTARDATOSDINAMICOS(" BAS073";TABLAS!$A$75) | V55: 042 | W55: 073 | X55: 42 | Y55: 73 | AC55: (A05+E86 /D) | AE55: A083
B56: (A05+E86 /D) | H56: =+GETPIVOTDATA(" BAS043",TABLAS!$A$75) -> 0 | J56: A083 | P56: =+GETPIVOTDATA(" BAS074",TABLAS!$A$75) -> 0 | T56: =+IMPORTARDATOSDINAMICOS(" BAS043";TABLAS!$A$75) | U56: =+IMPORTARDATOSDINAMICOS(" BAS074";TABLAS!$A$75) | V56: 043 | W56: 074 | X56: 43 | Y56: 74 | AC56: (A05+R571 /D) | AE56: A084
B57: (A05+R571 /D) | H57: =+GETPIVOTDATA(" BAS044",TABLAS!$A$75) -> 0 | J57: A084 | P57: =+GETPIVOTDATA(" BAS075",TABLAS!$A$75) -> 4 | T57: =+IMPORTARDATOSDINAMICOS(" BAS044";TABLAS!$A$75) | U57: =+IMPORTARDATOSDINAMICOS(" BAS075";TABLAS!$A$75) | V57: 044 | W57: 075 | X57: =+X56+1 -> 44 | Y57: 75 | AC57: (A060+E86 /D)
B58: (A060+E86 /D) | H58: =+GETPIVOTDATA(" BAS045",TABLAS!$A$75) -> 0 | T58: =+IMPORTARDATOSDINAMICOS(" BAS045";TABLAS!$A$75) | V58: 045 | W58: 00 | X58: 45 | AC58: (A062+E86 /D)
B59: (A062+E86 /D) | H59: =+GETPIVOTDATA(" BAS046",TABLAS!$A$75) -> 0 | T59: =+IMPORTARDATOSDINAMICOS(" BAS046";TABLAS!$A$75) | V59: 046 | W59: 00 | X59: 46 | AC59: (A07+E86 /D)
B60: (A07+E86 /D) | H60: =+GETPIVOTDATA(" BAS047",TABLAS!$A$75) -> 0 | T60: =+IMPORTARDATOSDINAMICOS(" BAS047";TABLAS!$A$75) | V60: 047 | W60: 00 | X60: 47 | AC60: (A07+R571 /D)
B61: (A07+R571 /D) | H61: =+GETPIVOTDATA(" BAS048",TABLAS!$A$75) -> 0 | T61: =+IMPORTARDATOSDINAMICOS(" BAS048";TABLAS!$A$75) | V61: 048 | W61: 00 | X61: 48 | AC61: (A080+E86 /D)
B62: (A080+E86 /D) | H62: =+GETPIVOTDATA(" BAS049",TABLAS!$A$75) -> 0 | T62: =+IMPORTARDATOSDINAMICOS(" BAS049";TABLAS!$A$75) | V62: 049 | W62: 00 | X62: 49 | AC62: (A080+R571 /D)
B63: (A080+R571 /D) | H63: =+GETPIVOTDATA(" BAS050",TABLAS!$A$75) -> 0 | T63: =+IMPORTARDATOSDINAMICOS(" BAS050";TABLAS!$A$75) | V63: 050 | W63: 00 | X63: 50 | AC63: (A082+E86 /D )
B64: (A082+E86 /D ) | H64: =+GETPIVOTDATA(" BAS051",TABLAS!$A$75) -> 0 | T64: =+IMPORTARDATOSDINAMICOS(" BAS051";TABLAS!$A$75) | V64: 051 | W64: 00 | X64: 51 | AC64: (A082+R571 /D )
B65: (A082+R571 /D ) | H65: =+GETPIVOTDATA(" BAS052",TABLAS!$A$75) -> 0 | T65: =+IMPORTARDATOSDINAMICOS(" BAS052";TABLAS!$A$75) | V65: 052 | W65: 00 | X65: 52 | AC65: (A083+E86 /D)
B66: (A083+E86 /D) | H66: =+GETPIVOTDATA(" BAS053",TABLAS!$A$75) -> 0 | T66: =+IMPORTARDATOSDINAMICOS(" BAS053";TABLAS!$A$75) | V66: 053 | W66: 00 | X66: 53 | AC66: (A083+R571 /D)
B67: (A083+R571 /D) | H67: =+GETPIVOTDATA(" BAS054",TABLAS!$A$75) -> 0 | T67: =+IMPORTARDATOSDINAMICOS(" BAS054";TABLAS!$A$75) | V67: 054 | W67: 00 | X67: 54 | AC67: (A084+E86 /D)
B68: (A084+E86 /D) | H68: =+GETPIVOTDATA(" BAS055",TABLAS!$A$75) -> 0 | T68: =+IMPORTARDATOSDINAMICOS(" BAS055";TABLAS!$A$75) | V68: 055 | W68: 00 | X68: 55 | AC68: (A084+R571 /D)
B69: (A084+R571 /D) | H69: =+GETPIVOTDATA(" BAS056",TABLAS!$A$75) -> 0 | T69: =+IMPORTARDATOSDINAMICOS(" BAS056";TABLAS!$A$75) | V69: 056 | W69: 00 | X69: 56 | AC69: (A099+R571 /D)
B70: (A099+R571 /D) | H70: =+GETPIVOTDATA(" BAS057",TABLAS!$A$75) -> 0 | T70: =+IMPORTARDATOSDINAMICOS(" BAS057";TABLAS!$A$75) | V70: 057 | W70: 00 | X70: 57
B72: usp_TRAMA_BASE_ADOLESCENTE_2020_RPT_02_CONTROL
H73: 1. EESS | K73: 2. I.E. | N73: TOTAL
B74: CONTROL Y SEGUIMIENTO DE ADOLESCENTES | H74: Total | I74: 12a - 14a | J74: 15a-17a | K74: Total | L74: 12a - 14a | M74: 15a-17a | N74: Total | O74: 12a - 14a | P74: 15a-17a | AC74: usp_TRAMA_BASE_ADOLESCENTE_2020_RPT_02_CONTROL
B75: C8002 | C75: Plan de Atención Integral de Salud | E75: Iniciado | F75: Paquete Basico | H75: =SUM(I75:J75) -> 318 | I75: =+GETPIVOTDATA(" BAS076",TABLAS!$A$75) -> 174 | J75: =+GETPIVOTDATA(" BAS077",TABLAS!$A$75) -> 144 | K75: =SUM(L75:M75) -> 2 | L75: =+GETPIVOTDATA(" BAS078",TABLAS!$A$75) -> 2 | M75: =+GETPIVOTDATA(" BAS079",TABLAS!$A$75) -> 0 | N75: =SUM(O75:P75) -> 320 | O75: =+I75+L75 -> 176 | P75: =+J75+M75 -> 144 | S75: =CONCATENATE($U$17,X75,$U$16) -> =+IMPORTARDATOSDINAMICOS(" BAS076";TABLAS!$A$75) | T75: =CONCATENATE($U$17,Y75,$U$16) -> =+IMPORTARDATOSDINAMICOS(" BAS077";TABLAS!$A$75) | V75: =CONCATENATE($U$17,Z75,$U$16) -> =+IMPORTARDATOSDINAMICOS(" BAS078";TABLAS!$A$75) | W75: =+IMPORTARDATOSDINAMICOS(" BAS079";TABLAS!$A$75) | X75: =IF(AB75<10,CONCATENATE("00",AB75),IF(AND(AB75<100,AB75>9),CONCATENATE("0",AB75),AB75)) -> 076 | Y75: =IF(AC75<10,CONCATENATE("00",AC75),IF(AND(AC75<100,AC75>9),CONCATENATE("0",AC75),AC75)) -> 077 | Z75: 078 | AA75: 079 | AB75: =+Y57+1 -> 76 | AC75: =+AB75+1 -> 77 | AD75: 78 | AE75: 79 | AG75: Total
F76: Paquete Completo | H76: =SUM(I76:J76) -> 324 | I76: =+GETPIVOTDATA(" BAS080",TABLAS!$A$75) -> 168 | J76: =+GETPIVOTDATA(" BAS081",TABLAS!$A$75) -> 156 | K76: 12 | L76: =+GETPIVOTDATA(" BAS082",TABLAS!$A$75) -> 9 | M76: =+GETPIVOTDATA(" BAS083",TABLAS!$A$75) -> 3 | N76: =SUM(O76:P76) -> 336 | O76: =+I76+L76 -> 177 | P76: =+J76+M76 -> 159 | S76: =+IMPORTARDATOSDINAMICOS(" BAS080";TABLAS!$A$75) | T76: =+IMPORTARDATOSDINAMICOS(" BAS081";TABLAS!$A$75) | V76: =+IMPORTARDATOSDINAMICOS(" BAS082";TABLAS!$A$75) | W76: =+IMPORTARDATOSDINAMICOS(" BAS083";TABLAS!$A$75) | X76: =IF(AB76<10,CONCATENATE("00",AB76),IF(AND(AB76<100,AB76>9),CONCATENATE("0",AB76),AB76)) -> 080 | Y76: =IF(AC76<10,CONCATENATE("00",AC76),IF(AND(AC76<100,AC76>9),CONCATENATE("0",AC76),AC76)) -> 081 | Z76: =IF(AD76<10,CONCATENATE("00",AD76),IF(AND(AD76<100,AD76>9),CONCATENATE("0",AD76),AD76)) -> 082 | AA76: =IF(AE76<10,CONCATENATE("00",AE76),IF(AND(AE76<100,AE76>9),CONCATENATE("0",AE76),AE76)) -> 083 | AB76: =+AE75+1 -> 80 | AC76: 81 | AD76: 82 | AE76: 83 | AG76: DX 1= Z003/D + DX 2= 99384/ D + LAB= 1 + (DX 3= C8002 / D + 1º LAB=1 + 2º LAB = 1 si es paquete básico; 2 si es paquete completo; 3 si es paquete especializado + 3º LAB = 1 si es en EE.SS; 2 si es en Institución Educativa.)
F77: Paquete Especializado | H77: 0 | I77: =+GETPIVOTDATA(" BAS084",TABLAS!$A$75) -> 0 | J77: =+GETPIVOTDATA(" BAS085",TABLAS!$A$75) -> 0 | K77: 0 | L77: =+GETPIVOTDATA(" BAS086",TABLAS!$A$75) -> 0 | M77: =+GETPIVOTDATA(" BAS087",TABLAS!$A$75) -> 0 | N77: 0 | O77: 0 | P77: 0 | S77: =+IMPORTARDATOSDINAMICOS(" BAS084";TABLAS!$A$75) | T77: =+IMPORTARDATOSDINAMICOS(" BAS085";TABLAS!$A$75) | V77: =+IMPORTARDATOSDINAMICOS(" BAS086";TABLAS!$A$75) | W77: =+IMPORTARDATOSDINAMICOS(" BAS087";TABLAS!$A$75) | X77: 084 | Y77: 085 | Z77: 086 | AA77: 087 | AB77: =+AE76+1 -> 84 | AC77: 85 | AD77: 86 | AE77: 87
E78: Concluido | F78: Paquete Basico | H78: 10 | I78: =+GETPIVOTDATA(" BAS088",TABLAS!$A$75) -> 8 | J78: =+GETPIVOTDATA(" BAS089",TABLAS!$A$75) -> 2 | K78: 0 | L78: =+GETPIVOTDATA(" BAS090",TABLAS!$A$75) -> 0 | M78: =+GETPIVOTDATA(" BAS091",TABLAS!$A$75) -> 0 | N78: 10 | O78: 8 | P78: 2 | S78: =+IMPORTARDATOSDINAMICOS(" BAS088";TABLAS!$A$75) | T78: =+IMPORTARDATOSDINAMICOS(" BAS089";TABLAS!$A$75) | V78: =+IMPORTARDATOSDINAMICOS(" BAS090";TABLAS!$A$75) | W78: =+IMPORTARDATOSDINAMICOS(" BAS091";TABLAS!$A$75) | X78: 088 | Y78: 089 | Z78: 090 | AA78: 091 | AB78: 88 | AC78: 89 | AD78: 90 | AE78: 91
F79: Paquete Completo | H79: 4 | I79: =+GETPIVOTDATA(" BAS092",TABLAS!$A$75) -> 2 | J79: =+GETPIVOTDATA(" BAS093",TABLAS!$A$75) -> 2 | K79: 0 | L79: =+GETPIVOTDATA(" BAS094",TABLAS!$A$75) -> 0 | M79: =+GETPIVOTDATA(" BAS095",TABLAS!$A$75) -> 0 | N79: 4 | O79: 2 | P79: 2 | S79: =+IMPORTARDATOSDINAMICOS(" BAS092";TABLAS!$A$75) | T79: =+IMPORTARDATOSDINAMICOS(" BAS093";TABLAS!$A$75) | V79: =+IMPORTARDATOSDINAMICOS(" BAS094";TABLAS!$A$75) | W79: =+IMPORTARDATOSDINAMICOS(" BAS095";TABLAS!$A$75) | X79: 092 | Y79: 093 | Z79: 094 | AA79: 095 | AB79: 92 | AC79: 93 | AD79: 94 | AE79: 95 | AG79: DX 1= Z003/D + DX 2= 99384 / D + LAB= TA + (DX 3= C8002 / D + 1º LAB=TA + 2º LAB = 1 si es paquete básico; 2 si es paquete completo; 3 si es paquete especializado + 3º LAB = 1 si es en EE.SS; 2 si es en Institución Educativa.)
F80: Paquete Especializado | H80: 0 | I80: =+GETPIVOTDATA(" BAS096",TABLAS!$A$75) -> 0 | J80: =+GETPIVOTDATA(" BAS097",TABLAS!$A$75) -> 0 | K80: 0 | L80: =+GETPIVOTDATA(" BAS098",TABLAS!$A$75) -> 0 | M80: =+GETPIVOTDATA(" BAS099",TABLAS!$A$75) -> 0 | N80: 0 | O80: 0 | P80: 0 | S80: =+IMPORTARDATOSDINAMICOS(" BAS096";TABLAS!$A$75) | T80: =+IMPORTARDATOSDINAMICOS(" BAS097";TABLAS!$A$75) | V80: =+IMPORTARDATOSDINAMICOS(" BAS098";TABLAS!$A$75) | W80: =+IMPORTARDATOSDINAMICOS(" BAS099";TABLAS!$A$75) | X80: 096 | Y80: 097 | Z80: 098 | AA80: 099 | AB80: 96 | AC80: 97 | AD80: 98 | AE80: 99
B81: Z003 | C81: Examen del estado de desarrollo del adolescente | H81: 989 | I81: =+GETPIVOTDATA(" BAS100",TABLAS!$A$75) -> 523 | J81: =+GETPIVOTDATA(" BAS101",TABLAS!$A$75) -> 466 | S81: =+IMPORTARDATOSDINAMICOS(" BAS100";TABLAS!$A$75) | T81: =+IMPORTARDATOSDINAMICOS(" BAS101";TABLAS!$A$75) | V81: =+IMPORTARDATOSDINAMICOS(" BAS";TABLAS!$A$75) | W81: =+IMPORTARDATOSDINAMICOS(" BAS";TABLAS!$A$75) | X81: 100 | Y81: 101 | AB81: 100 | AC81: 101
B82: 99384 | C82: Evaluación Integral del Adolescente | E82: 1º Control | F82: Paquete Basico | H82: 318 | I82: =+GETPIVOTDATA(" BAS102",TABLAS!$A$75) -> 174 | J82: =+GETPIVOTDATA(" BAS103",TABLAS!$A$75) -> 144 | K82: =SUM(L82:M82) -> 2 | L82: =+GETPIVOTDATA(" BAS104",TABLAS!$A$75) -> 2 | M82: =+GETPIVOTDATA(" BAS105",TABLAS!$A$75) -> 0 | N82: =SUM(O82:P82) -> 320 | O82: =+I82+L82 -> 176 | P82: =+J82+M82 -> 144 | S82: =+IMPORTARDATOSDINAMICOS(" BAS102";TABLAS!$A$75) | T82: =+IMPORTARDATOSDINAMICOS(" BAS103";TABLAS!$A$75) | V82: =+IMPORTARDATOSDINAMICOS(" BAS104";TABLAS!$A$75) | W82: =+IMPORTARDATOSDINAMICOS(" BAS105";TABLAS!$A$75) | X82: 102 | Y82: 103 | Z82: 104 | AA82: 105 | AB82: =+AC81+1 -> 102 | AC82: 103 | AD82: 104 | AE82: 105 | AG82: DX 1= Z003/ D
F83: Paquete Completo | H83: 324 | I83: =+GETPIVOTDATA(" BAS106",TABLAS!$A$75) -> 168 | J83: =+GETPIVOTDATA(" BAS107",TABLAS!$A$75) -> 156 | K83: 12 | L83: =+GETPIVOTDATA(" BAS108",TABLAS!$A$75) -> 9 | M83: =+GETPIVOTDATA(" BAS109",TABLAS!$A$75) -> 3 | N83: 336 | O83: 177 | P83: 159 | S83: =+IMPORTARDATOSDINAMICOS(" BAS106";TABLAS!$A$75) | T83: =+IMPORTARDATOSDINAMICOS(" BAS107";TABLAS!$A$75) | V83: =+IMPORTARDATOSDINAMICOS(" BAS108";TABLAS!$A$75) | W83: =+IMPORTARDATOSDINAMICOS(" BAS109";TABLAS!$A$75) | X83: 106 | Y83: 107 | Z83: 108 | AA83: 109 | AB83: 106 | AC83: 107 | AD83: 108 | AE83: 109 | AG83: DX 1= Z003/D + DX 2= 99384/ D + LAB= 1 + (DX3= C8002 / D + 1º LAB=1 + 2º LAB = 1 si es paquete básico; 2 si es paquete completo; 3 si es paquete especializado + 3º LAB = 1 si es en EE.SS; 2 si es en Institución Educativa)
F84: Paquete Especializado | H84: 0 | I84: =+GETPIVOTDATA(" BAS110",TABLAS!$A$75) -> 0 | J84: =+GETPIVOTDATA(" BAS111",TABLAS!$A$75) -> 0 | K84: 0 | L84: =+GETPIVOTDATA(" BAS112",TABLAS!$A$75) -> 0 | M84: =+GETPIVOTDATA(" BAS113",TABLAS!$A$75) -> 0 | N84: 0 | O84: 0 | P84: 0 | S84: =+IMPORTARDATOSDINAMICOS(" BAS110";TABLAS!$A$75) | T84: =+IMPORTARDATOSDINAMICOS(" BAS111";TABLAS!$A$75) | V84: =+IMPORTARDATOSDINAMICOS(" BAS112";TABLAS!$A$75) | W84: =+IMPORTARDATOSDINAMICOS(" BAS113";TABLAS!$A$75) | X84: 110 | Y84: 111 | Z84: 112 | AA84: 113 | AB84: 110 | AC84: 111 | AD84: 112 | AE84: 113
E85: 2º Control | H85: 103 | I85: =+GETPIVOTDATA(" BAS114",TABLAS!$A$75) -> 57 | J85: =+GETPIVOTDATA(" BAS115",TABLAS!$A$75) -> 46 | S85: =+IMPORTARDATOSDINAMICOS(" BAS114";TABLAS!$A$75) | T85: =+IMPORTARDATOSDINAMICOS(" BAS115";TABLAS!$A$75) | V85: =+IMPORTARDATOSDINAMICOS(" BAS";TABLAS!$A$75) | W85: =+IMPORTARDATOSDINAMICOS(" BAS";TABLAS!$A$75) | X85: 114 | Y85: 115 | AB85: 114 | AC85: 115
E86: 3º Control | H86: 15 | I86: =+GETPIVOTDATA(" BAS116",TABLAS!$A$75) -> 10 | J86: =+GETPIVOTDATA(" BAS117",TABLAS!$A$75) -> 5 | S86: =+IMPORTARDATOSDINAMICOS(" BAS116";TABLAS!$A$75) | T86: =+IMPORTARDATOSDINAMICOS(" BAS117";TABLAS!$A$75) | V86: =+IMPORTARDATOSDINAMICOS(" BAS";TABLAS!$A$75) | W86: =+IMPORTARDATOSDINAMICOS(" BAS";TABLAS!$A$75) | X86: 116 | Y86: 117 | AB86: =+AC85+1 -> 116 | AC86: 117 | AG86: DX 1= Z003/D + DX 2= 99384 / D+ LAB= 2 DX 3 = otras prestaciones 1 ó 2 ó 3…...
E87: 4º Control | H87: 1 | I87: =+GETPIVOTDATA(" BAS118",TABLAS!$A$75) -> 1 | J87: =+GETPIVOTDATA(" BAS119",TABLAS!$A$75) -> 0 | S87: =+IMPORTARDATOSDINAMICOS(" BAS118";TABLAS!$A$75) | T87: =+IMPORTARDATOSDINAMICOS(" BAS119";TABLAS!$A$75) | V87: =+IMPORTARDATOSDINAMICOS(" BAS";TABLAS!$A$75) | W87: =+IMPORTARDATOSDINAMICOS(" BAS";TABLAS!$A$75) | X87: 118 | Y87: 119 | AB87: =+AC86+1 -> 118 | AC87: 119 | AG87: DX 1= Z003/D + DX 2= 99384 / D+ LAB= 3 DX 3 = otras prestaciones 1 ó 2 ó 3……
E88: 5º Control | H88: 0 | I88: =+GETPIVOTDATA(" BAS120",TABLAS!$A$75) -> 0 | J88: =+GETPIVOTDATA(" BAS121",TABLAS!$A$75) -> 0 | S88: =+IMPORTARDATOSDINAMICOS(" BAS120";TABLAS!$A$75) | T88: =+IMPORTARDATOSDINAMICOS(" BAS121";TABLAS!$A$75) | V88: =+IMPORTARDATOSDINAMICOS(" BAS";TABLAS!$A$75) | W88: =+IMPORTARDATOSDINAMICOS(" BAS";TABLAS!$A$75) | X88: 120 | Y88: 121 | AB88: =+AC87+1 -> 120 | AC88: 121 | AG88: DX 1= Z003/D + DX 2= 99384 / D + LAB= 4 DX 3 = otras prestaciones 1 ó 2 ó 3……
E89: 6º Control a + controles | H89: 0 | I89: =+GETPIVOTDATA(" BAS122",TABLAS!$A$75) -> 0 | J89: =+GETPIVOTDATA(" BAS123",TABLAS!$A$75) -> 0 | S89: =+IMPORTARDATOSDINAMICOS(" BAS122";TABLAS!$A$75) | T89: =+IMPORTARDATOSDINAMICOS(" BAS123";TABLAS!$A$75) | V89: =+IMPORTARDATOSDINAMICOS(" BAS";TABLAS!$A$75) | W89: =+IMPORTARDATOSDINAMICOS(" BAS";TABLAS!$A$75) | X89: 122 | Y89: 123 | AB89: =+AC88+1 -> 122 | AC89: 123 | AG89: DX 1= Z003/D + DX 2= 99384 / D + LAB= 5 DX 3 = otras prestaciones 1 ó 2 ó 3……
E90: Ultimo Control | F90: Paquete Basico | H90: 0 | I90: =+GETPIVOTDATA(" BAS124",TABLAS!$A$75) -> 0 | J90: =+GETPIVOTDATA(" BAS125",TABLAS!$A$75) -> 0 | K90: =SUM(L90:M90) -> 0 | L90: =+GETPIVOTDATA(" BAS126",TABLAS!$A$75) -> 0 | M90: =+GETPIVOTDATA(" BAS127",TABLAS!$A$75) -> 0 | N90: =SUM(O90:P90) -> 0 | O90: =+I90+L90 -> 0 | P90: =+J90+M90 -> 0 | S90: =+IMPORTARDATOSDINAMICOS(" BAS124";TABLAS!$A$75) | T90: =+IMPORTARDATOSDINAMICOS(" BAS125";TABLAS!$A$75) | V90: =+IMPORTARDATOSDINAMICOS(" BAS126";TABLAS!$A$75) | W90: =+IMPORTARDATOSDINAMICOS(" BAS127";TABLAS!$A$75) | X90: 124 | Y90: 125 | Z90: 126 | AA90: 127 | AB90: =+AC89+1 -> 124 | AC90: 125 | AD90: 126 | AE90: 127 | AG90: DX 1= Z003/D + DX 2= 99384 / D + LAB= >6 DX 3 = otras prestaciones 1 ó 2 ó 3……
F91: Paquete Completo | H91: 0 | I91: =+GETPIVOTDATA(" BAS128",TABLAS!$A$75) -> 0 | J91: =+GETPIVOTDATA(" BAS129",TABLAS!$A$75) -> 0 | K91: 0 | L91: =+GETPIVOTDATA(" BAS130",TABLAS!$A$75) -> 0 | M91: =+GETPIVOTDATA(" BAS131",TABLAS!$A$75) -> 0 | N91: 0 | O91: 0 | P91: 0 | S91: =+IMPORTARDATOSDINAMICOS(" BAS128";TABLAS!$A$75) | T91: =+IMPORTARDATOSDINAMICOS(" BAS129";TABLAS!$A$75) | V91: =CONCATENATE($U$17,Z91,$U$16) -> =+IMPORTARDATOSDINAMICOS(" BAS130";TABLAS!$A$75) | W91: =+IMPORTARDATOSDINAMICOS(" BAS131";TABLAS!$A$75) | X91: 128 | Y91: 129 | Z91: 130 | AA91: 131 | AB91: 128 | AC91: =+AB91+1 -> 129 | AD91: 130 | AE91: 131 | AG91: DX 1 = Z003 / D + DX 2= 99384 / D + LAB= TA + (DX 3=C8002 / D + 1º LAB= TA + 2º LAB = 1 si es paquete básico; 2 si es paquete completo; 3 si es paquete especializado + 3º LAB = 1 si es en EE.SS; 2 si es en Institución Educativa.)
F92: Paquete Especializado | H92: 0 | I92: =+GETPIVOTDATA(" BAS132",TABLAS!$A$75) -> 0 | J92: =+GETPIVOTDATA(" BAS133",TABLAS!$A$75) -> 0 | K92: 0 | L92: =+GETPIVOTDATA(" BAS134",TABLAS!$A$75) -> 0 | M92: =+GETPIVOTDATA(" BAS135",TABLAS!$A$75) -> 0 | N92: 0 | O92: 0 | P92: 0 | S92: =+IMPORTARDATOSDINAMICOS(" BAS132";TABLAS!$A$75) | T92: =+IMPORTARDATOSDINAMICOS(" BAS133";TABLAS!$A$75) | V92: =+IMPORTARDATOSDINAMICOS(" BAS134";TABLAS!$A$75) | W92: =+IMPORTARDATOSDINAMICOS(" BAS135";TABLAS!$A$75) | X92: 132 | Y92: 133 | Z92: 134 | AA92: 135 | AB92: 132 | AC92: 133 | AD92: 134 | AE92: 135
B94: usp_TRAMA_BASE_ADOLESCENTE_2020_RPT_03_VISITA
B95: VISITA DOMICILIARIA | H95: Total | I95: 12a - 14a | J95: 15a-17a | AC95: usp_TRAMA_BASE_ADOLESCENTE_2020_RPT_03_VISITA
B96: C0011 | C96: Visita Domiciliaria | F96: 1º visita | H96: =SUM(I96:J96) -> 170 | I96: =+GETPIVOTDATA(" BAS136",TABLAS!$A$75) -> 50 | J96: =+GETPIVOTDATA(" BAS137",TABLAS!$A$75) -> 120 | T96: =CONCATENATE($U$17,V96,$U$16) -> =+IMPORTARDATOSDINAMICOS(" BAS136";TABLAS!$A$75) | U96: =CONCATENATE($U$17,W96,$U$16) -> =+IMPORTARDATOSDINAMICOS(" BAS137";TABLAS!$A$75) | V96: =IF(X96<10,CONCATENATE("00",X96),IF(AND(X96<100,X96>9),CONCATENATE("0",X96),X96)) -> 136 | W96: =IF(Y96<10,CONCATENATE("00",Y96),IF(AND(Y96<100,Y96>9),CONCATENATE("0",Y96),Y96)) -> 137 | X96: =+AE92+1 -> 136 | Y96: =+X96+1 -> 137 | AC96: Total
F97: 2º visita | H97: =SUM(I97:J97) -> 62 | I97: =+GETPIVOTDATA(" BAS138",TABLAS!$A$75) -> 13 | J97: =+GETPIVOTDATA(" BAS139",TABLAS!$A$75) -> 49 | T97: =+IMPORTARDATOSDINAMICOS(" BAS138";TABLAS!$A$75) | U97: =+IMPORTARDATOSDINAMICOS(" BAS139";TABLAS!$A$75) | V97: =IF(X97<10,CONCATENATE("00",X97),IF(AND(X97<100,X97>9),CONCATENATE("0",X97),X97)) -> 138 | W97: =IF(Y97<10,CONCATENATE("00",Y97),IF(AND(Y97<100,Y97>9),CONCATENATE("0",Y97),Y97)) -> 139 | X97: =+Y96+1 -> 138 | Y97: 139 | AC97: C0011 / D + LAB=1 + EDAD >=12 Y <=17
F98: Con 3 a + visitas | H98: 170 | I98: =+GETPIVOTDATA(" BAS140",TABLAS!$A$75) -> 47 | J98: =+GETPIVOTDATA(" BAS141",TABLAS!$A$75) -> 123 | T98: =+IMPORTARDATOSDINAMICOS(" BAS140";TABLAS!$A$75) | U98: =+IMPORTARDATOSDINAMICOS(" BAS141";TABLAS!$A$75) | V98: 140 | W98: 141 | X98: =+Y97+1 -> 140 | Y98: 141 | AC98: C0011 / D + LAB=2 + EDAD >=12 Y <=17
B99: 99509 | C99: Visita domiciliaria para la ayuda con actividades de la vida diaria y del cuidado personal | F99: 1º visita | H99: 0 | I99: =+GETPIVOTDATA(" BAS142",TABLAS!$A$75) -> 0 | J99: =+GETPIVOTDATA(" BAS143",TABLAS!$A$75) -> 0 | T99: =+IMPORTARDATOSDINAMICOS(" BAS142";TABLAS!$A$75) | U99: =+IMPORTARDATOSDINAMICOS(" BAS143";TABLAS!$A$75) | V99: 142 | W99: 143 | X99: =+Y98+1 -> 142 | Y99: 143 | AC99: C0011 / D + LAB= > ó = 3 + EDAD >=12 Y <=17
F100: 2º visita | H100: 0 | I100: =+GETPIVOTDATA(" BAS144",TABLAS!$A$75) -> 0 | J100: =+GETPIVOTDATA(" BAS145",TABLAS!$A$75) -> 0 | T100: =+IMPORTARDATOSDINAMICOS(" BAS144";TABLAS!$A$75) | U100: =+IMPORTARDATOSDINAMICOS(" BAS145";TABLAS!$A$75) | V100: 144 | W100: 145 | X100: =+Y99+1 -> 144 | Y100: 145 | AC100: 99509 / D + LAB=1 + EDAD >=12 Y <=17
F101: Con 3 a + visitas | H101: 0 | I101: =+GETPIVOTDATA(" BAS146",TABLAS!$A$75) -> 0 | J101: =+GETPIVOTDATA(" BAS147",TABLAS!$A$75) -> 0 | T101: =+IMPORTARDATOSDINAMICOS(" BAS146";TABLAS!$A$75) | U101: =+IMPORTARDATOSDINAMICOS(" BAS147";TABLAS!$A$75) | V101: 146 | W101: 147 | X101: =+Y100+1 -> 146 | Y101: 147 | AC101: 99509 / D + LAB=2 + EDAD >=12 Y <=17
H103: usp_TRAMA_BASE_ADOLESCENTE_2020_RPT_04_EVALUACION
B104: EVALUACIÓN FÍSICA NUTRICIONAL | K104: Total | L104: 12a - 14a | M104: 15a-17a | AC104: usp_TRAMA_BASE_ADOLESCENTE_2020_RPT_04_EVALUACION
A105: 1 | B105: Z000 | C105: Examen médico general | K105: =SUM(L105:M105) -> 72 | L105: =+GETPIVOTDATA(" BAS148",TABLAS!$A$75) -> 30 | M105: =+GETPIVOTDATA(" BAS149",TABLAS!$A$75) -> 42 | T105: =CONCATENATE($U$17,V105,$U$16) -> =+IMPORTARDATOSDINAMICOS(" BAS148";TABLAS!$A$75) | U105: =CONCATENATE($U$17,W105,$U$16) -> =+IMPORTARDATOSDINAMICOS(" BAS149";TABLAS!$A$75) | V105: 148 | W105: 149 | X105: =+Y101+1 -> 148 | Y105: 149 | AC105: Total
A106: 2 | B106: Z019 | C106: Valoración de Factores de Riesgo (DNT) | K106: =SUM(L106:M106) -> 317 | L106: =+GETPIVOTDATA(" BAS150",TABLAS!$A$75) -> 166 | M106: =+GETPIVOTDATA(" BAS151",TABLAS!$A$75) -> 151 | T106: =+IMPORTARDATOSDINAMICOS(" BAS150";TABLAS!$A$75) | U106: =+IMPORTARDATOSDINAMICOS(" BAS151";TABLAS!$A$75) | V106: 150 | W106: 151 | X106: =+Y105+1 -> 150 | Y106: 151 | AC106: Z000 / D + EDAD >=12 Y <=17
A107: 3 | B107: 99209.04 | C107: Evaluación Nutricional Antropometrica (PAB) | F107: RSM= Riesgo Bajo | K107: 406 | L107: =+GETPIVOTDATA(" BAS152",TABLAS!$A$75) -> 222 | M107: =+GETPIVOTDATA(" BAS153",TABLAS!$A$75) -> 184 | T107: =+IMPORTARDATOSDINAMICOS(" BAS152";TABLAS!$A$75) | U107: =+IMPORTARDATOSDINAMICOS(" BAS153";TABLAS!$A$75) | V107: 152 | W107: 153 | X107: =+Y106+1 -> 152 | Y107: 153 | AC107: Z019 /D + EDAD >=12 Y <=17
A108: 4 | F108: RSA= Riesgo Alto | K108: 40 | L108: =+GETPIVOTDATA(" BAS154",TABLAS!$A$75) -> 20 | M108: =+GETPIVOTDATA(" BAS155",TABLAS!$A$75) -> 20 | T108: =+IMPORTARDATOSDINAMICOS(" BAS154";TABLAS!$A$75) | U108: =+IMPORTARDATOSDINAMICOS(" BAS155";TABLAS!$A$75) | V108: 154 | W108: 155 | X108: 154 | Y108: 155 | AC108: 99209.04/ D + LAB= RSM + EDAD >=12 Y <=17
A109: 5 | F109: RMA= Riesgo Muy Alto | K109: 5 | L109: =+GETPIVOTDATA(" BAS156",TABLAS!$A$75) -> 1 | M109: =+GETPIVOTDATA(" BAS157",TABLAS!$A$75) -> 4 | T109: =+IMPORTARDATOSDINAMICOS(" BAS156";TABLAS!$A$75) | U109: =+IMPORTARDATOSDINAMICOS(" BAS157";TABLAS!$A$75) | V109: 156 | W109: 157 | X109: 156 | Y109: 157 | AC109: 99209.04/ D + LAB= RSA + EDAD >=12 Y <=17
A110: 6 | B110: E660 | C110: Índice de Masa Corporal (IMC) | E110: Obesidad debido a exceso de caloría (Sobrepeso) | K110: 0 | L110: =+GETPIVOTDATA(" BAS158",TABLAS!$A$75) -> 0 | M110: =+GETPIVOTDATA(" BAS159",TABLAS!$A$75) -> 0 | T110: =+IMPORTARDATOSDINAMICOS(" BAS158";TABLAS!$A$75) | U110: =+IMPORTARDATOSDINAMICOS(" BAS159";TABLAS!$A$75) | V110: 158 | W110: 159 | X110: 158 | Y110: 159 | AC110: 99209.04 / D + LAB=RMA + EDAD >=12 Y <=17
A111: 7 | B111: E669 | E111: Obesidad no especificada (Obesidad) | K111: 21 | L111: =+GETPIVOTDATA(" BAS160",TABLAS!$A$75) -> 5 | M111: =+GETPIVOTDATA(" BAS161",TABLAS!$A$75) -> 16 | T111: =+IMPORTARDATOSDINAMICOS(" BAS160";TABLAS!$A$75) | U111: =+IMPORTARDATOSDINAMICOS(" BAS161";TABLAS!$A$75) | V111: 160 | W111: 161 | X111: 160 | Y111: 161 | AC111: E660 / D + LAB=IMC + EDAD >=12 Y <=17
A112: 8 | B112: Z006 | E112: Peso Normal | K112: 250 | L112: =+GETPIVOTDATA(" BAS162",TABLAS!$A$75) -> 113 | M112: =+GETPIVOTDATA(" BAS163",TABLAS!$A$75) -> 137 | T112: =+IMPORTARDATOSDINAMICOS(" BAS162";TABLAS!$A$75) | U112: =+IMPORTARDATOSDINAMICOS(" BAS163";TABLAS!$A$75) | V112: 162 | W112: 163 | X112: 162 | Y112: 163 | AC112: E669 /D + EDAD >=12 Y <=17
A113: 9 | B113: E440 | E113: Desnutrición Proteico Calórica Moderada(Desnutrición Aguda) | K113: 10 | L113: =+GETPIVOTDATA(" BAS164",TABLAS!$A$75) -> 9 | M113: =+GETPIVOTDATA(" BAS165",TABLAS!$A$75) -> 1 | T113: =+IMPORTARDATOSDINAMICOS(" BAS164";TABLAS!$A$75) | U113: =+IMPORTARDATOSDINAMICOS(" BAS165";TABLAS!$A$75) | V113: 164 | W113: 165 | X113: 164 | Y113: 165 | AC113: Z006 /D + EDAD >=12 Y <=17
A114: 10 | B114: E43X | E114: Desnutrición Proteico Calórica Severa No Especificada | K114: 0 | L114: =+GETPIVOTDATA(" BAS166",TABLAS!$A$75) -> 0 | M114: =+GETPIVOTDATA(" BAS167",TABLAS!$A$75) -> 0 | T114: =+IMPORTARDATOSDINAMICOS(" BAS166";TABLAS!$A$75) | U114: =+IMPORTARDATOSDINAMICOS(" BAS167";TABLAS!$A$75) | V114: 166 | W114: 167 | X114: 166 | Y114: 167 | AC114: E440 /D + EDAD >=12 Y <=17
A115: 11 | B115: E344 | C115: Talla/Edad | E115: Estatura Alta Constitucional (Talla Alta) | K115: 0 | L115: =+GETPIVOTDATA(" BAS168",TABLAS!$A$75) -> 0 | M115: =+GETPIVOTDATA(" BAS169",TABLAS!$A$75) -> 0 | T115: =+IMPORTARDATOSDINAMICOS(" BAS168";TABLAS!$A$75) | U115: =+IMPORTARDATOSDINAMICOS(" BAS169";TABLAS!$A$75) | V115: 168 | W115: 169 | X115: 168 | Y115: 169 | AC115: E43X /D + EDAD >=12 Y <=17
A116: 12 | B116: Z006 | E116: Talla Normal | K116: 52 | L116: =+GETPIVOTDATA(" BAS170",TABLAS!$A$75) -> 26 | M116: =+GETPIVOTDATA(" BAS171",TABLAS!$A$75) -> 26 | T116: =+IMPORTARDATOSDINAMICOS(" BAS170";TABLAS!$A$75) | U116: =+IMPORTARDATOSDINAMICOS(" BAS171";TABLAS!$A$75) | V116: 170 | W116: 171 | X116: 170 | Y116: 171 | AC116: E344X /D + EDAD >=12 Y <=17
A117: 13 | B117: E45X | E117: Desnutrición Crónica T/E (Talla Baja) | K117: 16 | L117: =+GETPIVOTDATA(" BAS172",TABLAS!$A$75) -> 9 | M117: =+GETPIVOTDATA(" BAS173",TABLAS!$A$75) -> 7 | T117: =+IMPORTARDATOSDINAMICOS(" BAS172";TABLAS!$A$75) | U117: =+IMPORTARDATOSDINAMICOS(" BAS173";TABLAS!$A$75) | V117: 172 | W117: 173 | X117: 172 | Y117: 173 | AC117: Z006 /D + EDAD >=12 Y <=17
A118: 14 | B118: E785 | C118: Hiperlipidemia No Especificada (Dislipidemia) | K118: 2 | L118: =+GETPIVOTDATA(" BAS174",TABLAS!$A$75) -> 1 | M118: =+GETPIVOTDATA(" BAS175",TABLAS!$A$75) -> 1 | T118: =+IMPORTARDATOSDINAMICOS(" BAS174";TABLAS!$A$75) | U118: =+IMPORTARDATOSDINAMICOS(" BAS175";TABLAS!$A$75) | V118: 174 | W118: 175 | X118: 174 | Y118: 175 | AC118: E45X /D + EDAD >=12 Y <=17
A119: 15 | B119: E65X | C119: Adiposidad Localizada | K119: 2 | L119: =+GETPIVOTDATA(" BAS176",TABLAS!$A$75) -> 0 | M119: =+GETPIVOTDATA(" BAS177",TABLAS!$A$75) -> 2 | T119: =+IMPORTARDATOSDINAMICOS(" BAS176";TABLAS!$A$75) | U119: =+IMPORTARDATOSDINAMICOS(" BAS177";TABLAS!$A$75) | V119: 176 | W119: 177 | X119: 176 | Y119: 177 | AC119: E785 / D + EDAD >=12 Y <=17
A120: 16 | B120: Z728 | C120: Otros Problemas relacionados al Estilo de Vida | K120: 5 | L120: =+GETPIVOTDATA(" BAS178",TABLAS!$A$75) -> 3 | M120: =+GETPIVOTDATA(" BAS179",TABLAS!$A$75) -> 2 | T120: =+IMPORTARDATOSDINAMICOS(" BAS178";TABLAS!$A$75) | U120: =+IMPORTARDATOSDINAMICOS(" BAS179";TABLAS!$A$75) | V120: 178 | W120: 179 | X120: 178 | Y120: 179 | AC120: E65X /D + EDAD >=12 Y <=17
A121: 17 | B121: 85018 | C121: Dosaje de Hemoglobina | K121: 593 | L121: =+GETPIVOTDATA(" BAS180",TABLAS!$A$75) -> 283 | M121: =+GETPIVOTDATA(" BAS181",TABLAS!$A$75) -> 310 | T121: =+IMPORTARDATOSDINAMICOS(" BAS180";TABLAS!$A$75) | U121: =+IMPORTARDATOSDINAMICOS(" BAS181";TABLAS!$A$75) | V121: 180 | W121: 181 | X121: 180 | Y121: 181 | AC121: Z728 /D + EDAD >=12 Y <=17
A122: 18 | B122: 99199.26 | C122: Suplementación de sulfato ferroso y ácido fólico | K122: 439 | L122: =+GETPIVOTDATA(" BAS182",TABLAS!$A$75) -> 198 | M122: =+GETPIVOTDATA(" BAS183",TABLAS!$A$75) -> 241 | T122: =CONCATENATE($U$17,V122,$U$16) -> =+IMPORTARDATOSDINAMICOS(" BAS182";TABLAS!$A$75) | U122: =CONCATENATE($U$17,W122,$U$16) -> =+IMPORTARDATOSDINAMICOS(" BAS183";TABLAS!$A$75) | V122: =IF(X122<10,CONCATENATE("00",X122),IF(AND(X122<100,X122>9),CONCATENATE("0",X122),X122)) -> 182 | W122: =IF(Y122<10,CONCATENATE("00",Y122),IF(AND(Y122<100,Y122>9),CONCATENATE("0",Y122),Y122)) -> 183 | X122: =+Y121+1 -> 182 | Y122: =+X122+1 -> 183 | AC122: 85018 /D + LAB= 1 + EDAD >=12 Y <=17
B124: usp_TRAMA_BASE_ADOLESCENTE_2020_RPT_05_VISUAL
B125: EVALUACIÓN DE LA AGUDEZA VISUAL | I125: Total | J125: 12a - 14a | K125: 15a-17a | AC125: usp_TRAMA_BASE_ADOLESCENTE_2020_RPT_05_VISUAL
B126: Z006 | C126: Normal | I126: =SUM(J126:K126) -> 3 | J126: =+GETPIVOTDATA(" BAS184",TABLAS!$A$75) -> 2 | K126: =+GETPIVOTDATA(" BAS185",TABLAS!$A$75) -> 1 | T126: =CONCATENATE($U$17,V126,$U$16) -> =+IMPORTARDATOSDINAMICOS(" BAS184";TABLAS!$A$75) | U126: =CONCATENATE($U$17,W126,$U$16) -> =+IMPORTARDATOSDINAMICOS(" BAS185";TABLAS!$A$75) | V126: 184 | W126: 185 | X126: =+Y122+1 -> 184 | Y126: 185 | AC126: Total
B127: H547 | C127: Disminución de la Agudeza Visual sin especificación | I127: =SUM(J127:K127) -> 0 | J127: =+GETPIVOTDATA(" BAS186",TABLAS!$A$75) -> 0 | K127: =+GETPIVOTDATA(" BAS187",TABLAS!$A$75) -> 0 | T127: =+IMPORTARDATOSDINAMICOS(" BAS186";TABLAS!$A$75) | U127: =+IMPORTARDATOSDINAMICOS(" BAS187";TABLAS!$A$75) | V127: 186 | W127: 187 | X127: 186 | Y127: 187 | AC127: Z006 / D + LAB= SO + EDAD >=12 Y <=17
B128: 99173 | C128: Prueba de la Agudeza Visual cuantitativa bilateral | I128: 527 | J128: =+GETPIVOTDATA(" BAS188",TABLAS!$A$75) -> 292 | K128: =+GETPIVOTDATA(" BAS189",TABLAS!$A$75) -> 235 | T128: =+IMPORTARDATOSDINAMICOS(" BAS188";TABLAS!$A$75) | U128: =+IMPORTARDATOSDINAMICOS(" BAS189";TABLAS!$A$75) | V128: 188 | W128: 189 | X128: 188 | Y128: 189 | AC128: H547 / D + LAB= SO + EDAD >=12 Y <=17
B129: Z010 | C129: Examen de Ojos y de la Visión (Normal) | I129: 407 | J129: =+GETPIVOTDATA(" BAS190",TABLAS!$A$75) -> 223 | K129: =+GETPIVOTDATA(" BAS191",TABLAS!$A$75) -> 184 | T129: =+IMPORTARDATOSDINAMICOS(" BAS190";TABLAS!$A$75) | U129: =+IMPORTARDATOSDINAMICOS(" BAS191";TABLAS!$A$75) | V129: 190 | W129: 191 | X129: 190 | Y129: 191 | AC129: 99173 /D + LAB= resultado de la evaluación + EDAD >=12 Y <=17
C130: Examen de Ojos y de la Visión (Anormal) | I130: 21 | J130: =+GETPIVOTDATA(" BAS192",TABLAS!$A$75) -> 16 | K130: =+GETPIVOTDATA(" BAS193",TABLAS!$A$75) -> 5 | T130: =+IMPORTARDATOSDINAMICOS(" BAS192";TABLAS!$A$75) | U130: =+IMPORTARDATOSDINAMICOS(" BAS193";TABLAS!$A$75) | V130: 192 | W130: 193 | X130: 192 | Y130: 193 | AC130: Z010 /D + LAB=N + EDAD >=12 Y <=17
B131: 99401.16 | C131: Consejería ocular | I131: 332 | J131: =+GETPIVOTDATA(" BAS194",TABLAS!$A$75) -> 183 | K131: =+GETPIVOTDATA(" BAS195",TABLAS!$A$75) -> 149 | T131: =+IMPORTARDATOSDINAMICOS(" BAS194";TABLAS!$A$75) | U131: =+IMPORTARDATOSDINAMICOS(" BAS195";TABLAS!$A$75) | V131: 194 | W131: 195 | X131: 194 | Y131: 195 | AC131: Z010 /D + LAB = A + EDAD >=12 Y <=17
B133: usp_TRAMA_BASE_ADOLESCENTE_2020_RPT_06_AUDITIVA
B134: EVALUACIÓN DE LA AGUDEZA AUDITIVA | H134: Total | I134: 12a - 14a | J134: 15a-17a | AC134: usp_TRAMA_BASE_ADOLESCENTE_2020_RPT_06_AUDITIVA
B135: H919 | C135: Disminución de la Agudeza Auditiva sin Especificación | H135: =SUM(I135:J135) -> 0 | I135: =+GETPIVOTDATA(" BAS196",TABLAS!$A$75) -> 0 | J135: =+GETPIVOTDATA(" BAS197",TABLAS!$A$75) -> 0 | T135: =+IMPORTARDATOSDINAMICOS(" BAS196";TABLAS!$A$75) | U135: =+IMPORTARDATOSDINAMICOS(" BAS197";TABLAS!$A$75) | V135: =IF(X135<10,CONCATENATE("00",X135),IF(AND(X135<100,X135>9),CONCATENATE("0",X135),X135)) -> 196 | W135: =IF(Y135<10,CONCATENATE("00",Y135),IF(AND(Y135<100,Y135>9),CONCATENATE("0",Y135),Y135)) -> 197 | X135: =+Y131+1 -> 196 | Y135: 197 | AC135: Total
B136: Z011 | C136: Examen de Oídos y de la Audición | F136: Normal | H136: =SUM(I136:J136) -> 382 | I136: =+GETPIVOTDATA(" BAS198",TABLAS!$A$75) -> 210 | J136: =+GETPIVOTDATA(" BAS199",TABLAS!$A$75) -> 172 | T136: =+IMPORTARDATOSDINAMICOS(" BAS198";TABLAS!$A$75) | U136: =+IMPORTARDATOSDINAMICOS(" BAS199";TABLAS!$A$75) | V136: 198 | W136: 199 | X136: 198 | Y136: 199 | AC136: H919/ D + EDAD >=12 Y <=17
F137: Anormal | H137: 0 | I137: =+GETPIVOTDATA(" BAS200",TABLAS!$A$75) -> 0 | J137: =+GETPIVOTDATA(" BAS201",TABLAS!$A$75) -> 0 | T137: =CONCATENATE($U$17,V137,$U$16) -> =+IMPORTARDATOSDINAMICOS(" BAS200";TABLAS!$A$75) | U137: =CONCATENATE($U$17,W137,$U$16) -> =+IMPORTARDATOSDINAMICOS(" BAS201";TABLAS!$A$75) | V137: =IF(X137<10,CONCATENATE("00",X137),IF(AND(X137<100,X137>9),CONCATENATE("0",X137),X137)) -> 200 | W137: =IF(Y137<10,CONCATENATE("00",Y137),IF(AND(Y137<100,Y137>9),CONCATENATE("0",Y137),Y137)) -> 201 | X137: =+Y136+1 -> 200 | Y137: =+X137+1 -> 201
B139: usp_TRAMA_BASE_ADOLESCENTE_2020_RPT_07_ODONTOLOGICA
B140: ATENCIÓN ODONTOLÓGICA | J140: Total | K140: 12a - 14a | L140: 15a-17a | AC140: usp_TRAMA_BASE_ADOLESCENTE_2020_RPT_07_ODONTOLOGICA
B141: D1310 | C141: Asesoría Nutricional para el Control de Enfermedades Dentales | J141: =SUM(K141:L141) -> 684 | K141: =+GETPIVOTDATA(" BAS202",TABLAS!$A$75) -> 317 | L141: =+GETPIVOTDATA(" BAS203",TABLAS!$A$75) -> 367 | T141: =CONCATENATE($U$17,V141,$U$16) -> =+IMPORTARDATOSDINAMICOS(" BAS202";TABLAS!$A$75) | U141: =CONCATENATE($U$17,W141,$U$16) -> =+IMPORTARDATOSDINAMICOS(" BAS203";TABLAS!$A$75) | V141: 202 | W141: 203 | X141: =+Y137+1 -> 202 | Y141: 203 | AC141: Total
B142: D1330 | C142: Instrucción de Higiene Oral | J142: =SUM(K142:L142) -> 685 | K142: =+GETPIVOTDATA(" BAS204",TABLAS!$A$75) -> 316 | L142: =+GETPIVOTDATA(" BAS205",TABLAS!$A$75) -> 369 | T142: =+IMPORTARDATOSDINAMICOS(" BAS204";TABLAS!$A$75) | U142: =+IMPORTARDATOSDINAMICOS(" BAS205";TABLAS!$A$75) | V142: 204 | W142: 205 | X142: 204 | Y142: 205 | AC142: D1310 /D + EDAD >=12 Y <=17
B143: D0120 | C143: Examen Estomatológico | J143: 20 | K143: =+GETPIVOTDATA(" BAS206",TABLAS!$A$75) -> 10 | L143: =+GETPIVOTDATA(" BAS207",TABLAS!$A$75) -> 10 | T143: =+IMPORTARDATOSDINAMICOS(" BAS206";TABLAS!$A$75) | U143: =+IMPORTARDATOSDINAMICOS(" BAS207";TABLAS!$A$75) | V143: 206 | W143: 207 | X143: 206 | Y143: 207 | AC143: D1330 /D + EDAD >=12 Y <=17
B144: D1110 | C144: Profilaxis Dental | J144: 670 | K144: =+GETPIVOTDATA(" BAS208",TABLAS!$A$75) -> 318 | L144: =+GETPIVOTDATA(" BAS209",TABLAS!$A$75) -> 352 | T144: =+IMPORTARDATOSDINAMICOS(" BAS208";TABLAS!$A$75) | U144: =+IMPORTARDATOSDINAMICOS(" BAS209";TABLAS!$A$75) | V144: 208 | W144: 209 | X144: 208 | Y144: 209 | AC144: D0120 /D + EDAD >=12 Y <=17
B145: U510 | C145: Alta Básica Odontológica | J145: 33 | K145: =+GETPIVOTDATA(" BAS210",TABLAS!$A$75) -> 17 | L145: =+GETPIVOTDATA(" BAS211",TABLAS!$A$75) -> 16 | T145: =+IMPORTARDATOSDINAMICOS(" BAS210";TABLAS!$A$75) | U145: =+IMPORTARDATOSDINAMICOS(" BAS211";TABLAS!$A$75) | V145: 210 | W145: 211 | X145: 210 | Y145: 211 | AC145: D1110 /D + EDAD >=12 Y <=17
B147: usp_TRAMA_BASE_ADOLESCENTE_2020_RPT_08_FISICO | U147: ";TABLAS!$A$111)
B148: EVALUACIÓN FÍSICO POSTURAL | H148: Total | I148: 12a - 14a | J148: 15a-17a | U148: =+IMPORTARDATOSDINAMICOS(" BAS | AC148: usp_TRAMA_BASE_ADOLESCENTE_2020_RPT_08_FISICO
B149: 96008 | C149: Análisis Postural Estático ( NORMAL) | H149: =SUM(I149:J149) -> 36 | I149: =+GETPIVOTDATA(" BAS001",TABLAS!$A$111) -> 21 | J149: =+GETPIVOTDATA(" BAS002",TABLAS!$A$111) -> 15 | T149: =CONCATENATE($U$148,V149,$U$147) -> =+IMPORTARDATOSDINAMICOS(" BAS001";TABLAS!$A$111) | U149: =CONCATENATE($U$148,W149,$U$147) -> =+IMPORTARDATOSDINAMICOS(" BAS002";TABLAS!$A$111) | V149: 001 | W149: 002 | X149: 1 | Y149: 2 | AC149: Total
B150: M400 | C150: Cifosis postural | H150: =SUM(I150:J150) -> 0 | I150: =+GETPIVOTDATA(" BAS003",TABLAS!$A$111) -> 0 | J150: =+GETPIVOTDATA(" BAS004",TABLAS!$A$111) -> 0 | T150: =CONCATENATE($U$148,V150,$U$147) -> =+IMPORTARDATOSDINAMICOS(" BAS003";TABLAS!$A$111) | U150: =CONCATENATE($U$148,W150,$U$147) -> =+IMPORTARDATOSDINAMICOS(" BAS004";TABLAS!$A$111) | V150: 003 | W150: 004 | X150: 3 | Y150: 4 | AC150: 96008/D + EDAD >=12 Y <=17
B151: M402 | C151: Otras cifosis y las no especificadas | H151: 0 | I151: =+GETPIVOTDATA(" BAS005",TABLAS!$A$111) -> 0 | J151: =+GETPIVOTDATA(" BAS006",TABLAS!$A$111) -> 0 | T151: =+IMPORTARDATOSDINAMICOS(" BAS005";TABLAS!$A$111) | U151: =+IMPORTARDATOSDINAMICOS(" BAS006";TABLAS!$A$111) | V151: 005 | W151: 006 | X151: 5 | Y151: 6 | AC151: M400/D + EDAD >=12 Y <=17
B152: M403 | C152: Síndrome de espalda plana | H152: 0 | I152: =+GETPIVOTDATA(" BAS007",TABLAS!$A$111) -> 0 | J152: =+GETPIVOTDATA(" BAS008",TABLAS!$A$111) -> 0 | T152: =+IMPORTARDATOSDINAMICOS(" BAS007";TABLAS!$A$111) | U152: =+IMPORTARDATOSDINAMICOS(" BAS008";TABLAS!$A$111) | V152: 007 | W152: 008 | X152: 7 | Y152: 8 | AC152: M402/D + EDAD >=12 Y <=17
B153: M405 | C153: Lordosis no especifica | H153: 0 | I153: =+GETPIVOTDATA(" BAS009",TABLAS!$A$111) -> 0 | J153: =+GETPIVOTDATA(" BAS010",TABLAS!$A$111) -> 0 | T153: =+IMPORTARDATOSDINAMICOS(" BAS009";TABLAS!$A$111) | U153: =+IMPORTARDATOSDINAMICOS(" BAS010";TABLAS!$A$111) | V153: 009 | W153: 010 | X153: 9 | Y153: 10 | AC153: M403/D + EDAD >=12 Y <=17
B154: M419 | C154: Escoliosis, no especificada | H154: 3 | I154: =+GETPIVOTDATA(" BAS011",TABLAS!$A$111) -> 3 | J154: =+GETPIVOTDATA(" BAS012",TABLAS!$A$111) -> 0 | T154: =+IMPORTARDATOSDINAMICOS(" BAS011";TABLAS!$A$111) | U154: =+IMPORTARDATOSDINAMICOS(" BAS012";TABLAS!$A$111) | V154: 011 | W154: 012 | X154: 11 | Y154: =+X154+1 -> 12 | AC154: M405/D + EDAD >=12 Y <=17
B156: usp_TRAMA_BASE_ADOLESCENTE_2020_RPT_09_INMUNIZACIONES
B157: INMUNIZACIONES | K157: Total | L157: 12a - 14a | M157: 15a-17a | AC157: usp_TRAMA_BASE_ADOLESCENTE_2020_RPT_09_INMUNIZACIONES
B158: 90746 | C158: Vacunación Antihepatitis Viral B (HvB) ======> DOSIS 1 | K158: =SUM(L158:M158) -> 25 | L158: =+GETPIVOTDATA(" BAS013",TABLAS!$A$111) -> 0 | M158: =+GETPIVOTDATA(" BAS014",TABLAS!$A$111) -> 25 | T158: =CONCATENATE($U$148,V158,$U$147) -> =+IMPORTARDATOSDINAMICOS(" BAS013";TABLAS!$A$111) | U158: =CONCATENATE($U$148,W158,$U$147) -> =+IMPORTARDATOSDINAMICOS(" BAS014";TABLAS!$A$111) | V158: 013 | W158: 014 | X158: =+Y154+1 -> 13 | Y158: 14 | AC158: Total
C159: Vacunación Antihepatitis Viral B (HvB) ======> DOSIS 2 | K159: =SUM(L159:M159) -> 5 | L159: =+GETPIVOTDATA(" BAS015",TABLAS!$A$111) -> 0 | M159: =+GETPIVOTDATA(" BAS016",TABLAS!$A$111) -> 5 | T159: =+IMPORTARDATOSDINAMICOS(" BAS015";TABLAS!$A$111) | U159: =+IMPORTARDATOSDINAMICOS(" BAS016";TABLAS!$A$111) | V159: 015 | W159: 016 | X159: 15 | Y159: 16 | AC159: 90746 /D + LAB= 1
C160: Vacunación Antihepatitis Viral B (HvB) ======> DOSIS 3 | K160: 3 | L160: =+GETPIVOTDATA(" BAS017",TABLAS!$A$111) -> 0 | M160: =+GETPIVOTDATA(" BAS018",TABLAS!$A$111) -> 3 | T160: =+IMPORTARDATOSDINAMICOS(" BAS017";TABLAS!$A$111) | U160: =+IMPORTARDATOSDINAMICOS(" BAS018";TABLAS!$A$111) | V160: 017 | W160: 018 | X160: 17 | Y160: 18 | AC160: 90746 / D + LAB= 2
B161: 90658 | C161: Vacuna contra la Influenza (Estacional) | K161: 0 | L161: =+GETPIVOTDATA(" BAS019",TABLAS!$A$111) -> 0 | M161: =+GETPIVOTDATA(" BAS020",TABLAS!$A$111) -> 0 | T161: =+IMPORTARDATOSDINAMICOS(" BAS019";TABLAS!$A$111) | U161: =+IMPORTARDATOSDINAMICOS(" BAS020";TABLAS!$A$111) | V161: 019 | W161: 020 | X161: 19 | Y161: 20 | AC161: 90746 / D+ LAB= 3
B162: 90714 | C162: Vacunación Diftotetánica (dT) (Incluye varones y gestantes) ======> DOSIS 1 | K162: 65 | L162: =+GETPIVOTDATA(" BAS021",TABLAS!$A$111) -> 25 | M162: =+GETPIVOTDATA(" BAS022",TABLAS!$A$111) -> 40 | T162: =+IMPORTARDATOSDINAMICOS(" BAS021";TABLAS!$A$111) | U162: =+IMPORTARDATOSDINAMICOS(" BAS022";TABLAS!$A$111) | V162: 021 | W162: 022 | X162: 21 | Y162: 22 | AC162: 90658 / D
C163: Vacunación Diftotetánica (dT) (Incluye varones y gestantes) ======>DOSIS 2 | K163: 15 | L163: =+GETPIVOTDATA(" BAS023",TABLAS!$A$111) -> 11 | M163: =+GETPIVOTDATA(" BAS024",TABLAS!$A$111) -> 4 | T163: =+IMPORTARDATOSDINAMICOS(" BAS023";TABLAS!$A$111) | U163: =+IMPORTARDATOSDINAMICOS(" BAS024";TABLAS!$A$111) | V163: 023 | W163: 024 | X163: 23 | Y163: 24 | AC163: 90714 / D + LAB= 1
C164: Vacunación Diftotetánica (dT) (Incluye varones y gestantes) ======>DOSIS 3 | K164: 10 | L164: =+GETPIVOTDATA(" BAS025",TABLAS!$A$111) -> 6 | M164: =+GETPIVOTDATA(" BAS026",TABLAS!$A$111) -> 4 | T164: =+IMPORTARDATOSDINAMICOS(" BAS025";TABLAS!$A$111) | U164: =+IMPORTARDATOSDINAMICOS(" BAS026";TABLAS!$A$111) | V164: 025 | W164: 026 | X164: 25 | Y164: 26 | AC164: 90714 / D + LAB= 2
B165: 90649 | C165: Vacuna contra Virus de Papiloma Humano ======> DOSIS 1 | K165: 0 | L165: =+GETPIVOTDATA(" BAS027",TABLAS!$A$111) -> 0 | M165: =+GETPIVOTDATA(" BAS028",TABLAS!$A$111) -> 0 | T165: =+IMPORTARDATOSDINAMICOS(" BAS027";TABLAS!$A$111) | U165: =+IMPORTARDATOSDINAMICOS(" BAS028";TABLAS!$A$111) | V165: 027 | W165: 028 | X165: 27 | Y165: 28 | AC165: 90714 / D+ LAB= 3
C166: Vacuna contra Virus de Papiloma Humano ======> DOSIS 2 | K166: 0 | L166: =+GETPIVOTDATA(" BAS029",TABLAS!$A$111) -> 0 | M166: =+GETPIVOTDATA(" BAS030",TABLAS!$A$111) -> 0 | T166: =+IMPORTARDATOSDINAMICOS(" BAS029";TABLAS!$A$111) | U166: =+IMPORTARDATOSDINAMICOS(" BAS030";TABLAS!$A$111) | V166: 029 | W166: 030 | X166: =+Y165+1 -> 29 | Y166: 30 | AC166: 90649 / D + LAB= 1
B167: 90717 | C167: Vacuna Antiamarilica | K167: 52 | L167: =+GETPIVOTDATA(" BAS031",TABLAS!$A$111) -> 9 | M167: =+GETPIVOTDATA(" BAS032",TABLAS!$A$111) -> 43 | T167: =+IMPORTARDATOSDINAMICOS(" BAS031";TABLAS!$A$111) | U167: =+IMPORTARDATOSDINAMICOS(" BAS032";TABLAS!$A$111) | V167: 031 | W167: 032 | X167: 31 | Y167: 32 | AC167: 90649 / D+ LAB= 2
B169: usp_TRAMA_BASE_ADOLESCENTE_2020_RPT_10_PLANIFICACION
B170: EVALUACIÓN DEL DESARROLLO SEXUAL/ PLANIFICACIÓN FAMILIAR | J170: Total | K170: 12a - 14a | L170: 15a-17a | AC170: usp_TRAMA_BASE_ADOLESCENTE_2020_RPT_10_PLANIFICACION
A171: 1 | B171: 99384.02 | C171: Evaluación del desarrollo sexual según Tanner. | J171: =SUM(K171:L171) -> 329 | K171: =+GETPIVOTDATA(" BAS033",TABLAS!$A$111) -> 166 | L171: =+GETPIVOTDATA(" BAS034",TABLAS!$A$111) -> 163 | T171: =CONCATENATE($U$148,V171,$U$147) -> =+IMPORTARDATOSDINAMICOS(" BAS033";TABLAS!$A$111) | U171: =CONCATENATE($U$148,W171,$U$147) -> =+IMPORTARDATOSDINAMICOS(" BAS034";TABLAS!$A$111) | V171: 033 | W171: 034 | X171: =+Y167+1 -> 33 | Y171: 34 | AC171: Total
A172: 2 | B172: 99208 | C172: Atención en Planificación Familiar y SSR | J172: =SUM(K172:L172) -> 449 | K172: =+GETPIVOTDATA(" BAS035",TABLAS!$A$111) -> 108 | L172: =+GETPIVOTDATA(" BAS036",TABLAS!$A$111) -> 341 | T172: =+IMPORTARDATOSDINAMICOS(" BAS035";TABLAS!$A$111) | U172: =+IMPORTARDATOSDINAMICOS(" BAS036";TABLAS!$A$111) | V172: 035 | W172: 036 | X172: 35 | Y172: 36 | AC172: 99384.02 / D
C173: Entrega de Métodos Anticonceptivos, en caso de que el/la Adolescente lo requiera | AC173: 99208 / D
B174: 58300 | C174: DIU | J174: 0 | K174: =+GETPIVOTDATA(" BAS037",TABLAS!$A$111) -> 0 | L174: =+GETPIVOTDATA(" BAS038",TABLAS!$A$111) -> 0 | T174: =CONCATENATE($U$148,V174,$U$147) -> =+IMPORTARDATOSDINAMICOS(" BAS037";TABLAS!$A$111) | U174: =CONCATENATE($U$148,W174,$U$147) -> =+IMPORTARDATOSDINAMICOS(" BAS038";TABLAS!$A$111) | V174: 037 | W174: 038 | X174: =+Y172+1 -> 37 | Y174: 38 | AC174: De acuerdo al MAC elegido
B175: 99208.13 | C175: HORMONAL | E175: ORAL COMBINADO | J175: 18 | K175: =+GETPIVOTDATA(" BAS039",TABLAS!$A$111) -> 2 | L175: =+GETPIVOTDATA(" BAS040",TABLAS!$A$111) -> 16 | T175: =+IMPORTARDATOSDINAMICOS(" BAS039";TABLAS!$A$111) | U175: =+IMPORTARDATOSDINAMICOS(" BAS040";TABLAS!$A$111) | V175: 039 | W175: 040 | X175: 39 | Y175: 40 | AC175: 58300/D
B176: 99208.05/D | E176: INYECTABLE TRIMESTRAL | J176: 78 | K176: =+GETPIVOTDATA(" BAS041",TABLAS!$A$111) -> 9 | L176: =+GETPIVOTDATA(" BAS042",TABLAS!$A$111) -> 69 | T176: =+IMPORTARDATOSDINAMICOS(" BAS041";TABLAS!$A$111) | U176: =+IMPORTARDATOSDINAMICOS(" BAS042";TABLAS!$A$111) | V176: 041 | W176: 042 | X176: 41 | Y176: 42 | AC176: 99208.13/D
B177: 99208.04/D | E177: INYECTABLE MENSUAL | J177: 30 | K177: =+GETPIVOTDATA(" BAS043",TABLAS!$A$111) -> 15 | L177: =+GETPIVOTDATA(" BAS044",TABLAS!$A$111) -> 15 | T177: =+IMPORTARDATOSDINAMICOS(" BAS043";TABLAS!$A$111) | U177: =+IMPORTARDATOSDINAMICOS(" BAS044";TABLAS!$A$111) | V177: 043 | W177: 044 | X177: 43 | Y177: 44 | AC177: 99208.05/D
B178: 11975/D | E178: IMPLANTE | J178: 28 | K178: =+GETPIVOTDATA(" BAS045",TABLAS!$A$111) -> 6 | L178: =+GETPIVOTDATA(" BAS046",TABLAS!$A$111) -> 22 | T178: =+IMPORTARDATOSDINAMICOS(" BAS045";TABLAS!$A$111) | U178: =+IMPORTARDATOSDINAMICOS(" BAS046";TABLAS!$A$111) | V178: 045 | W178: 046 | X178: 45 | Y178: 46 | AC178: 99208.04/D
B179: 99208.02/D | C179: BARRERA | E179: CONDON MASCULINO | J179: 18 | K179: =+GETPIVOTDATA(" BAS047",TABLAS!$A$111) -> 1 | L179: =+GETPIVOTDATA(" BAS048",TABLAS!$A$111) -> 17 | T179: =+IMPORTARDATOSDINAMICOS(" BAS047";TABLAS!$A$111) | U179: =+IMPORTARDATOSDINAMICOS(" BAS048";TABLAS!$A$111) | V179: 047 | W179: 048 | X179: 47 | Y179: 48 | AC179: 11975/D
B180: 99208.06/D | E180: CONDON FEMENINO | J180: 0 | K180: =+GETPIVOTDATA(" BAS049",TABLAS!$A$111) -> 0 | L180: =+GETPIVOTDATA(" BAS050",TABLAS!$A$111) -> 0 | T180: =+IMPORTARDATOSDINAMICOS(" BAS049";TABLAS!$A$111) | U180: =+IMPORTARDATOSDINAMICOS(" BAS050";TABLAS!$A$111) | V180: 049 | W180: 050 | X180: 49 | Y180: 50 | AC180: 99208.02/D
B181: 99208.07/D | C181: MELA | J181: 0 | K181: =+GETPIVOTDATA(" BAS051",TABLAS!$A$111) -> 0 | L181: =+GETPIVOTDATA(" BAS052",TABLAS!$A$111) -> 0 | T181: =+IMPORTARDATOSDINAMICOS(" BAS051";TABLAS!$A$111) | U181: =+IMPORTARDATOSDINAMICOS(" BAS052";TABLAS!$A$111) | V181: 051 | W181: 052 | X181: 51 | Y181: 52 | AC181: 99208.06/D
B182: 99208.09/D | C182: ABSTINECIA PERIODICA | E182: BILLINGS | J182: 2 | K182: =+GETPIVOTDATA(" BAS053",TABLAS!$A$111) -> 1 | L182: =+GETPIVOTDATA(" BAS054",TABLAS!$A$111) -> 1 | T182: =+IMPORTARDATOSDINAMICOS(" BAS053";TABLAS!$A$111) | U182: =+IMPORTARDATOSDINAMICOS(" BAS054";TABLAS!$A$111) | V182: 053 | W182: 054 | X182: 53 | Y182: 54 | AC182: 99208.07/D
B183: 99208.08/D | E183: RITMO | J183: 5 | K183: =+GETPIVOTDATA(" BAS055",TABLAS!$A$111) -> 3 | L183: =+GETPIVOTDATA(" BAS056",TABLAS!$A$111) -> 2 | T183: =+IMPORTARDATOSDINAMICOS(" BAS055";TABLAS!$A$111) | U183: =+IMPORTARDATOSDINAMICOS(" BAS056";TABLAS!$A$111) | V183: 055 | W183: 056 | X183: 55 | Y183: 56 | AC183: 99208.09/D
B184: 99208.10/D | E184: DIAS FIJO | J184: 0 | K184: =+GETPIVOTDATA(" BAS057",TABLAS!$A$111) -> 0 | L184: =+GETPIVOTDATA(" BAS058",TABLAS!$A$111) -> 0 | T184: =+IMPORTARDATOSDINAMICOS(" BAS057";TABLAS!$A$111) | U184: =+IMPORTARDATOSDINAMICOS(" BAS058";TABLAS!$A$111) | V184: 057 | W184: 058 | X184: 57 | Y184: 58 | AC184: 99208.08/D
B185: 99208.11/D | C185: ADM AOE/ YUSPE | E185: Adm y uso de anticonceptivo AOE/YUZPE | J185: 0 | K185: =+GETPIVOTDATA(" BAS059",TABLAS!$A$111) -> 0 | L185: =+GETPIVOTDATA(" BAS060",TABLAS!$A$111) -> 0 | T185: =+IMPORTARDATOSDINAMICOS(" BAS059";TABLAS!$A$111) | U185: =+IMPORTARDATOSDINAMICOS(" BAS060";TABLAS!$A$111) | V185: 059 | W185: 060 | X185: 59 | Y185: 60 | AC185: 99208.10/D
B187: usp_TRAMA_BASE_ADOLESCENTE_2020_RPT_11_CLINICA
B188: EVALUACIÓN CLÍNICA | J188: Total | K188: 12a - 14a | L188: 15a-17a | AC188: usp_TRAMA_BASE_ADOLESCENTE_2020_RPT_11_CLINICA
B189: L709 | C189: Acné no especificado | J189: =SUM(K189:L189) -> 1 | K189: =+GETPIVOTDATA(" BAS061",TABLAS!$A$111) -> 0 | L189: =+GETPIVOTDATA(" BAS062",TABLAS!$A$111) -> 1 | T189: =CONCATENATE($U$148,V189,$U$147) -> =+IMPORTARDATOSDINAMICOS(" BAS061";TABLAS!$A$111) | U189: =CONCATENATE($U$148,W189,$U$147) -> =+IMPORTARDATOSDINAMICOS(" BAS062";TABLAS!$A$111) | V189: 061 | W189: 062 | X189: =+Y185+1 -> 61 | Y189: 62 | AC189: Total
B190: D509 | C190: Anemia por Deficiencia de Hierro sin Especificación | J190: =SUM(K190:L190) -> 41 | K190: =+GETPIVOTDATA(" BAS063",TABLAS!$A$111) -> 15 | L190: =+GETPIVOTDATA(" BAS064",TABLAS!$A$111) -> 26 | T190: =+IMPORTARDATOSDINAMICOS(" BAS063";TABLAS!$A$111) | U190: =+IMPORTARDATOSDINAMICOS(" BAS064";TABLAS!$A$111) | V190: 063 | W190: 064 | X190: 63 | Y190: 64 | AC190: L709 /D + EDAD >=12 Y <=17
B191: O990 | C191: Anemia que afecta al Embarazo, Parto o Puerperio | J191: 14 | K191: =+GETPIVOTDATA(" BAS065",TABLAS!$A$111) -> 2 | L191: =+GETPIVOTDATA(" BAS066",TABLAS!$A$111) -> 12 | T191: =+IMPORTARDATOSDINAMICOS(" BAS065";TABLAS!$A$111) | U191: =+IMPORTARDATOSDINAMICOS(" BAS066";TABLAS!$A$111) | V191: 065 | W191: 066 | X191: 65 | Y191: 66 | AC191: D509 /D + EDAD >=12 Y <=17
B192: U310 | C192: Administración de Tratamiento (Anemia) | J192: 40 | K192: =+GETPIVOTDATA(" BAS067",TABLAS!$A$111) -> 27 | L192: =+GETPIVOTDATA(" BAS068",TABLAS!$A$111) -> 13 | T192: =+IMPORTARDATOSDINAMICOS(" BAS067";TABLAS!$A$111) | U192: =+IMPORTARDATOSDINAMICOS(" BAS068";TABLAS!$A$111) | V192: 067 | W192: 068 | X192: 67 | Y192: 68 | AC192: O990/D + EDAD >=12 Y <=17
B193: J459 | C193: Asma No Especificada | J193: 0 | K193: =+GETPIVOTDATA(" BAS069",TABLAS!$A$111) -> 0 | L193: =+GETPIVOTDATA(" BAS070",TABLAS!$A$111) -> 0 | T193: =+IMPORTARDATOSDINAMICOS(" BAS069";TABLAS!$A$111) | U193: =+IMPORTARDATOSDINAMICOS(" BAS070";TABLAS!$A$111) | V193: 069 | W193: 070 | X193: 69 | Y193: 70 | AC193: U310/D + EDAD >=12 Y <=17
B194: I10X | C194: Hipertensión Esencial Primaria (Hipertensión Arterial) | J194: 0 | K194: =+GETPIVOTDATA(" BAS071",TABLAS!$A$111) -> 0 | L194: =+GETPIVOTDATA(" BAS072",TABLAS!$A$111) -> 0 | T194: =+IMPORTARDATOSDINAMICOS(" BAS071";TABLAS!$A$111) | U194: =+IMPORTARDATOSDINAMICOS(" BAS072";TABLAS!$A$111) | V194: 071 | W194: 072 | X194: 71 | Y194: 72 | AC194: J459/D + EDAD >=12 Y <=17
B195: R51X | C195: Cefalea | J195: 37 | K195: =+GETPIVOTDATA(" BAS073",TABLAS!$A$111) -> 15 | L195: =+GETPIVOTDATA(" BAS074",TABLAS!$A$111) -> 22 | T195: =+IMPORTARDATOSDINAMICOS(" BAS073";TABLAS!$A$111) | U195: =+IMPORTARDATOSDINAMICOS(" BAS074";TABLAS!$A$111) | V195: 073 | W195: 074 | X195: 73 | Y195: 74 | AC195: I10X /D + EDAD >=12 Y <=17
B196: B829 | C196: Parasitosis Intestinal, sin otra Especificación | J196: 74 | K196: =+GETPIVOTDATA(" BAS075",TABLAS!$A$111) -> 47 | L196: =+GETPIVOTDATA(" BAS076",TABLAS!$A$111) -> 27 | T196: =+IMPORTARDATOSDINAMICOS(" BAS075";TABLAS!$A$111) | U196: =+IMPORTARDATOSDINAMICOS(" BAS076";TABLAS!$A$111) | V196: 075 | W196: 076 | X196: 75 | Y196: 76 | AC196: R51X/D + EDAD >=12 Y <=17
B197: N63X | C197: Masa No Especificada en la Mama | J197: 3 | K197: =+GETPIVOTDATA(" BAS077",TABLAS!$A$111) -> 2 | L197: =+GETPIVOTDATA(" BAS078",TABLAS!$A$111) -> 1 | T197: =+IMPORTARDATOSDINAMICOS(" BAS077";TABLAS!$A$111) | U197: =+IMPORTARDATOSDINAMICOS(" BAS078";TABLAS!$A$111) | V197: =IF(X197<10,CONCATENATE("00",X197),IF(AND(X197<100,X197>9),CONCATENATE("0",X197),X197)) -> 077 | W197: =IF(Y197<10,CONCATENATE("00",Y197),IF(AND(Y197<100,Y197>9),CONCATENATE("0",Y197),Y197)) -> 078 | X197: 77 | Y197: 78 | AC197: B829/D + EDAD >=12 Y <=17
B198: A084 | C198: Infección Intestinal Viral, Sin Otra Especificación | J198: 4 | K198: =+GETPIVOTDATA(" BAS079",TABLAS!$A$111) -> 2 | L198: =+GETPIVOTDATA(" BAS080",TABLAS!$A$111) -> 2 | T198: =+IMPORTARDATOSDINAMICOS(" BAS079";TABLAS!$A$111) | U198: =+IMPORTARDATOSDINAMICOS(" BAS080";TABLAS!$A$111) | V198: 079 | W198: 080 | X198: 79 | Y198: 80 | AC198: N63X/D + EDAD >=12 Y <=17
B199: B373 | C199: Candidiasis de la Vulva y de la Vagina (Candidiasis Vaginal) | J199: 2 | K199: =+GETPIVOTDATA(" BAS081",TABLAS!$A$111) -> 2 | L199: =+GETPIVOTDATA(" BAS082",TABLAS!$A$111) -> 0 | T199: =+IMPORTARDATOSDINAMICOS(" BAS081";TABLAS!$A$111) | U199: =+IMPORTARDATOSDINAMICOS(" BAS082";TABLAS!$A$111) | V199: 081 | W199: 082 | X199: 81 | Y199: 82 | AC199: A084/D + EDAD >=12 Y <=17
B200: B853 | C200: Pediculosis del Pubis | J200: 1 | K200: =+GETPIVOTDATA(" BAS083",TABLAS!$A$111) -> 1 | L200: =+GETPIVOTDATA(" BAS084",TABLAS!$A$111) -> 0 | T200: =+IMPORTARDATOSDINAMICOS(" BAS083";TABLAS!$A$111) | U200: =+IMPORTARDATOSDINAMICOS(" BAS084";TABLAS!$A$111) | V200: 083 | W200: 084 | X200: 83 | Y200: 84 | AC200: B373/D + EDAD >=12 Y <=17
B201: B968 | C201: Vaginosis Bacteriana | J201: 0 | K201: =+GETPIVOTDATA(" BAS085",TABLAS!$A$111) -> 0 | L201: =+GETPIVOTDATA(" BAS086",TABLAS!$A$111) -> 0 | T201: =+IMPORTARDATOSDINAMICOS(" BAS085";TABLAS!$A$111) | U201: =+IMPORTARDATOSDINAMICOS(" BAS086";TABLAS!$A$111) | V201: 085 | W201: 086 | X201: 85 | Y201: 86 | AC201: B853/D + EDAD >=12 Y <=17
B202: A64X9 | C202: Síndrome de Flujo Vaginal | J202: 10 | K202: =+GETPIVOTDATA(" BAS087",TABLAS!$A$111) -> 4 | L202: =+GETPIVOTDATA(" BAS088",TABLAS!$A$111) -> 6 | T202: =+IMPORTARDATOSDINAMICOS(" BAS087";TABLAS!$A$111) | U202: =+IMPORTARDATOSDINAMICOS(" BAS088";TABLAS!$A$111) | V202: 087 | W202: 088 | X202: 87 | Y202: 88 | AC202: B968/D + EDAD >=12 Y <=17
B203: A64X5 | C203: Síndrome de Dolor Abdominal Bajo | J203: 2 | K203: =+GETPIVOTDATA(" BAS089",TABLAS!$A$111) -> 1 | L203: =+GETPIVOTDATA(" BAS090",TABLAS!$A$111) -> 1 | T203: =+IMPORTARDATOSDINAMICOS(" BAS089";TABLAS!$A$111) | U203: =+IMPORTARDATOSDINAMICOS(" BAS090";TABLAS!$A$111) | V203: 089 | W203: 090 | X203: 89 | Y203: 90 | AC203: A64X9/D + EDAD >=12 Y <=17
B204: A64X6 | C204: Síndrome de Secreción Uretral | J204: 1 | K204: =+GETPIVOTDATA(" BAS091",TABLAS!$A$111) -> 0 | L204: =+GETPIVOTDATA(" BAS092",TABLAS!$A$111) -> 1 | T204: =+IMPORTARDATOSDINAMICOS(" BAS091";TABLAS!$A$111) | U204: =+IMPORTARDATOSDINAMICOS(" BAS092";TABLAS!$A$111) | V204: 091 | W204: 092 | X204: 91 | Y204: 92 | AC204: A64X5/D + EDAD >=12 Y <=17
B205: 99199.11 | C205: Administración de Tratamiento (ITS) | J205: 43 | K205: =+GETPIVOTDATA(" BAS093",TABLAS!$A$111) -> 8 | L205: =+GETPIVOTDATA(" BAS094",TABLAS!$A$111) -> 35 | T205: =+IMPORTARDATOSDINAMICOS(" BAS093";TABLAS!$A$111) | U205: =+IMPORTARDATOSDINAMICOS(" BAS094";TABLAS!$A$111) | V205: 093 | W205: 094 | X205: 93 | Y205: 94 | AC205: A64X6/D + EDAD >=12 Y <=17
V206: 00 | W206: 00
B207: usp_TRAMA_BASE_ADOLESCENTE_2020_RPT_12_CONSEJERIAS | V207: 00 | W207: 00
B208: CONSEJERÍAS | J208: Total | K208: 12a - 14a | L208: 15a-17a | V208: 00 | W208: 00 | AC208: usp_TRAMA_BASE_ADOLESCENTE_2020_RPT_12_CONSEJERIAS
B209: 99401 | C209: Consejería Integral | J209: =SUM(K209:L209) -> 158 | K209: =+GETPIVOTDATA(" BAS095",TABLAS!$A$111) -> 69 | L209: =+GETPIVOTDATA(" BAS096",TABLAS!$A$111) -> 89 | T209: =CONCATENATE($U$148,V209,$U$147) -> =+IMPORTARDATOSDINAMICOS(" BAS095";TABLAS!$A$111) | U209: =CONCATENATE($U$148,W209,$U$147) -> =+IMPORTARDATOSDINAMICOS(" BAS096";TABLAS!$A$111) | V209: 095 | W209: 096 | X209: =+Y205+1 -> 95 | Y209: 96 | AC209: Total
B210: 99402.03 | C210: Consejería/Orientación en Salud Sexual y Reproductiva | J210: =SUM(K210:L210) -> 428 | K210: =+GETPIVOTDATA(" BAS097",TABLAS!$A$111) -> 196 | L210: =+GETPIVOTDATA(" BAS098",TABLAS!$A$111) -> 232 | T210: =+IMPORTARDATOSDINAMICOS(" BAS097";TABLAS!$A$111) | U210: =+IMPORTARDATOSDINAMICOS(" BAS098";TABLAS!$A$111) | V210: 097 | W210: 098 | X210: 97 | Y210: 98 | AC210: 99401/D + EDAD >=12 Y <=17
B211: 99402.04 | C211: Orientación/Consejería en Planificación Familiar | J211: 719 | K211: =+GETPIVOTDATA(" BAS099",TABLAS!$A$111) -> 259 | L211: =+GETPIVOTDATA(" BAS100",TABLAS!$A$111) -> 460 | T211: =+IMPORTARDATOSDINAMICOS(" BAS099";TABLAS!$A$111) | U211: =+IMPORTARDATOSDINAMICOS(" BAS100";TABLAS!$A$111) | V211: 099 | W211: 100 | X211: 99 | Y211: 100 | AC211: 99402.03/D + EDAD >=12 Y <=17
B212: 99402.09 | C212: Consejería de Prevención en Riesgos de Salud Mental | J212: 911 | K212: =+GETPIVOTDATA(" BAS101",TABLAS!$A$111) -> 361 | L212: =+GETPIVOTDATA(" BAS102",TABLAS!$A$111) -> 550 | T212: =+IMPORTARDATOSDINAMICOS(" BAS101";TABLAS!$A$111) | U212: =+IMPORTARDATOSDINAMICOS(" BAS102";TABLAS!$A$111) | V212: 101 | W212: 102 | X212: 101 | Y212: =+X212+1 -> 102 | AC212: 99402.04/D + EDAD >=12 Y <=17
B213: 99401.31 | C213: Consejería en Prevención de Enfermedades No transmisibles (Salud Física) | J213: 1 | K213: =+GETPIVOTDATA(" BAS103",TABLAS!$A$111) -> 0 | L213: =+GETPIVOTDATA(" BAS104",TABLAS!$A$111) -> 1 | T213: =+IMPORTARDATOSDINAMICOS(" BAS103";TABLAS!$A$111) | U213: =+IMPORTARDATOSDINAMICOS(" BAS104";TABLAS!$A$111) | V213: 103 | W213: 104 | X213: 103 | Y213: 104 | AC213: 99402.09/D + EDAD >=12 Y <=17
B214: 99403 | C214: Consejería Nutricional | J214: 12 | K214: =+GETPIVOTDATA(" BAS105",TABLAS!$A$111) -> 0 | L214: =+GETPIVOTDATA(" BAS106",TABLAS!$A$111) -> 12 | T214: =+IMPORTARDATOSDINAMICOS(" BAS105";TABLAS!$A$111) | U214: =+IMPORTARDATOSDINAMICOS(" BAS106";TABLAS!$A$111) | V214: 105 | W214: 106 | X214: 105 | Y214: 106 | AC214: 99401.31/D + EDAD >=12 Y <=17
B215: 99403.01 | C215: Consejería Nutricional: Alimentación Saludable | J215: 1190 | K215: =+GETPIVOTDATA(" BAS107",TABLAS!$A$111) -> 522 | L215: =+GETPIVOTDATA(" BAS108",TABLAS!$A$111) -> 668 | T215: =+IMPORTARDATOSDINAMICOS(" BAS107";TABLAS!$A$111) | U215: =+IMPORTARDATOSDINAMICOS(" BAS108";TABLAS!$A$111) | V215: 107 | W215: 108 | X215: 107 | Y215: 108 | AC215: 99403/D + EDAD >=12 Y <=17
B216: 99401.33 | C216: Consejería Pre Test para VIH | J216: 798 | K216: =+GETPIVOTDATA(" BAS109",TABLAS!$A$111) -> 181 | L216: =+GETPIVOTDATA(" BAS110",TABLAS!$A$111) -> 617 | T216: =+IMPORTARDATOSDINAMICOS(" BAS109";TABLAS!$A$111) | U216: =+IMPORTARDATOSDINAMICOS(" BAS110";TABLAS!$A$111) | V216: 109 | W216: 110 | X216: 109 | Y216: 110 | AC216: 99403.01/D + EDAD >=12 Y <=17
B217: 99401.34 | C217: Consejería Post Test para VIH - Resultado No Reactivo | J217: 822 | K217: =+GETPIVOTDATA(" BAS111",TABLAS!$A$111) -> 191 | L217: =+GETPIVOTDATA(" BAS112",TABLAS!$A$111) -> 631 | T217: =+IMPORTARDATOSDINAMICOS(" BAS111";TABLAS!$A$111) | U217: =+IMPORTARDATOSDINAMICOS(" BAS112";TABLAS!$A$111) | V217: 111 | W217: 112 | X217: 111 | Y217: 112 | AC217: 99401.33/D + EDAD >=12 Y <=17
... 167 more rows

Sheet Datos (hidden)
B9: ANO | D9: MESES | F9: COD_RED | G9: DESC_RED | H9: CONCATENAR | J9: COD_RED | K9: COD_MIC | L9: DESC_MICRO | M9: CONCATENAR | O9: COD_ESTAB | P9: DESC_ESTAB | Q9: COD_RED | R9: COD_MIC | S9: COD_PROV | T9: COD_DIST | U9: REDMIC | V9: CONCATENAR | X9: COD_PROV | Y9: DESC_PROV | Z9: CONCATENAR | AB9: COD_PROV | AC9: COD_DIST | AD9: DESC_DIST | AE9: PROVDIST | AF9: CONCATENAR
B10: 2025 | D10: 01-Enero | F10: 00 | G10: NO TIENE ASIGNADO NINGUNA RED | H10: =CONCATENATE(F10," - ",G10) -> 00 - NO TIENE ASIGNADO NINGUNA RED | J10: 00 | K10: 00 | L10: NO PERTENECE A NINGUNA MICRORED | M10: =CONCATENATE(J10,K10," - ",L10) -> 0000 - NO PERTENECE A NINGUNA MICRORED | O10: 000000000 | P10: (All) | Q10: 00 | R10: 00 | U10: =CONCATENATE(Q10,R10) -> 0000 | V10: =CONCATENATE(O10," - ",P10) -> 000000000 - (All) | X10: 00 | Y10: (All) | Z10: =CONCATENATE(X10," - ",Y10) -> 00 - (All) | AB10: 01 | AC10: 00 | AD10: (All) | AE10: =CONCATENATE(AB10,AC10) -> 0100 | AF10: =CONCATENATE(AB10,AC10," - ",AD10) -> 0100 - (All)
D11: 02-Febrero | F11: 01 | G11: CUSCO SUR | H11: =CONCATENATE(F11," - ",G11) -> 01 - CUSCO SUR | J11: 00 | K11: 99 | L11: (All) | M11: 0099 - (All) | N11: 1 | O11: 000002289 | P11: HOSPITAL DE APOYO DEPARTAMENTAL CUSCO | Q11: 00 | R11: 00 | S11: 01 | T11: 01 | U11: =CONCATENATE(Q11,R11) -> 0000 | V11: =CONCATENATE(O11," - ",P11) -> 000002289 - HOSPITAL DE APOYO DEPARTAMENTAL CUSCO | X11: 01 | Y11: CUSCO | Z11: =CONCATENATE(X11," - ",Y11) -> 01 - CUSCO | AB11: 01 | AC11: 01 | AD11: CUSCO | AE11: =CONCATENATE(AB11,AC11) -> 0101 | AF11: =CONCATENATE(AB11,AC11," - ",AD11) -> 0101 - CUSCO
D12: 03-Marzo | F12: 02 | G12: CUSCO NORTE | H12: 02 - CUSCO NORTE | J12: 01 | K12: 00 | L12: NO PERTENECE A NINGUNA MICRORED | M12: 0100 - NO PERTENECE A NINGUNA MICRORED | N12: =+N11+1 -> 2 | O12: 000002305 | P12: ANTONIO LORENA DEL CUSCO | Q12: 00 | R12: 00 | S12: 01 | T12: 06 | U12: 0000 | V12: 000002305 - ANTONIO LORENA DEL CUSCO | X12: 02 | Y12: ACOMAYO | Z12: =CONCATENATE(X12," - ",Y12) -> 02 - ACOMAYO | AB12: 01 | AC12: 02 | AD12: CCORCA | AE12: 0102 | AF12: 0102 - CCORCA
D13: 04-Abril | F13: 03 | G13: LA CONVENCION | H13: 03 - LA CONVENCION | J13: 01 | K13: 16 | L13: CUSCO | M13: 0116 - CUSCO | N13: =+N12+1 -> 3 | O13: 999999999 | P13: (All) | Q13: 00 | R13: 99 | U13: 0099 | V13: 999999999 - (All) | X13: 03 | Y13: ANTA | Z13: 03 - ANTA | AB13: 01 | AC13: 03 | AD13: POROY | AE13: 0103 | AF13: 0103 - POROY
D14: 05-Mayo | F14: 04 | G14: CANAS-CANCHIS-ESPINAR | H14: 04 - CANAS-CANCHIS-ESPINAR | J14: 01 | K14: 03 | L14: PARURO | M14: 0103 - PARURO | O14: 000025210 | P14: TUPAC AMARU | Q14: 01 | R14: 00 | S14: 01 | T14: 05 | U14: 0100 | V14: 000025210 - TUPAC AMARU | X14: 04 | Y14: CALCA | Z14: 04 - CALCA | AB14: 01 | AC14: 04 | AD14: SAN JERONIMO | AE14: 0104 | AF14: 0104 - SAN JERONIMO
D15: 06-Junio | F15: 05 | G15: KIMBIRI PICHARI | H15: 05 - KIMBIRI PICHARI | J15: 01 | K15: 06 | L15: PAUCARTAMBO | M15: 0106 - PAUCARTAMBO | N15: =+N13+1 -> 4 | O15: 000000000 | P15: (All) | Q15: 01 | R15: 03 | U15: 0103 | V15: 000000000 - (All) | X15: 05 | Y15: CANAS | Z15: 05 - CANAS | AB15: 01 | AC15: 05 | AD15: SAN SEBASTIAN | AE15: 0105 | AF15: 0105 - SAN SEBASTIAN
D16: 07-Julio | F16: 06 | G16: CHUMBIVILCAS | H16: 06 - CHUMBIVILCAS | J16: 01 | K16: 12 | L16: URCOS | M16: 0112 - URCOS | O16: 000002499 | P16: PARURO | Q16: 01 | R16: 03 | S16: 10 | T16: 01 | U16: 0103 | V16: 000002499 - PARURO | X16: 06 | Y16: CANCHIS | Z16: 06 - CANCHIS | AB16: 01 | AC16: 06 | AD16: SANTIAGO | AE16: 0106 | AF16: 0106 - SANTIAGO
D17: 08-Agosto | F17: 99 | G17: (All) | H17: 99 - (All) | J17: 01 | K17: 13 | L17: ACOMAYO | M17: 0113 - ACOMAYO | N17: =+N15+1 -> 5 | O17: 000002500 | P17: ACCHA | Q17: 01 | R17: 03 | S17: 10 | T17: 02 | U17: 0103 | V17: 000002500 - ACCHA | X17: 07 | Y17: CHUMBIVILCAS | Z17: 07 - CHUMBIVILCAS | AB17: 01 | AC17: 07 | AD17: SAYLLA | AE17: 0107 | AF17: 0107 - SAYLLA
D18: 09-Setiembre | J18: 01 | K18: 15 | L18: OCONGATE | M18: 0115 - OCONGATE | N18: 6 | O18: 000002501 | P18: CCAPI | Q18: 01 | R18: 03 | S18: 10 | T18: 03 | U18: 0103 | V18: 000002501 - CCAPI | X18: 08 | Y18: ESPINAR | Z18: 08 - ESPINAR | AB18: 01 | AC18: 08 | AD18: WANCHAQ | AE18: 0108 | AF18: 0108 - WANCHAQ
D19: 10-Octubre | J19: 01 | K19: 99 | L19: (All) | M19: 0199 - (All) | N19: 7 | O19: 000002502 | P19: CCOYABAMBA | Q19: 01 | R19: 03 | S19: 10 | T19: 03 | U19: 0103 | V19: 000002502 - CCOYABAMBA | X19: 09 | Y19: LA CONVENCION | Z19: 09 - LA CONVENCION | AB19: 02 | AC19: 00 | AD19: (All) | AE19: 0200 | AF19: 0200 - (All)
D20: 11-Noviembre | F20: EJECUTORAS | J20: 02 | K20: 01 | L20: BELEMPAMPA | M20: 0201 - BELEMPAMPA | N20: 8 | O20: 000002503 | P20: COLCHA | Q20: 01 | R20: 03 | S20: 10 | T20: 04 | U20: 0103 | V20: 000002503 - COLCHA | X20: 10 | Y20: PARURO | Z20: 10 - PARURO | AB20: 02 | AC20: 01 | AD20: ACOMAYO | AE20: 0201 | AF20: 0201 - ACOMAYO
D21: 12-Diciembre | F21: COD_RED | G21: DESC_RED | H21: CONCATENAR | J21: 02 | K21: 02 | L21: WANCHAQ | M21: 0202 - WANCHAQ | N21: 9 | O21: 000006978 | P21: CCOCHIRIHUAY | Q21: 01 | R21: 03 | S21: 10 | T21: 04 | U21: 0103 | V21: 000006978 - CCOCHIRIHUAY | X21: 11 | Y21: PAUCARTAMBO | Z21: 11 - PAUCARTAMBO | AB21: 02 | AC21: 02 | AD21: ACOPIA | AE21: 0202 | AF21: 0202 - ACOPIA
F22: 01 | G22: HOSPITAL REGIONAL CUSCO | H22: =CONCATENATE(F22," - ",G22) -> 01 - HOSPITAL REGIONAL CUSCO | J22: 02 | K22: 03 | L22: ANTA | M22: 0203 - ANTA | N22: 10 | O22: 000002504 | P22: HUANOQUITE | Q22: 01 | R22: 03 | S22: 10 | T22: 05 | U22: 0103 | V22: 000002504 - HUANOQUITE | X22: 12 | Y22: QUISPICANCHI | Z22: 12 - QUISPICANCHI | AB22: 02 | AC22: 03 | AD22: ACOS | AE22: 0203 | AF22: 0203 - ACOS
F23: 02 | G23: HOSPITAL ANTONIO LORENA | H23: =CONCATENATE(F23," - ",G23) -> 02 - HOSPITAL ANTONIO LORENA | J23: 02 | K23: 04 | L23: LIMATAMBO | M23: 0204 - LIMATAMBO | N23: 11 | O23: 000002505 | P23: OMACHA | Q23: 01 | R23: 03 | S23: 10 | T23: 06 | U23: 0103 | V23: 000002505 - OMACHA | X23: 13 | Y23: URUBAMBA | Z23: 13 - URUBAMBA | AB23: 02 | AC23: 04 | AD23: MOSOC LLACTA | AE23: 0204 | AF23: 0204 - MOSOC LLACTA
F24: 03 | G24: CUSCO NORTE | H24: 03 - CUSCO NORTE | J24: 02 | K24: 05 | L24: PISAC | M24: 0205 - PISAC | N24: 12 | O24: 000002506 | P24: ANTAPALLPA | Q24: 01 | R24: 03 | S24: 10 | T24: 06 | U24: 0103 | V24: 000002506 - ANTAPALLPA | AB24: 02 | AC24: 05 | AD24: POMACANCHI | AE24: 0205 | AF24: 0205 - POMACANCHI
F25: 04 | G25: CUSCO SUR | H25: 04 - CUSCO SUR | J25: 02 | K25: 06 | L25: CALCA | M25: 0206 - CALCA | N25: 13 | O25: 000007147 | P25: PUESTO DE SALUD DE HUASQUILLAY | Q25: 01 | R25: 03 | S25: 10 | T25: 06 | U25: 0103 | V25: 000007147 - PUESTO DE SALUD DE HUASQUILLAY | AB25: 02 | AC25: 06 | AD25: RONDOCAN | AE25: 0206 | AF25: 0206 - RONDOCAN
F26: 05 | G26: LA CONVENCION | H26: 05 - LA CONVENCION | J26: 02 | K26: 07 | L26: URUBAMBA | M26: 0207 - URUBAMBA | N26: 14 | O26: 000012924 | P26: SAHUA SAHUA | Q26: 01 | R26: 03 | S26: 10 | T26: 06 | U26: 0103 | V26: 000012924 - SAHUA SAHUA | AB26: 02 | AC26: 07 | AD26: SANGARARA | AE26: 0207 | AF26: 0207 - SANGARARA
F27: 06 | G27: HOSPITAL QUILLABAMBA | H27: 06 - HOSPITAL QUILLABAMBA | J27: 02 | K27: 08 | L27: YANATILE | M27: 0208 - YANATILE | N27: 15 | O27: 000002507 | P27: PACCARECTAMBO | Q27: 01 | R27: 03 | S27: 10 | T27: 07 | U27: 0103 | V27: 000002507 - PACCARECTAMBO | AB27: 03 | AC27: 00 | AD27: (All) | AE27: 0300 | AF27: 0300 - (All)
F28: 07 | G28: CANAS CANCHIS ESPINAR | H28: 07 - CANAS CANCHIS ESPINAR | J28: 02 | K28: 09 | L28: SIETE CUARTONES | M28: 0209 - SIETE CUARTONES | N28: 16 | O28: 000002509 | P28: YAURISQUE | Q28: 01 | R28: 03 | S28: 10 | T28: 09 | U28: 0103 | V28: 000002509 - YAURISQUE | AB28: 03 | AC28: 01 | AD28: ANTA | AE28: 0301 | AF28: 0301 - ANTA
F29: 08 | G29: HOSPITAL SICUANI | H29: 08 - HOSPITAL SICUANI | J29: 02 | K29: 99 | L29: (All) | M29: 0299 - (All) | N29: 17 | O29: 000000000 | P29: (All) | Q29: 01 | R29: 06 | U29: 0106 | V29: 000000000 - (All) | AB29: 03 | AC29: 02 | AD29: ANCAHUASI | AE29: 0302 | AF29: 0302 - ANCAHUASI
F30: 09 | G30: HOSPITAL ESPINAR | H30: 09 - HOSPITAL ESPINAR | J30: 03 | K30: 00 | L30: NO PERTENECE A NINGUNA MICRORED | M30: 0300 - NO PERTENECE A NINGUNA MICRORED | O30: 000002520 | P30: HUANCARANI | Q30: 01 | R30: 06 | S30: 11 | T30: 05 | U30: 0106 | V30: 000002520 - HUANCARANI | AB30: 03 | AC30: 03 | AD30: CACHIMAYO | AE30: 0303 | AF30: 0303 - CACHIMAYO
F31: 10 | G31: KIMBIRI PICHARI | H31: 10 - KIMBIRI PICHARI | J31: 03 | K31: 01 | L31: SANTA ANA | M31: 0301 - SANTA ANA | N31: =+N29+1 -> 18 | O31: 000002521 | P31: PILCOPATA | Q31: 01 | R31: 06 | S31: 11 | T31: 06 | U31: 0106 | V31: 000002521 - PILCOPATA | AB31: 03 | AC31: 04 | AD31: CHINCHAYPUJIO | AE31: 0304 | AF31: 0304 - CHINCHAYPUJIO
F32: 11 | G32: CHUMBIVILCAS | H32: 11 - CHUMBIVILCAS | J32: 03 | K32: 02 | L32: MARANURA | M32: 0302 - MARANURA | N32: 19 | O32: 000002522 | P32: PATRIA | Q32: 01 | R32: 06 | S32: 11 | T32: 06 | U32: 0106 | V32: 000002522 - PATRIA | AB32: 03 | AC32: 05 | AD32: HUAROCONDO | AE32: 0305 | AF32: 0305 - HUAROCONDO
F33: 99 | G33: (ALL) | H33: =CONCATENATE(F33," - ",G33) -> 99 - (ALL) | J33: 03 | K33: 03 | L33: QUELLOUNO | M33: 0303 - QUELLOUNO | N33: 20 | O33: 000002510 | P33: PAUCARTAMBO | Q33: 01 | R33: 06 | S33: 11 | T33: 01 | U33: 0106 | V33: 000002510 - PAUCARTAMBO | AB33: 03 | AC33: 06 | AD33: LIMATAMBO | AE33: 0306 | AF33: 0306 - LIMATAMBO
J34: 03 | K34: 04 | L34: KITENI | M34: 0304 - KITENI | N34: 21 | O34: 000002511 | P34: MOLLOMARCA | Q34: 01 | R34: 06 | S34: 11 | T34: 01 | U34: 0106 | V34: 000002511 - MOLLOMARCA | AB34: 03 | AC34: 07 | AD34: MOLLEPATA | AE34: 0307 | AF34: 0307 - MOLLEPATA
J35: 03 | K35: 05 | L35: KAMISEA | M35: 0305 - KAMISEA | N35: 22 | O35: 000010077 | P35: PAUCARTAMBO -ESSALUD | Q35: 01 | R35: 06 | S35: 11 | T35: 01 | U35: 0106 | V35: 000010077 - PAUCARTAMBO -ESSALUD | AB35: 03 | AC35: 08 | AD35: PUCYURA | AE35: 0308 | AF35: 0308 - PUCYURA
F36: SECTORES | J36: 03 | K36: 06 | L36: PUCYURA | M36: 0306 - PUCYURA | N36: 23 | O36: 000033777 | P36: MENTAL COMUNITARIO VIRGEN DEL ROSARIO | Q36: 01 | R36: 06 | S36: 11 | T36: 01 | U36: 0106 | V36: 000033777 - MENTAL COMUNITARIO VIRGEN DEL ROSARIO | AB36: 03 | AC36: 09 | AD36: ZURITE | AE36: 0309 | AF36: 0309 - ZURITE
F37: COD_SECTOR | G37: DESC_RED | H37: CONCATENAR | J37: 03 | K37: 07 | L37: PALMA REAL | M37: 0307 - PALMA REAL | N37: 24 | O37: 000002512 | P37: CAICAY | Q37: 01 | R37: 06 | S37: 11 | T37: 02 | U37: 0106 | V37: 000002512 - CAICAY | AB37: 04 | AC37: 00 | AD37: (All) | AE37: 0400 | AF37: 0400 - (All)
F38: 1 | G38: GORE | H38: =CONCATENATE(F38," - ",G38) -> 1 - GORE | J38: 03 | K38: 99 | L38: (All) | M38: 0399 - (All) | N38: 25 | O38: 000002513 | P38: HUASAC | Q38: 01 | R38: 06 | S38: 11 | T38: 02 | U38: 0106 | V38: 000002513 - HUASAC | AB38: 04 | AC38: 01 | AD38: CALCA | AE38: 0401 | AF38: 0401 - CALCA
F39: 2 | G39: ESSALUD | H39: =CONCATENATE(F39," - ",G39) -> 2 - ESSALUD | J39: 04 | K39: 00 | L39: NO PERTENECE A NINGUNA MICRORED | M39: 0400 - NO PERTENECE A NINGUNA MICRORED | N39: 26 | O39: 000002514 | P39: CHALLABAMBA | Q39: 01 | R39: 06 | S39: 11 | T39: 03 | U39: 0106 | V39: 000002514 - CHALLABAMBA | AB39: 04 | AC39: 02 | AD39: COYA | AE39: 0402 | AF39: 0402 - COYA
F40: 3 | G40: OTROS | H40: =CONCATENATE(F40," - ",G40) -> 3 - OTROS | J40: 04 | K40: 01 | L40: YANAOCA | M40: 0401 - YANAOCA | N40: 27 | O40: 000002516 | P40: COLQUEPATA | Q40: 01 | R40: 06 | S40: 11 | T40: 04 | U40: 0106 | V40: 000002516 - COLQUEPATA | AB40: 04 | AC40: 03 | AD40: LAMAY | AE40: 0403 | AF40: 0403 - LAMAY
F41: 99 | G41: (ALL) | H41: =CONCATENATE(F41," - ",G41) -> 99 - (ALL) | J41: 04 | K41: 02 | L41: EL DESCANSO | M41: 0402 - EL DESCANSO | N41: 28 | O41: 000002517 | P41: PICHIHUA COLQUEPATA | Q41: 01 | R41: 06 | S41: 11 | T41: 04 | U41: 0106 | V41: 000002517 - PICHIHUA COLQUEPATA | AB41: 04 | AC41: 04 | AD41: LARES | AE41: 0404 | AF41: 0404 - LARES
J42: 04 | K42: 03 | L42: COMBAPATA | M42: 0403 - COMBAPATA | N42: 29 | O42: 000002518 | P42: VIZCOCHONI | Q42: 01 | R42: 06 | S42: 11 | T42: 04 | U42: 0106 | V42: 000002518 - VIZCOCHONI | AB42: 04 | AC42: 05 | AD42: PISAC | AE42: 0405 | AF42: 0405 - PISAC
J43: 04 | K43: 04 | L43: TECHO OBRERO | M43: 0404 - TECHO OBRERO | N43: 30 | O43: 000002519 | P43: AYRE | Q43: 01 | R43: 06 | S43: 11 | T43: 04 | U43: 0106 | V43: 000002519 - AYRE | AB43: 04 | AC43: 06 | AD43: SAN SALVADOR | AE43: 0406 | AF43: 0406 - SAN SALVADOR
J44: 04 | K44: 05 | L44: PAMPAPHALLA | M44: 0405 - PAMPAPHALLA | N44: 31 | O44: 000006979 | P44: TOCRA | Q44: 01 | R44: 06 | S44: 11 | T44: 04 | U44: 0106 | V44: 000006979 - TOCRA | AB44: 04 | AC44: 07 | AD44: TARAY | AE44: 0407 | AF44: 0407 - TARAY
J45: 04 | K45: 06 | L45: YAURI | M45: 0406 - YAURI | N45: 32 | O45: 000000000 | P45: (All) | Q45: 01 | R45: 12 | U45: 0112 | V45: 000000000 - (All) | AB45: 04 | AC45: 08 | AD45: YANATILE | AE45: 0408 | AF45: 0408 - YANATILE
J46: 04 | K46: 99 | L46: (All) | M46: 0499 - (All) | O46: 000002523 | P46: URCOS | Q46: 01 | R46: 12 | S46: 12 | T46: 01 | U46: 0112 | V46: 000002523 - URCOS | AB46: 05 | AC46: 00 | AD46: (All) | AE46: 0500 | AF46: 0500 - (All)
J47: 05 | K47: 00 | L47: NO PERTENECE A NINGUNA MICRORED | M47: 0500 - NO PERTENECE A NINGUNA MICRORED | N47: =+N45+1 -> 33 | O47: 000026385 | P47: ESSALUD-URCOS | Q47: 01 | R47: 12 | S47: 12 | T47: 01 | U47: 0112 | V47: 000026385 - ESSALUD-URCOS | AB47: 05 | AC47: 01 | AD47: YANAOCA | AE47: 0501 | AF47: 0501 - YANAOCA
J48: 05 | K48: 01 | L48: KIMBIRI | M48: 0501 - KIMBIRI | N48: 34 | O48: 000002525 | P48: ANDAHUAYLILLAS | Q48: 01 | R48: 12 | S48: 12 | T48: 02 | U48: 0112 | V48: 000002525 - ANDAHUAYLILLAS | AB48: 05 | AC48: 02 | AD48: CHECCA | AE48: 0502 | AF48: 0502 - CHECCA
J49: 05 | K49: 02 | L49: PICHARI | M49: 0502 - PICHARI | N49: 35 | O49: 000008911 | P49: HUARA HUARA | Q49: 01 | R49: 12 | S49: 12 | T49: 05 | U49: 0112 | V49: 000008911 - HUARA HUARA | AB49: 05 | AC49: 03 | AD49: KUNTURKANKI | AE49: 0503 | AF49: 0503 - KUNTURKANKI
J50: 05 | K50: 99 | L50: (All) | M50: 0599 - (All) | N50: 36 | O50: 000002530 | P50: CUSIPATA | Q50: 01 | R50: 12 | S50: 12 | T50: 06 | U50: 0112 | V50: 000002530 - CUSIPATA | AB50: 05 | AC50: 04 | AD50: LANGUI | AE50: 0504 | AF50: 0504 - LANGUI
J51: 06 | K51: 00 | L51: NO PERTENECE A NINGUNA MICRORED | M51: 0600 - NO PERTENECE A NINGUNA MICRORED | N51: 37 | O51: 000006980 | P51: CHILLIHUANI | Q51: 01 | R51: 12 | S51: 12 | T51: 06 | U51: 0112 | V51: 000006980 - CHILLIHUANI | AB51: 05 | AC51: 05 | AD51: LAYO | AE51: 0505 | AF51: 0505 - LAYO
J52: 06 | K52: 09 | L52: SANTO TOMAS | M52: 0609 - SANTO TOMAS | N52: 38 | O52: 000002532 | P52: HUARO | Q52: 01 | R52: 12 | S52: 12 | T52: 07 | U52: 0112 | V52: 000002532 - HUARO | AB52: 05 | AC52: 06 | AD52: PAMPAMARCA | AE52: 0506 | AF52: 0506 - PAMPAMARCA
J53: 06 | K53: 01 | L53: LIVITACA | M53: 0601 - LIVITACA | N53: 39 | O53: 000002533 | P53: URPAY | Q53: 01 | R53: 12 | S53: 12 | T53: 07 | U53: 0112 | V53: 000002533 - URPAY | AB53: 05 | AC53: 07 | AD53: QUEHUE | AE53: 0507 | AF53: 0507 - QUEHUE
J54: 06 | K54: 99 | L54: (All) | M54: 0699 - (All) | N54: 40 | O54: 000011747 | P54: POSTA MEDICA POLICIAL PUCUTO | Q54: 01 | R54: 12 | S54: 12 | T54: 07 | U54: 0112 | V54: 000011747 - POSTA MEDICA POLICIAL PUCUTO | AB54: 05 | AC54: 08 | AD54: TUPAC AMARU | AE54: 0508 | AF54: 0508 - TUPAC AMARU
J55: 99 | K55: 99 | L55: (All) | M55: 9999 - (All) | N55: 41 | O55: 000030708 | P55: MENTAL COMUNITARIO HUARO | Q55: 01 | R55: 12 | S55: 12 | T55: 07 | U55: 0112 | V55: 000030708 - MENTAL COMUNITARIO HUARO | AB55: 06 | AC55: 00 | AD55: (All) | AE55: 0600 | AF55: 0600 - (All)
N56: 42 | O56: 000002534 | P56: LUCRE | Q56: 01 | R56: 12 | S56: 12 | T56: 08 | U56: 0112 | V56: 000002534 - LUCRE | AB56: 06 | AC56: 01 | AD56: SICUANI | AE56: 0601 | AF56: 0601 - SICUANI
N57: 43 | O57: 000002537 | P57: OROPESA | Q57: 01 | R57: 12 | S57: 12 | T57: 11 | U57: 0112 | V57: 000002537 - OROPESA | AB57: 06 | AC57: 02 | AD57: CHECACUPE | AE57: 0602 | AF57: 0602 - CHECACUPE
N58: 44 | O58: 000002538 | P58: QUIQUIJANA | Q58: 01 | R58: 12 | S58: 12 | T58: 12 | U58: 0112 | V58: 000002538 - QUIQUIJANA | AB58: 06 | AC58: 03 | AD58: COMBAPATA | AE58: 0603 | AF58: 0603 - COMBAPATA
N59: 45 | O59: 000002539 | P59: CCOLCA | Q59: 01 | R59: 12 | S59: 12 | T59: 12 | U59: 0112 | V59: 000002539 - CCOLCA | AB59: 06 | AC59: 04 | AD59: MARANGANI | AE59: 0604 | AF59: 0604 - MARANGANI
N60: 46 | O60: 000000000 | P60: (All) | Q60: 01 | R60: 13 | U60: 0113 | V60: 000000000 - (All) | AB60: 06 | AC60: 05 | AD60: PITUMARCA | AE60: 0605 | AF60: 0605 - PITUMARCA
O61: 000002317 | P61: ACOMAYO | Q61: 01 | R61: 13 | S61: 02 | T61: 01 | U61: 0113 | V61: 000002317 - ACOMAYO | AB61: 06 | AC61: 06 | AD61: SAN PABLO | AE61: 0606 | AF61: 0606 - SAN PABLO
N62: =+N60+1 -> 47 | O62: 000010076 | P62: ACOMAYO - ESSALUD | Q62: 01 | R62: 13 | S62: 02 | T62: 01 | U62: 0113 | V62: 000010076 - ACOMAYO - ESSALUD | AB62: 06 | AC62: 07 | AD62: SAN PEDRO | AE62: 0607 | AF62: 0607 - SAN PEDRO
N63: 48 | O63: 000002318 | P63: ACOPIA | Q63: 01 | R63: 13 | S63: 02 | T63: 02 | U63: 0113 | V63: 000002318 - ACOPIA | AB63: 06 | AC63: 08 | AD63: TINTA | AE63: 0608 | AF63: 0608 - TINTA
N64: 49 | O64: 000002319 | P64: ACOS | Q64: 01 | R64: 13 | S64: 02 | T64: 03 | U64: 0113 | V64: 000002319 - ACOS | AB64: 07 | AC64: 00 | AD64: (All) | AE64: 0700 | AF64: 0700 - (All)
N65: 50 | O65: 000002321 | P65: POMACANCHI | Q65: 01 | R65: 13 | S65: 02 | T65: 05 | U65: 0113 | V65: 000002321 - POMACANCHI | AB65: 07 | AC65: 01 | AD65: SANTO TOMAS | AE65: 0701 | AF65: 0701 - SANTO TOMAS
N66: 51 | O66: 000002322 | P66: SAN JUAN DE POMACANCHI | Q66: 01 | R66: 13 | S66: 02 | T66: 05 | U66: 0113 | V66: 000002322 - SAN JUAN DE POMACANCHI | AB66: 07 | AC66: 02 | AD66: CAPACMARCA | AE66: 0702 | AF66: 0702 - CAPACMARCA
N67: 52 | O67: 000012926 | P67: SANTA LUCIA | Q67: 01 | R67: 13 | S67: 02 | T67: 05 | U67: 0113 | V67: 000012926 - SANTA LUCIA | AB67: 07 | AC67: 03 | AD67: CHAMACA | AE67: 0703 | AF67: 0703 - CHAMACA
N68: 53 | O68: 000002324 | P68: PUESTO DE SALUD SANGARARA | Q68: 01 | R68: 13 | S68: 02 | T68: 07 | U68: 0113 | V68: 000002324 - PUESTO DE SALUD SANGARARA | AB68: 07 | AC68: 04 | AD68: COLQUEMARCA | AE68: 0704 | AF68: 0704 - COLQUEMARCA
N69: 54 | O69: 000002325 | P69: PUESTO DE SALUD MARCACONGA | Q69: 01 | R69: 13 | S69: 02 | T69: 07 | U69: 0113 | V69: 000002325 - PUESTO DE SALUD MARCACONGA | AB69: 07 | AC69: 05 | AD69: LIVITACA | AE69: 0705 | AF69: 0705 - LIVITACA
N70: 55 | O70: 000002508 | P70: PILLPINTO | Q70: 01 | R70: 13 | S70: 10 | T70: 08 | U70: 0113 | V70: 000002508 - PILLPINTO | AB70: 07 | AC70: 06 | AD70: LLUSCO | AE70: 0706 | AF70: 0706 - LLUSCO
N71: 56 | O71: 000000000 | P71: (All) | Q71: 01 | R71: 15 | U71: 0115 | V71: 000000000 - (All) | AB71: 07 | AC71: 07 | AD71: QUIÑOTA | AE71: 0707 | AF71: 0707 - QUIÑOTA
O72: 000002526 | P72: QUINCE MIL | Q72: 01 | R72: 15 | S72: 12 | T72: 03 | U72: 0115 | V72: 000002526 - QUINCE MIL | AB72: 07 | AC72: 08 | AD72: VELILLE | AE72: 0708 | AF72: 0708 - VELILLE
N73: =+N71+1 -> 57 | O73: 000002527 | P73: CCARHUAYO | Q73: 01 | R73: 15 | S73: 12 | T73: 04 | U73: 0115 | V73: 000002527 - CCARHUAYO | AB73: 08 | AC73: 00 | AD73: (All) | AE73: 0800 | AF73: 0800 - (All)
N74: 58 | O74: 000002524 | P74: PAMPACAMARA | Q74: 01 | R74: 15 | S74: 12 | T74: 05 | U74: 0115 | V74: 000002524 - PAMPACAMARA | AB74: 08 | AC74: 01 | AD74: ESPINAR | AE74: 0801 | AF74: 0801 - ESPINAR
N75: 59 | O75: 000002528 | P75: CCATCCA | Q75: 01 | R75: 15 | S75: 12 | T75: 05 | U75: 0115 | V75: 000002528 - CCATCCA | AB75: 08 | AC75: 02 | AD75: CONDOROMA | AE75: =CONCATENATE(AB75,AC75) -> 0802 | AF75: =CONCATENATE(AB75,AC75," - ",AD75) -> 0802 - CONDOROMA
N76: 60 | O76: 000002529 | P76: KCAURY | Q76: 01 | R76: 15 | S76: 12 | T76: 05 | U76: 0115 | V76: 000002529 - KCAURY | AB76: 08 | AC76: 03 | AD76: COPORAQUE | AE76: 0803 | AF76: 0803 - COPORAQUE
N77: =+N76+1 -> 61 | O77: 000012931 | P77: CHICHINA | Q77: 01 | R77: 15 | S77: 12 | T77: 05 | U77: 0115 | V77: 000012931 - CHICHINA | AB77: 08 | AC77: 04 | AD77: OCORURO | AE77: 0804 | AF77: 0804 - OCORURO
N78: 62 | O78: 000016335 | P78: CCAPANA | Q78: 01 | R78: 15 | S78: 12 | T78: 05 | U78: 0115 | V78: 000016335 - CCAPANA | AB78: 08 | AC78: 05 | AD78: PALLPATA | AE78: 0805 | AF78: 0805 - PALLPATA
N79: 63 | O79: 000002535 | P79: MARCAPATA | Q79: 01 | R79: 15 | S79: 12 | T79: 09 | U79: 0115 | V79: 000002535 - MARCAPATA | AB79: 08 | AC79: 06 | AD79: PICHIGUA | AE79: 0806 | AF79: 0806 - PICHIGUA
N80: 64 | O80: 000007110 | P80: INCACANCHA | Q80: 01 | R80: 15 | S80: 12 | T80: 09 | U80: =CONCATENATE(Q80,R80) -> 0115 | V80: =CONCATENATE(O80," - ",P80) -> 000007110 - INCACANCHA | AB80: 08 | AC80: 07 | AD80: SUYCKUTAMBO | AE80: 0807 | AF80: 0807 - SUYCKUTAMBO
N81: 65 | O81: 000002536 | P81: OCONGATE | Q81: 01 | R81: 15 | S81: 12 | T81: 10 | U81: 0115 | V81: 000002536 - OCONGATE | AB81: 08 | AC81: 08 | AD81: ALTO PICHIGUA | AE81: 0808 | AF81: 0808 - ALTO PICHIGUA
N82: 66 | O82: 000006977 | P82: TINKI | Q82: 01 | R82: 15 | S82: 12 | T82: 10 | U82: 0115 | V82: 000006977 - TINKI | AB82: 09 | AC82: 00 | AD82: (All) | AE82: 0900 | AF82: 0900 - (All)
N83: 67 | O83: 000000000 | P83: (All) | Q83: 01 | R83: 16 | U83: 0116 | V83: 000000000 - (All) | AB83: 09 | AC83: 01 | AD83: SANTA ANA | AE83: 0901 | AF83: 0901 - SANTA ANA
O84: 000002300 | P84: SAN JERONIMO | Q84: 01 | R84: 16 | S84: 01 | T84: 04 | U84: 0116 | V84: 000002300 - SAN JERONIMO | AB84: 09 | AC84: 02 | AD84: ECHARATE | AE84: 0902 | AF84: 0902 - ECHARATE
N85: =+N83+1 -> 68 | O85: 000007699 | P85: CONCHACALLE | Q85: 01 | R85: 16 | S85: 01 | T85: 04 | U85: 0116 | V85: 000007699 - CONCHACALLE | AB85: 09 | AC85: 03 | AD85: HUAYOPATA | AE85: 0903 | AF85: 0903 - HUAYOPATA
N86: 69 | O86: 000018926 | P86: ESTABLECIMIENTO PENITENCIARIO CUSCO VARONES | Q86: 01 | R86: 16 | S86: 01 | T86: 04 | U86: 0116 | V86: 000018926 - ESTABLECIMIENTO PENITENCIARIO CUSCO VARONES | AB86: 09 | AC86: 04 | AD86: MARANURA | AE86: 0904 | AF86: 0904 - MARANURA
N87: 70 | O87: 000021187 | P87: ESTABLECIMIENTO PENITENCIARIO CUSCO MUJERES | Q87: 01 | R87: 16 | S87: 01 | T87: 04 | U87: 0116 | V87: 000021187 - ESTABLECIMIENTO PENITENCIARIO CUSCO MUJERES | AB87: 09 | AC87: 05 | AD87: OCOBAMBA | AE87: 0905 | AF87: 0905 - OCOBAMBA
N88: 71 | O88: 000030727 | P88: PATRÓN SAN SEBASTIAN | Q88: 01 | R88: 16 | S88: 01 | T88: 04 | U88: 0116 | V88: 000030727 - PATRÓN SAN SEBASTIAN | AB88: 09 | AC88: 06 | AD88: QUELLOUNO | AE88: 0906 | AF88: 0906 - QUELLOUNO
N89: 72 | O89: 000002301 | P89: SAN SEBASTIAN | Q89: 01 | R89: 16 | S89: 01 | T89: 05 | U89: 0116 | V89: 000002301 - SAN SEBASTIAN | AB89: 09 | AC89: 07 | AD89: KIMBIRI | AE89: 0907 | AF89: 0907 - KIMBIRI
N90: 73 | O90: 000002303 | P90: SANTA ROSA | Q90: 01 | R90: 16 | S90: 01 | T90: 05 | U90: 0116 | V90: 000002303 - SANTA ROSA | AB90: 09 | AC90: 08 | AD90: SANTA TERESA | AE90: 0908 | AF90: 0908 - SANTA TERESA
N91: 74 | O91: 000010065 | P91: SAN SEBASTIAN ESSALUD | Q91: 01 | R91: 16 | S91: 01 | T91: 05 | U91: 0116 | V91: 000010065 - SAN SEBASTIAN ESSALUD | AB91: 09 | AC91: 09 | AD91: VILCABAMBA | AE91: 0909 | AF91: 0909 - VILCABAMBA
N92: 75 | O92: 000011743 | P92: POLICIAL "SANTA ROSA" CUSCO | Q92: 01 | R92: 16 | S92: 01 | T92: 05 | U92: 0116 | V92: 000011743 - POLICIAL "SANTA ROSA" CUSCO | AB92: 09 | AC92: 10 | AD92: PICHARI | AE92: 0910 | AF92: 0910 - PICHARI
N93: 76 | O93: 000026181 | P93: MENTAL SAN SEBASTIAN | Q93: 01 | R93: 16 | S93: 01 | T93: 05 | U93: 0116 | V93: 000026181 - MENTAL SAN SEBASTIAN | AB93: 09 | AC93: 11 | AD93: INKAWASI | AE93: 0911 | AF93: 0911 - INKAWASI
N94: 77 | O94: 000002314 | P94: SAYLLA | Q94: 01 | R94: 16 | S94: 01 | T94: 07 | U94: 0116 | V94: 000002314 - SAYLLA | AB94: 09 | AC94: 12 | AD94: VILLA VIRGEN | AE94: 0912 | AF94: 0912 - VILLA VIRGEN
N95: 78 | O95: 000002323 | P95: RONDOCAN | Q95: 01 | R95: 16 | S95: 02 | T95: 06 | U95: 0116 | V95: 000002323 - RONDOCAN | AB95: 09 | AC95: 13 | AD95: VILLA KINTIARINA | AE95: 0913 | AF95: 0913 - VILLA KINTIARINA
N96: 79 | O96: 999999999 | P96: (All) | Q96: 01 | R96: 99 | U96: 0199 | V96: 999999999 - (All) | AB96: 09 | AC96: 14 | AD96: MEGANTONI | AE96: 0914 | AF96: 0914 - MEGANTONI
O97: 000000000 | P97: (All) | Q97: 02 | R97: 01 | U97: 0201 | V97: 000000000 - (All) | AB97: 09 | AC97: 15 | AD97: KUMPIRUSHIATO | AE97: 0915 | AF97: 0915 - KUMPIRUSHIATO
O98: 000002292 | P98: INDEPENDENCIA | Q98: 02 | R98: 01 | S98: 01 | T98: 01 | U98: 0201 | V98: 000002292 - INDEPENDENCIA | AB98: 09 | AC98: 16 | AD98: CIELO PUNCO | AE98: 0916 | AF98: 0916 - CIELO PUNCO
N99: =+N96+1 -> 80 | O99: 000002297 | P99: CCORCCA | Q99: 02 | R99: 01 | S99: 01 | T99: 02 | U99: 0201 | V99: 000002297 - CCORCCA | AB99: 09 | AC99: 17 | AD99: MANITEA | AE99: 0917 | AF99: 0917 - MANITEA
N100: 81 | O100: 000002306 | P100: BELEMPAMPA | Q100: 02 | R100: 01 | S100: 01 | T100: 06 | U100: 0201 | V100: 000002306 - BELEMPAMPA | AB100: 09 | AC100: 18 | AD100: UNION ASHANINKA | AE100: 0918 | AF100: 0918 - UNION ASHANINKA
N101: 82 | O101: 000002308 | P101: ZARZUELA ALTA | Q101: 02 | R101: 01 | S101: 01 | T101: 06 | U101: 0201 | V101: 000002308 - ZARZUELA ALTA | AB101: 09 | AC101: 00 | AD101: (All) | AE101: 0900 | AF101: 0900 - (All)
N102: 83 | O102: 000002309 | P102: DIGNIDAD NACIONAL | Q102: 02 | R102: 01 | S102: 01 | T102: 06 | U102: 0201 | V102: 000002309 - DIGNIDAD NACIONAL | AB102: 10 | AC102: 01 | AD102: PARURO | AE102: 1001 | AF102: 1001 - PARURO
N103: 84 | O103: 000002313 | P103: OCCOPATA | Q103: 02 | R103: 01 | S103: 01 | T103: 06 | U103: 0201 | V103: 000002313 - OCCOPATA | AB103: 10 | AC103: 02 | AD103: ACCHA | AE103: 1002 | AF103: 1002 - ACCHA
N104: 85 | O104: 000010920 | P104: QUINTA BRIGADA DE MONTAÑA | Q104: 02 | R104: 01 | S104: 01 | T104: 06 | U104: 0201 | V104: 000010920 - QUINTA BRIGADA DE MONTAÑA | AB104: 10 | AC104: 03 | AD104: CCAPI | AE104: 1003 | AF104: 1003 - CCAPI
N105: 86 | O105: 000026182 | P105: MENTAL SANTIAGO | Q105: 02 | R105: 01 | S105: 01 | T105: 06 | U105: 0201 | V105: 000026182 - MENTAL SANTIAGO | AB105: 10 | AC105: 04 | AD105: COLCHA | AE105: 1004 | AF105: 1004 - COLCHA
N106: 87 | O106: 000034933 | P106: SANTIAGO ESSALUD | Q106: 02 | R106: 01 | S106: 01 | T106: 06 | U106: 0201 | V106: 000034933 - SANTIAGO ESSALUD | AB106: 10 | AC106: 05 | AD106: HUANOQUITE | AE106: 1005 | AF106: 1005 - HUANOQUITE
N107: 88 | O107: 000023721 | P107: EJERCITO-PERUANO 5TA BM | Q107: 02 | R107: 01 | S107: 01 | T107: 06 | U107: 0201 | V107: 000023721 - EJERCITO-PERUANO 5TA BM | AB107: 10 | AC107: 06 | AD107: OMACHA | AE107: 1006 | AF107: 1006 - OMACHA
O108: 000000000 | P108: (All) | Q108: 02 | R108: 02 | U108: 0202 | V108: 000000000 - (All) | AB108: 10 | AC108: 07 | AD108: PACCARITAMBO | AE108: 1007 | AF108: 1007 - PACCARITAMBO
N109: =+N107+1 -> 89 | O109: 000034419 | P109: MENTAL COMUNITARIO CUSCO | Q109: 02 | R109: 02 | S109: 01 | T109: 01 | U109: 0202 | V109: 000034419 - MENTAL COMUNITARIO CUSCO | AB109: 10 | AC109: 08 | AD109: PILLPINTO | AE109: 1008 | AF109: 1008 - PILLPINTO
N110: 90 | O110: 000002302 | P110: CCORAO | Q110: 02 | R110: 02 | S110: 01 | T110: 05 | U110: 0202 | V110: 000002302 - CCORAO | AB110: 10 | AC110: 09 | AD110: YAURISQUE | AE110: 1009 | AF110: 1009 - YAURISQUE
N111: 91 | O111: 000002307 | P111: MANCO CAPAC | Q111: 02 | R111: 02 | S111: 01 | T111: 06 | U111: 0202 | V111: 000002307 - MANCO CAPAC | AB111: 11 | AC111: 00 | AD111: (All) | AE111: 1100 | AF111: 1100 - (All)
N112: 92 | O112: 000002310 | P112: CHOCCO | Q112: 02 | R112: 02 | S112: 01 | T112: 06 | U112: 0202 | V112: 000002310 - CHOCCO | AB112: 11 | AC112: 01 | AD112: PAUCARTAMBO | AE112: 1101 | AF112: 1101 - PAUCARTAMBO
N113: 93 | O113: 000002315 | P113: WANCHAQ | Q113: 02 | R113: 02 | S113: 01 | T113: 08 | U113: 0202 | V113: 000002315 - WANCHAQ | AB113: 11 | AC113: 02 | AD113: CAICAY | AE113: 1102 | AF113: 1102 - CAICAY
N114: 94 | O114: 000002316 | P114: TTIO | Q114: 02 | R114: 02 | S114: 01 | T114: 08 | U114: 0202 | V114: 000002316 - TTIO | AB114: 11 | AC114: 03 | AD114: CHALLABAMBA | AE114: 1103 | AF114: 1103 - CHALLABAMBA
N115: 95 | O115: 000010041 | P115: ADOLFO GUEVARA VELASCO | Q115: 02 | R115: 02 | S115: 01 | T115: 08 | U115: 0202 | V115: 000010041 - ADOLFO GUEVARA VELASCO | AB115: 11 | AC115: 04 | AD115: COLQUEPATA | AE115: 1104 | AF115: 1104 - COLQUEPATA
N116: 96 | O116: 000026183 | P116: METROPOLITANO | Q116: 02 | R116: 02 | S116: 01 | T116: 08 | U116: 0202 | V116: 000026183 - METROPOLITANO | AB116: 11 | AC116: 05 | AD116: HUANCARANI | AE116: 1105 | AF116: 1105 - HUANCARANI
O117: 000030730 | P117: PATRON SANTIAGO | Q117: 02 | R117: 02 | S117: 01 | T117: 08 | U117: 0202 | V117: 000030730 - PATRON SANTIAGO | AB117: 11 | AC117: 06 | AD117: KOSÑIPATA | AE117: 1106 | AF117: 1106 - KOSÑIPATA
N118: =+N116+1 -> 97 | O118: 000000000 | P118: (All) | Q118: 02 | R118: 03 | U118: 0203 | V118: 000000000 - (All) | AB118: 12 | AC118: 00 | AD118: (All) | AE118: 1200 | AF118: 1200 - (All)
N119: 98 | O119: 000002326 | P119: ANTA | Q119: 02 | R119: 03 | S119: 03 | T119: 01 | U119: 0203 | V119: 000002326 - ANTA | AB119: 12 | AC119: 01 | AD119: URCOS | AE119: 1201 | AF119: 1201 - URCOS
N120: 99 | O120: 000002328 | P120: COMPONE | Q120: 02 | R120: 03 | S120: 03 | T120: 01 | U120: 0203 | V120: 000002328 - COMPONE | AB120: 12 | AC120: 02 | AD120: ANDAHUAYLILLAS | AE120: 1202 | AF120: 1202 - ANDAHUAYLILLAS
N121: 100 | O121: 000002329 | P121: CONCHACALLA | Q121: 02 | R121: 03 | S121: 03 | T121: 01 | U121: 0203 | V121: 000002329 - CONCHACALLA | AB121: 12 | AC121: 03 | AD121: CAMANTI | AE121: 1203 | AF121: 1203 - CAMANTI
N122: 101 | O122: 000027790 | P122: MENTAL COMUNITARIO ANTA | Q122: 02 | R122: 03 | S122: 03 | T122: 01 | U122: 0203 | V122: 000027790 - MENTAL COMUNITARIO ANTA | AB122: 12 | AC122: 04 | AD122: CCARHUAYO | AE122: 1204 | AF122: 1204 - CCARHUAYO
N123: 102 | O123: 000029514 | P123: ESSALUD ANTA | Q123: 02 | R123: 03 | S123: 03 | T123: 01 | U123: 0203 | V123: 000029514 - ESSALUD ANTA | AB123: 12 | AC123: 05 | AD123: CCATCA | AE123: 1205 | AF123: 1205 - CCATCA
N124: 103 | O124: 000002330 | P124: ANCAHUASI | Q124: 02 | R124: 03 | S124: 03 | T124: 02 | U124: 0203 | V124: 000002330 - ANCAHUASI | AB124: 12 | AC124: 06 | AD124: CUSIPATA | AE124: 1206 | AF124: 1206 - CUSIPATA
N125: 104 | O125: 000002331 | P125: CACHIMAYO | Q125: 02 | R125: 03 | S125: 03 | T125: 03 | U125: 0203 | V125: 000002331 - CACHIMAYO | AB125: 12 | AC125: 07 | AD125: HUARO | AE125: 1207 | AF125: 1207 - HUARO
N126: 105 | O126: 000006972 | P126: PANTIPATA | Q126: 02 | R126: 03 | S126: 03 | T126: 04 | U126: 0203 | V126: 000006972 - PANTIPATA | AB126: 12 | AC126: 08 | AD126: LUCRE | AE126: 1208 | AF126: 1208 - LUCRE
N127: 106 | O127: 000036240 | P127: CHINCHAYPUJIO | Q127: 02 | R127: 03 | S127: 03 | T127: 04 | U127: 0203 | V127: 000036240 - CHINCHAYPUJIO | AB127: 12 | AC127: 09 | AD127: MARCAPATA | AE127: 1209 | AF127: 1209 - MARCAPATA
N128: 107 | O128: 000035838 | P128: PARCCOTICA | Q128: 02 | R128: 03 | S128: 03 | T128: 04 | U128: 0203 | V128: 000035838 - PARCCOTICA | AB128: 12 | AC128: 10 | AD128: OCONGATE | AE128: 1210 | AF128: 1210 - OCONGATE
N129: 108 | O129: 000002333 | P129: HUAROCONDO | Q129: 02 | R129: 03 | S129: 03 | T129: 05 | U129: 0203 | V129: 000002333 - HUAROCONDO | AB129: 12 | AC129: 11 | AD129: OROPESA | AE129: 1211 | AF129: 1211 - OROPESA
N130: 109 | O130: 000002334 | P130: HUAYLLACOCHA | Q130: 02 | R130: 03 | S130: 03 | T130: 05 | U130: 0203 | V130: 000002334 - HUAYLLACOCHA | AB130: 12 | AC130: 12 | AD130: QUIQUIJANA | AE130: 1212 | AF130: 1212 - QUIQUIJANA
N131: 110 | O131: 000002339 | P131: PUCYURA ANTA | Q131: 02 | R131: 03 | S131: 03 | T131: 08 | U131: 0203 | V131: 000002339 - PUCYURA ANTA | AB131: 13 | AC131: 00 | AD131: (All) | AE131: 1300 | AF131: 1300 - (All)
O132: 000002340 | P132: ZURITE | Q132: 02 | R132: 03 | S132: 03 | T132: 09 | U132: 0203 | V132: 000002340 - ZURITE | AB132: 13 | AC132: 01 | AD132: URUBAMBA | AE132: 1301 | AF132: 1301 - URUBAMBA
N133: =+N131+1 -> 111 | O133: 000002327 | P133: CHACAN | Q133: 02 | R133: 03 | S133: 03 | T133: 01 | U133: 0203 | V133: 000002327 - CHACAN | AB133: 13 | AC133: 02 | AD133: CHINCHERO | AE133: 1302 | AF133: 1302 - CHINCHERO
N134: 112 | O134: 000000000 | P134: (All) | Q134: 02 | R134: 04 | U134: 0204 | V134: 000000000 - (All) | AB134: 13 | AC134: 03 | AD134: HUAYLLABAMBA | AE134: 1303 | AF134: 1303 - HUAYLLABAMBA
N135: 113 | O135: 000002336 | P135: LIMATAMBO | Q135: 02 | R135: 04 | S135: 03 | T135: 06 | U135: 0204 | V135: 000002336 - LIMATAMBO | AB135: 13 | AC135: 04 | AD135: MACHUPICCHU | AE135: 1304 | AF135: 1304 - MACHUPICCHU
N136: 114 | O136: 000002337 | P136: PAMPACONGA | Q136: 02 | R136: 04 | S136: 03 | T136: 06 | U136: 0204 | V136: 000002337 - PAMPACONGA | AB136: 13 | AC136: 05 | AD136: MARAS | AE136: 1305 | AF136: 1305 - MARAS
N137: 115 | O137: 000010761 | P137: URATARI | Q137: 02 | R137: 04 | S137: 03 | T137: 06 | U137: 0204 | V137: 000010761 - URATARI | AB137: 13 | AC137: 06 | AD137: OLLANTAYTAMBO | AE137: 1306 | AF137: 1306 - OLLANTAYTAMBO
O138: 000002338 | P138: MOLLEPATA | Q138: 02 | R138: 04 | S138: 03 | T138: 07 | U138: 0204 | V138: 000002338 - MOLLEPATA | AB138: 13 | AC138: 07 | AD138: YUCAY | AE138: =CONCATENATE(AB138,AC138) -> 1307 | AF138: 1307 - YUCAY
N139: =+N137+1 -> 116 | O139: 000021061 | P139: HUAMANPATA | Q139: 02 | R139: 04 | S139: 03 | T139: 07 | U139: 0204 | V139: 000021061 - HUAMANPATA | AB139: 00 | AC139: 00 | AD139: (All) | AE139: =CONCATENATE(AB139,AC139) -> 0000 | AF139: 0000 - (All)
N140: 117 | O140: 000000000 | P140: (All) | Q140: 02 | R140: 05 | U140: 0205 | V140: 000000000 - (All)
N141: =+N140+1 -> 118 | O141: 000002343 | P141: COYA | Q141: 02 | R141: 05 | S141: 04 | T141: 02 | U141: 0205 | V141: 000002343 - COYA
N142: 119 | O142: 000002344 | P142: LAMAY | Q142: 02 | R142: 05 | S142: 04 | T142: 03 | U142: 0205 | V142: 000002344 - LAMAY
N143: 120 | O143: 000006975 | P143: SAYLLAFAYA | Q143: 02 | R143: 05 | S143: 04 | T143: 03 | U143: 0205 | V143: 000006975 - SAYLLAFAYA
N144: 121 | O144: 000007145 | P144: HUAMA | Q144: 02 | R144: 05 | S144: 04 | T144: 03 | U144: 0205 | V144: 000007145 - HUAMA
N145: 122 | O145: 000007146 | P145: POQUES | Q145: 02 | R145: 05 | S145: 04 | T145: 03 | U145: 0205 | V145: 000007146 - POQUES
N146: 123 | O146: 000036012 | P146: HUARQUI | Q146: 02 | R146: 05 | S146: 04 | T146: 03 | U146: 0205 | V146: 000036012 - HUARQUI
N147: 124 | O147: 000002348 | P147: PISAC | Q147: 02 | R147: 05 | S147: 04 | T147: 05 | U147: 0205 | V147: 000002348 - PISAC
N148: 125 | O148: 000002349 | P148: CUYO CHICO | Q148: 02 | R148: 05 | S148: 04 | T148: 05 | U148: 0205 | V148: 000002349 - CUYO CHICO
N149: 126 | O149: 000002350 | P149: CUYO GRANDE | Q149: 02 | R149: 05 | S149: 04 | T149: 05 | U149: 0205 | V149: 000002350 - CUYO GRANDE
N150: 127 | O150: 000002351 | P150: QUELLO QUELLO | Q150: 02 | R150: 05 | S150: 04 | T150: 05 | U150: =CONCATENATE(Q150,R150) -> 0205 | V150: =CONCATENATE(O150," - ",P150) -> 000002351 - QUELLO QUELLO
N151: 128 | O151: 000002352 | P151: SAN SALVADOR | Q151: 02 | R151: 05 | S151: 04 | T151: 06 | U151: 0205 | V151: 000002352 - SAN SALVADOR
N152: 129 | O152: 000036087 | P152: TIRACANCHA | Q152: 02 | R152: 05 | S152: 04 | T152: 06 | U152: 0205 | V152: 000036087 - TIRACANCHA
O153: 000002353 | P153: TARAY | Q153: 02 | R153: 05 | S153: 04 | T153: 07 | U153: 0205 | V153: 000002353 - TARAY
N154: =+N152+1 -> 130 | O154: 000002354 | P154: HUANCALLE | Q154: 02 | R154: 05 | S154: 04 | T154: 07 | U154: 0205 | V154: 000002354 - HUANCALLE
N155: 131 | O155: 000000000 | P155: (All) | Q155: 02 | R155: 06 | U155: 0206 | V155: 000000000 - (All)
N156: 132 | O156: 000002341 | P156: CALCA | Q156: 02 | R156: 06 | S156: 04 | T156: 01 | U156: 0206 | V156: 000002341 - CALCA
N157: 133 | O157: 000010069 | P157: ESSALUD CALCA | Q157: 02 | R157: 06 | S157: 04 | T157: 01 | U157: 0206 | V157: 000010069 - ESSALUD CALCA
N158: 134 | O158: 000010759 | P158: HUARAN | Q158: 02 | R158: 06 | S158: 04 | T158: 01 | U158: 0206 | V158: 000010759 - HUARAN
N159: 135 | O159: 000010762 | P159: ACCHA ALTA - PAMPALLACTA | Q159: 02 | R159: 06 | S159: 04 | T159: 01 | U159: 0206 | V159: 000010762 - ACCHA ALTA - PAMPALLACTA
N160: 136 | O160: 000026273 | P160: MENTAL COMUNITARIO VIRGEN ASUNTA DE CALCA | Q160: 02 | R160: 06 | S160: 04 | T160: 01 | U160: 0206 | V160: 000026273 - MENTAL COMUNITARIO VIRGEN ASUNTA DE CALCA
N161: 137 | O161: 000002342 | P161: AMPARAES | Q161: 02 | R161: 06 | S161: 04 | T161: 04 | U161: 0206 | V161: 000002342 - AMPARAES
N162: 138 | O162: 000002345 | P162: CCACHIN | Q162: 02 | R162: 06 | S162: 04 | T162: 04 | U162: 0206 | V162: 000002345 - CCACHIN
N163: 139 | O163: 000002346 | P163: CHOQUECANCHA | Q163: 02 | R163: 06 | S163: 04 | T163: 04 | U163: 0206 | V163: 000002346 - CHOQUECANCHA
N164: 140 | O164: 000002347 | P164: LARES | Q164: 02 | R164: 06 | S164: 04 | T164: 04 | U164: 0206 | V164: 000002347 - LARES
N165: 141 | O165: 000002361 | P165: SUYO | Q165: 02 | R165: 06 | S165: 04 | T165: 04 | U165: 0206 | V165: 000002361 - SUYO
N166: 142 | O166: 000007144 | P166: PATABAMBA | Q166: 02 | R166: 06 | S166: 04 | T166: 07 | U166: 0206 | V166: 000007144 - PATABAMBA
N167: 143 | O167: 000002515 | P167: PAROBAMBA | Q167: 02 | R167: 06 | S167: 11 | T167: 03 | U167: 0206 | V167: 000002515 - PAROBAMBA
N168: 144 | O168: 000007143 | P168: OTOCANI | Q168: 02 | R168: 06 | S168: 11 | T168: 03 | U168: 0206 | V168: 000007143 - OTOCANI
N169: 145 | O169: 000000000 | P169: (All) | Q169: 02 | R169: 07 | U169: 0207 | V169: 000000000 - (All)
N170: 146 | O170: 000002540 | P170: URUBAMBA | Q170: 02 | R170: 07 | S170: 13 | T170: 01 | U170: 0207 | V170: 000002540 - URUBAMBA
N171: 147 | O171: 000002541 | P171: YANAHUARA | Q171: 02 | R171: 07 | S171: 13 | T171: 01 | U171: 0207 | V171: 000002541 - YANAHUARA
N172: 148 | O172: 000010060 | P172: CAS URUBAMBA -ESSALUD | Q172: 02 | R172: 07 | S172: 13 | T172: 01 | U172: 0207 | V172: 000010060 - CAS URUBAMBA -ESSALUD
N173: 149 | O173: 000030666 | P173: MENTAL COMUNITARIO URUBAMBA | Q173: 02 | R173: 07 | S173: 13 | T173: 01 | U173: 0207 | V173: 000030666 - MENTAL COMUNITARIO URUBAMBA
N174: 150 | O174: 000035851 | P174: URUBAMBA - ESSALUD | Q174: 02 | R174: 07 | S174: 13 | T174: 01 | U174: 0207 | V174: 000035851 - URUBAMBA - ESSALUD
N175: 151 | O175: 000002543 | P175: CHINCHERO | Q175: 02 | R175: 07 | S175: 13 | T175: 02 | U175: 0207 | V175: 000002543 - CHINCHERO
N176: 152 | O176: 000002544 | P176: OCCOTUAN | Q176: 02 | R176: 07 | S176: 13 | T176: 02 | U176: 0207 | V176: 000002544 - OCCOTUAN
N177: 153 | O177: 000002545 | P177: HUAYLLABAMBA | Q177: 02 | R177: 07 | S177: 13 | T177: 03 | U177: 0207 | V177: 000002545 - HUAYLLABAMBA
N178: 154 | O178: 000002546 | P178: MACHUPICCHU | Q178: 02 | R178: 07 | S178: 13 | T178: 04 | U178: 0207 | V178: 000002546 - MACHUPICCHU
N179: 155 | O179: 000002547 | P179: COLLPANI | Q179: 02 | R179: 07 | S179: 13 | T179: 04 | U179: 0207 | V179: 000002547 - COLLPANI
N180: 156 | O180: 000006974 | P180: CAMINO INCA HUAYLLABAMBA | Q180: 02 | R180: 07 | S180: 13 | T180: 04 | U180: 0207 | V180: 000006974 - CAMINO INCA HUAYLLABAMBA
N181: 157 | O181: 000010073 | P181: MACHU PICCHU - ESSALUD | Q181: 02 | R181: 07 | S181: 13 | T181: 04 | U181: 0207 | V181: 000010073 - MACHU PICCHU - ESSALUD
N182: 158 | O182: 000002548 | P182: MARAS | Q182: 02 | R182: 07 | S182: 13 | T182: 05 | U182: 0207 | V182: 000002548 - MARAS
N183: 159 | O183: 000010758 | P183: CRUZPATA | Q183: 02 | R183: 07 | S183: 13 | T183: 05 | U183: 0207 | V183: 000010758 - CRUZPATA
N184: 160 | O184: 000002549 | P184: OLLANTAYTAMBO | Q184: 02 | R184: 07 | S184: 13 | T184: 06 | U184: 0207 | V184: 000002549 - OLLANTAYTAMBO
N185: 161 | O185: 000002550 | P185: CHILLCA | Q185: 02 | R185: 07 | S185: 13 | T185: 06 | U185: 0207 | V185: 000002550 - CHILLCA
N186: 162 | O186: 000010760 | P186: PATACANCHA | Q186: 02 | R186: 07 | S186: 13 | T186: 06 | U186: 0207 | V186: 000010760 - PATACANCHA
N187: 163 | O187: 000002551 | P187: YUCAY | Q187: 02 | R187: 07 | S187: 13 | T187: 07 | U187: 0207 | V187: 000002551 - YUCAY
N188: 164 | O188: 000000000 | P188: (All) | Q188: 02 | R188: 08 | U188: 0208 | V188: 000000000 - (All)
N189: 165 | O189: 000002355 | P189: LA QUEBRADA | Q189: 02 | R189: 08 | S189: 04 | T189: 08 | U189: 0208 | V189: 000002355 - LA QUEBRADA
N190: 166 | O190: 000002356 | P190: CCORIMAYO | Q190: 02 | R190: 08 | S190: 04 | T190: 08 | U190: 0208 | V190: 000002356 - CCORIMAYO
N191: 167 | O191: 000002357 | P191: COLCCA YANATILE | Q191: 02 | R191: 08 | S191: 04 | T191: 08 | U191: 0208 | V191: 000002357 - COLCCA YANATILE
N192: 168 | O192: 000002358 | P192: MUYUPAY | Q192: 02 | R192: 08 | S192: 04 | T192: 08 | U192: 0208 | V192: 000002358 - MUYUPAY
N193: 169 | O193: 000002359 | P193: PUTUCUSI | Q193: 02 | R193: 08 | S193: 04 | T193: 08 | U193: 0208 | V193: 000002359 - PUTUCUSI
N194: 170 | O194: 000002360 | P194: QUESQUENTO | Q194: 02 | R194: 08 | S194: 04 | T194: 08 | U194: 0208 | V194: 000002360 - QUESQUENTO
N195: 171 | O195: 000002362 | P195: HUACHIBAMBA | Q195: 02 | R195: 08 | S195: 04 | T195: 08 | U195: 0208 | V195: 000002362 - HUACHIBAMBA
N196: 172 | O196: 000006971 | P196: COMBAPATA YANATILE | Q196: 02 | R196: 08 | S196: 04 | T196: 08 | U196: 0208 | V196: 000006971 - COMBAPATA YANATILE
N197: 173 | O197: 000006973 | P197: BELLAVISTA | Q197: 02 | R197: 08 | S197: 04 | T197: 08 | U197: 0208 | V197: 000006973 - BELLAVISTA
N198: 174 | O198: 000007142 | P198: CHANCAMAYO | Q198: 02 | R198: 08 | S198: 04 | T198: 08 | U198: 0208 | V198: 000007142 - CHANCAMAYO
N199: 175 | O199: 000002464 | P199: VERSALLES | Q199: 02 | R199: 08 | S199: 09 | T199: 05 | U199: 0208 | V199: 000002464 - VERSALLES
N200: 176 | O200: 000002467 | P200: PUENTE SANTIAGO | Q200: 02 | R200: 08 | S200: 09 | T200: 06 | U200: 0208 | V200: 000002467 - PUENTE SANTIAGO
N201: 177 | O201: 000000000 | P201: (All) | Q201: 02 | R201: 09 | U201: 0209 | V201: 000000000 - (All)
N202: 178 | O202: 000002290 | P202: SAN PEDRO CUSCO | Q202: 02 | R202: 09 | S202: 01 | T202: 01 | U202: 0209 | V202: 000002290 - SAN PEDRO CUSCO
N203: 179 | O203: 000002291 | P203: SIETE CUARTONES | Q203: 02 | R203: 09 | S203: 01 | T203: 01 | U203: 0209 | V203: 000002291 - SIETE CUARTONES
N204: 180 | O204: 000002293 | P204: MIRAFLORES | Q204: 02 | R204: 09 | S204: 01 | T204: 01 | U204: 0209 | V204: 000002293 - MIRAFLORES
N205: =+N204+1 -> 181 | O205: 000002294 | P205: PICCHU LA RINCONADA | Q205: 02 | R205: 09 | S205: 01 | T205: 01 | U205: 0209 | V205: 000002294 - PICCHU LA RINCONADA
N206: 182 | O206: 000002295 | P206: BUENA VISTA | Q206: 02 | R206: 09 | S206: 01 | T206: 01 | U206: 0209 | V206: 000002295 - BUENA VISTA
N207: 183 | O207: 000002299 | P207: POROY | Q207: 02 | R207: 09 | S207: 01 | T207: 03 | U207: 0209 | V207: 000002299 - POROY
N208: 184 | O208: 999999999 | P208: (All) | Q208: 02 | R208: 99 | U208: 0299 | V208: 999999999 - (All)
... 246 more rows
